Workbook

Sheet API and About
C1: IMPORTANT: This is a free tool and in Beta. That means we hope its works really well for you, stuff might be broken or not work like it should. If you find a bug or want an addon, can you email us on datagrabber@90digital.com so we can fix ASAP. Thanks 90 Digital
B3: MajesticSEO Platinum key:
B4: MajesticSEO Access Token
B5: Use Majestic testing environment | C5: No
B7: Use this url to get the access token: | C7: http://www.majesticseo.com/apps/GA884FAK
B9: SemRush key:
B13: Idea by: | C13: Nick Garner <nick.garner@90digital.com>
C14: Gillis Van Den Broeke
B16: Implemented by: | C16: Valera Shylin <valera.shylin@90digital.com>
B18: Send feedback to: | C18: datagrabber@90digital.com
B20: Version | C20: 1

Sheet SEMrush
B1: Powered By: | D1: To make this tool work - get your copy of the SEMRUSH API. If you don’t have a paid for SEMRUSH account, just follow the link and sign up for the $15 USD option. It's an affiliate link, so 100% of the revenue goes into developing datagrabber. | H1: http://www.semrush.com/sem.html?ref=14266693
A2: Items: Paste Domain list below: | B2: Keyword Info. Paste Below: | D2: Credits | E2: 649110 | H2: Sample reports below | K2: NOTES: | L2: Paste list in column 'A'
A3: tools.seobook.com | B3: test | D3: Market: | E3: uk | H3: Keyword Info: Single Keyword | L3: Go to 'Ranks for domain', set max keywords as '10'
A4: http://155008.com | B4: testing | D4: Date: | L4: Gto to 'Ranks for Domain' set market for relevant country
A5: testing.com | B5: tester | L5: Copy the resulting data into the master template sheet
A6: tester.com | B6: tested
A7: tested.com | D7: Market: | E7: us
A8: www.google.com
A9: http://tools.seobook.com/
D11: All Country Databases: | E11: No
D12: Market: | E12: us | H12: Domain Info: Current Ranking | All Databases
D13: History: | E13: No | F13: Display limit: | G13: 5 | H13: Domain Info: Domain Ranking History
D14: Date:
D16: Market: | E16: us | F16: Max Keywords: | G16: 10
D17: Date: | F17: Display offset: | H17: Organic URL report
D20: Market: | E20: uk | F20: Max Keywords: | G20: 10
D21: Date: | F21: Display offset: | H21: Ranks for Domain
D22: Sort: | E22: traffic ascending | F22: Display positions: | G22: current
D23: Filter
D25: Market: | E25: uk | F25: Max Competitors | G25: 10
D26: Date: | F26: Display offset: | H26: Competitors in search
D27: Sort: | E27: commom keywords

Sheet Majestic
D1: API Usage: | E1: 100000000
A2: Items Paste List Below: | B2: Mouse over the cells with red triangles for more information | I2: Example Data | J2: NOTES:
A3: www.majestic.com | C3: Database | D3: Historic | I3: Item Info: Fresh
A4: https://www.majesticseo.com/plans-pricing | I4: Item Info Historic
C8: Database | D8: Fresh | I8: Link Profile: Fresh Datatype: Links
C9: Datatype | D9: Domains | I9: Link Profile: Fresh Datatype: Domains
C13: Database | D13: Fresh | I13: Backlink Hist: Fresh
I14: Backlink Hist: Historic
C18: Database | D18: Fresh | E18: Filter Anchors? | F18: Phrase | I18: Database Fresh | Nr of Anchors: 10 | Clean Anchors: Yes / Mode: Backlinks
C19: Nr of anchors | D19: 100 | E19: Anchor to filter | F19: Keyword
C20: Clean Anchors? | D20: Yes
C21: Mode | D21: Anchors | E21: Domain to filter
C23: Database | D23: Fresh | E23: Include domain info? | F23: Yes | I23: Top Backlinks: Database: Fresh | Include deleted? No | Include Domain Info? No
C24: Nr of Links | D24: 100 | E24: MAX URLs per domain? | F24: 10 | I24: Top Backlinks: Database: Fresh | Include deleted? No | Include Domain Info? Yes
C25: include deleted? | D25: No | E25: MAX links per page? | F25: 10
C28: Database | D28: Fresh | I28: Top Pages: Database Fresh
C29: URLs | D29: 100

Sheet Google Scraper
A1: Google Scraper
A2: Keywords (below) & Variables -> | B2: Google (tld) | C2: Location | D2: Language | E2: Search language | F2: Number (column necessary, but its values are ignored) | I2: Min pause (sec) | J2: 16 | K2: max pause (sec) | L2: 25
A3: testing | B3: co.uk | C3: uk | D3: en | E3: en | F3: 10 | I3: No. of results | J3: 10
A4: Chauffeur | B4: ca | C4: ca | D4: fr | E4: fr | F4: 10 | I4: Method | J4: HTTP Request
A5: Chauffeur | B5: ca | C5: ca | D5: en | E5: en | F5: 10
A6: Chauffeur | B6: ca | C6: uk | D6: en | E6: fr | F6: 10 | I6: Example data
F7: 10 | I7: Example Sheet: Google Search Multiple Country Variables
F8: 10
F9: 10
F10: 10
F11: 10
F12: 10
F13: 10
F14: 10
F15: 10
F16: 10
F17: 10
F18: 10
F19: 10
F20: 10
F21: 10
F22: 10
F23: 10
F24: 10
F25: 10
F26: 10
F27: 10
F28: 10
F29: 10
F30: 10
F31: 10
F32: 10
F33: 10
F34: 10
F35: 10
F36: 10
F37: 10
F38: 10
F39: 10
F40: 10
F41: 10

Sheet Url Stripper
A1: URL Stripper
A2: Paste URLs | B2: Modified urls
A3: https://www.test.com | B3: test.com | D3: NOTES: You can paste up to 10,000 lines in Column 'A'
A4: www.test.com | B4: test.com | D4: Tip: Big lists, paste the column of data in 'A'
A5: test.com | B5: test.com
A6: http://www.test.com/mypage.html | B6: test.com
A7: https://www.test.com/mypage.html | B7: test.com
A8: http://subdomain.test.com/mypage.html | B8: subdomain.test.com
A9: https://subdomain.test.com/mypage.html | B9: subdomain.test.com
A10: http://subdomain.test.co.uk/mypage.html | B10: subdomain.test.co.uk
A11: https://subdomain.test.co.uk/mypage.html | B11: subdomain.test.co.uk
A12: subdomain.test.co.uk/mypage.html | B12: subdomain.test.co.uk
A13: subdomain.test.co.uk | B13: subdomain.test.co.uk

Sheet Page Title Scraper and Language
A1: Page title scraper / Language categorisation
A2: Paste URL Below | K2: To do's
A3: www.google.com | L3: Min and Max pause to follow in next release
A4: www.pravda.com.ua | E4: Language data example
E8: Page title data example

Sheet Share Of Search Input
A1: Keyword | B1: TLD | C1: Location | D1: Lan1 | E1: lan2 | F1: num | G1: Semrush mkt | H1: Search volume | K1: Notes
A2: seo | B2: co.uk | C2: uk | F2: 20 | G2: uk | H2: 2211000 | K2: Never cut (ctrl x). You will mess up formula references
A3: search engine optimization | B3: co.uk | C3: uk | F3: 20 | G3: uk | H3: 447700 | K3: * Copy and paste are fine
A4: seo services | B4: co.uk | C4: uk | F4: 20 | G4: uk | H4: 225743 | K4: * Make sure search volume in column H matches keywords in column A.
A5: seo company | B5: co.uk | C5: uk | F5: 20 | G5: uk | H5: 222220 | K5: * Press get search volume button to get SEMrush data. If semrush does not support the keyword, get it manually
A6: search optimization | B6: co.uk | C6: uk | F6: 20 | G6: uk | H6: 216800 | K6: * Supports up to 60 keywords 50 serps deep
A7: search engine optimization seo | B7: co.uk | C7: uk | F7: 20 | G7: uk | H7: 177505 | K7: * lan1. lan2 and geolocation are optional
A8: seo tools | B8: co.uk | C8: uk | F8: 20 | G8: uk | H8: 126773 | K8: * You can copy/paste SERPS in the serps tab. Then manually refresh pivot table.
A9: search engine optimisation | B9: co.uk | C9: uk | F9: 20 | G9: uk | H9: 101898 | K9: If you do this, make sure search volume in column H and keywords in column A are correct
A10: what is search engine optimization | B10: co.uk | C10: uk | F10: 20 | G10: uk | H10: 98790 | K10: * Verify in Volume and Calculation tabs that all the data is correct.
A11: seo companies | B11: co.uk | C11: uk | F11: 20 | G11: uk | H11: 71412 | K11: * If you have any problems open the orginal version of this tool and try again
A12: what is seo | B12: co.uk | C12: uk | F12: 20 | G12: uk | H12: 59052
A13: best seo company | B13: co.uk | C13: uk | F13: 20 | G13: uk | H13: 59022
A14: seo marketing | B14: co.uk | C14: uk | F14: 20 | G14: uk | H14: 53055
A15: best seo | B15: co.uk | C15: uk | F15: 20 | G15: uk | H15: 49032
A16: seo optimization | B16: co.uk | C16: uk | F16: 20 | G16: uk | H16: 44946
A17: seo search engine optimization | B17: co.uk | C17: uk | F17: 20 | G17: uk | H17: 38232
A18: seo check | B18: co.uk | C18: uk | F18: 20 | G18: uk | H18: 30789
A19: seo sem | B19: co.uk | C19: uk | F19: 20 | G19: uk | H19: 28908
A20: website optimization | B20: co.uk | C20: uk | F20: 20 | G20: uk | H20: 27956

Sheet Share Of Search Analysis
A2: RANK | B2: (Multiple Items)
A4: Row Labels | B4: Ranking | C4: Share of Search | D4: Traffic
A5: wikipedia.org | B5: 1 | C5: 0.2399241794 | D5: 444111.981
A6: searchengineland.com | B6: 1 | C6: 0.08856762954 | D6: 163943.232
A7: google.co.uk | B7: 2 | C7: 0.08341445057 | D7: 154404.433
A8: searchenginewatch.com | B8: 1 | C8: 0.07148696149 | D8: 132326.038
A9: rebootonline.com | B9: 1 | C9: 0.06518045526 | D9: 120652.371
A10: getmanic.co.uk | B10: 1 | C10: 0.05714631896 | D10: 105780.772
A11: google.com | B11: 3 | C11: 0.04331754931 | D11: 80183.009
A12: webopedia.com | B12: 2 | C12: 0.03034155179 | D12: 56163.771
A13: screamingfrog.co.uk | B13: 4 | C13: 0.02767384246 | D13: 51225.704
A14: moz.com | B14: 3 | C14: 0.02642769876 | D14: 48919.028
A15: seobook.com | B15: 1 | C15: 0.02551144056 | D15: 47222.987
A16: forbes.com | B16: 1 | C16: 0.0226065147 | D16: 41845.82
A17: seoconsultancyltd.com | B17: 3 | C17: 0.02073193787 | D17: 38375.882
A18: hobo-web.co.uk | B18: 3 | C18: 0.01715708462 | D18: 31758.645
A19: uwpgroup.co.uk | B19: 4 | C19: 0.01680014585 | D19: 31097.933
A20: jointplan.co.uk | B20: 2 | C20: 0.01524424198 | D20: 28217.875
A21: majesticseo.com | B21: 4 | C21: 0.01479171645 | D21: 27380.227
A22: http://www.majesticseo.com/ | B22: 4 | C22: 0.01123039119 | D22: 20788.031
A23: http://www.majesticseo.com/webmaster-tools | B23: 9 | C23: 0.002054610726 | D23: 3803.19
A24: http://www.majesticseo.com/support/tools | B24: 10 | C24: 0.001506714533 | D24: 2789.006
A25: redevolution.com | B25: 3 | C25: 0.01454435325 | D25: 26922.345
A26: smallseotools.com | B26: 2 | C26: 0.008560878027 | D26: 15846.625
A27: adjuice.co.uk | B27: 5 | C27: 0.006987578092 | D27: 12934.366
A28: seositecheckup.com | B28: 1 | C28: 0.006054502961 | D28: 11207.196
A29: 10bestseo.com | B29: 3 | C29: 0.005545567328 | D29: 10265.13
A30: oreilly.com | B30: 1 | C30: 0.005497407671 | D30: 10175.984
A31: microsoft.com | B31: 4 | C31: 0.005410474913 | D31: 10015.067
A32: howstuffworks.com | B32: 7 | C32: 0.005300506598 | D32: 9811.51
A33: theguardian.com | B33: 4 | C33: 0.005296483479 | D33: 9804.063
A34: mainstreethost.com | B34: 6 | C34: 0.005000111369 | D34: 9255.463
A35: webconfs.com | B35: 6 | C35: 0.004939156821 | D35: 9142.633
A36: bruceclay.com | B36: 7 | C36: 0.004089899461 | D36: 7570.614
A37: seoservicepros.co.uk | B37: 9 | C37: 0.003658618075 | D37: 6772.29
A38: upstream.co.uk | B38: 9 | C38: 0.003601520794 | D38: 6666.6
A39: branded3.com | B39: 4 | C39: 0.003367708806 | D39: 6233.802
A40: websiteoptimization.com | B40: 2 | C40: 0.003322609032 | D40: 6150.32
A41: traffictravis.com | B41: 2 | C41: 0.003311091253 | D41: 6129
A42: submitexpress.com | B42: 7 | C42: 0.00260250692 | D42: 4817.374
A43: found.co.uk | B43: 5 | C43: 0.00248063618 | D43: 4591.785
A44: seotoolset.com | B44: 8 | C44: 0.002397045848 | D44: 4437.055
A45: www.inc.com | B45: 4 | C45: 0.002264305069 | D45: 4191.345
A46: powermapper.com | B46: 2 | C46: 0.002079156236 | D46: 3848.625
A47: outspokenmedia.com | B47: 5 | C47: 0.001945025437 | D47: 3600.342
A48: kdweb.co.uk | B48: 6 | C48: 0.001581745406 | D48: 2927.892
A49: woorank.com | B49: 3 | C49: 0.00158015874 | D49: 2924.955
A50: entrepreneur.com | B50: 7 | C50: 0.001543551976 | D50: 2857.194
A51: raisemyrank.com | B51: 3 | C51: 0.001483621711 | D51: 2746.26
A52: businessinsider.com | B52: 5 | C52: 0.001481161487 | D52: 2741.706
A53: whatisseo.com | B53: 6 | C53: 0.001307976666 | D53: 2421.132
A54: huffingtonpost.co.uk | B54: 6 | C54: 0.001307312179 | D54: 2419.902
A55: weidert.com | B55: 4 | C55: 0.00123374858 | D55: 2283.732
A56: vanillacircus.co.uk | B56: 9 | C56: 0.001157374687 | D56: 2142.36
A57: bestseocompanies.com | B57: 8 | C57: 0.001115998202 | D57: 2065.77
A58: wordtracker.com | B58: 6 | C58: 0.001086037931 | D58: 2010.312
A59: toptenreviews.com | B59: 7 | C59: 0.001006571741 | D59: 1863.216
A60: findthebest.com | B60: 9 | C60: 0.0009565698871 | D60: 1770.66
A61: reliablesoft.net | B61: 5 | C61: 0.0009526413089 | D61: 1763.388
A62: 123ranking.co.uk | B62: 9 | C62: 0.0008598626844 | D62: 1591.65
A63: webimax.co.uk | B63: 10 | C63: 0.0007014845839 | D63: 1298.484
A64: pluginseo.com | B64: 6 | C64: 0.0006819632456 | D64: 1262.349
A65: envoc.com | B65: 6 | C65: 0.0006402998962 | D65: 1185.228
A66: seoworkers.com | B66: 7 | C66: 0.0006320634959 | D66: 1169.982
A67: wikihow.com | B67: 6 | C67: 0.0006192135014 | D67: 1146.196
A68: seoworks.com | B68: 10 | C68: 0.0005827520605 | D68: 1078.704
A69: gtmetrix.com | B69: 7 | C69: 0.0005739051964 | D69: 1062.328
A70: visualscope.com | B70: 8 | C70: 0.0005465974723 | D70: 1011.78
A71: chkme.com | B71: 9 | C71: 0.0004989974968 | D71: 923.67
A72: strategic-ranking.com | B72: 9 | C72: 0.0004685121191 | D72: 867.24
A73: webpagetest.org | B73: 9 | C73: 0.0004530830498 | D73: 838.68
A74: webseoanalytics.com | B74: 10 | C74: 0.0003659314976 | D74: 677.358
A75: Grand Total | B75: 1 | C75: 1 | D75: 1851051.37

Sheet To Dos & Bugs

Sheet ShareOfSearch_SERPS (hidden)
A1: INDEX | B1: PAGEIND | C1: KEYWORD | D1: TLD | E1: LOCATION | F1: LANG | G1: URL | H1: HOSTNAME | I1: LINK VALUE | J1: DESCRIPTION | K1: DOMAIN
A2: 1 | B2: 1 | C2: seo | D2: co.uk | E2: uk | G2: http://en.wikipedia.org/wiki/Search_engine_optimization | H2: en.wikipedia.org | I2: Search engine optimization - Wikipedia, the free encyclopedia | J2: Search engine optimization (SEO) is the process of affecting the visibility of a website or a web page in a search engine's "natural" or un-paid ("organic") search ... | K2: wikipedia.org
A3: 2 | B3: 1 | C3: seo | D3: co.uk | E3: uk | G3: http://en.wikipedia.org/wiki/SEO_(disambiguation) | H3: en.wikipedia.org | I3: SEO (disambiguation) - Wikipedia, the free encyclopedia | J3: SEO refers to search engine optimization: the process of improving the ranking ... | K3: wikipedia.org
A4: 3 | B4: 1 | C4: seo | D4: co.uk | E4: uk | G4: http://www.majesticseo.com/ | H4: www.majesticseo.com | I4: Majestic SEO : Backlink Checker & Site Explorer | J4: Majestic SEO - Link intelligence tools for SEO and Internet PR and Marketing. Site Explorer shows inbound link and site summary data. | K4: majesticseo.com
A5: 4 | B5: 1 | C5: seo | D5: co.uk | E5: uk | G5: http://searchengineland.com/guide/what-is-seo | H5: searchengineland.com | I5: What Is SEO / Search Engine Optimization? - Search Engine Land | J5: Get started learning all about SEO from the industry's most trusted source, Search Engine Land. Review basics of search engine optimization, ranking factors ... | K5: searchengineland.com
A6: 5 | B6: 1 | C6: seo | D6: co.uk | E6: uk | G6: http://www.screamingfrog.co.uk/seo-spider/ | H6: www.screamingfrog.co.uk | I6: Screaming Frog SEO Spider Tool & Crawler Software | Screaming ... | J6: The Screaming Frog SEO Spider is a small desktop program (PC or Mac) which crawls websites' links, images, CSS, script and apps from an SEO perspective. | K6: screamingfrog.co.uk
A7: 6 | B7: 1 | C7: seo | D7: co.uk | E7: uk | G7: http://www.theguardian.com/technology/seo | H7: www.theguardian.com | I7: SEO | Technology | The Guardian | J7: Latest news and comment on SEO from the Guardian. | K7: theguardian.com
A8: 7 | B8: 1 | C8: seo | D8: co.uk | E8: uk | G8: http://www.theguardian.com/small-business-network/2014/jan/16/what-is-seo-how-website-google-visibility | H8: www.theguardian.com | I8: What is SEO and how can it help my website's Google visibility ... | J8: 7 Jul 2014 ... Learning how to improve your site's SEO can significantly improve your business' prominence in online search results. | K8: theguardian.com
A9: 8 | B9: 1 | C9: seo | D9: co.uk | E9: uk | G9: http://www.seo-london.com/ | H9: www.seo-london.com | I9: Welcome To SEO London | J9: SEO Careers Programmes Applications are STILL open! Please click here to make an application for internships and graduate roles in banking, corporate law, ... | K9: seo-london.com
A10: 9 | B10: 1 | C10: seo | D10: co.uk | E10: uk | G10: https://support.google.com/webmasters/answer/35291%3Fhl%3Den | H10: support.google.com | I10: Do you need an SEO? - Webmaster Tools Help - Google Help | J10: SEO is an acronym for "search engine optimization" or "search engine optimizer." Deciding to hire an SEO is a big decision that can potentially improve your site ... | K10: google.com
A11: 10 | B11: 2 | C11: seo | D11: co.uk | E11: uk | G11: http://www.brightonseo.com/ | H11: www.brightonseo.com | I11: BrightonSEO « a free search marketing conference in Brighton | J11: As the owner of a small business I have spent the past year trying to navigate the world of SEO myself with no experience or budget to invest in paying an ... | K11: brightonseo.com
A12: 11 | B12: 2 | C12: seo | D12: co.uk | E12: uk | G12: https://www.highposition.com/ | H12: www.highposition.com | I12: SEO & Digital Marketing Services by High Position UK | J12: High Position specialises in SEO, PPC, Content, Analytics and CRO - delivering innovative digital marketing strategies for clients since 1997. Meet our team of ... | K12: highposition.com
A13: 12 | B13: 2 | C13: seo | D13: co.uk | E13: uk | G13: http://www.analyticsseo.com/ | H13: www.analyticsseo.com | I13: SEO Software | Online SEO & Social Marketing Platform | SEO ... | J13: FREE accounts available! Our SEO Software & Online Marketing tools will help you measure any SEO and Social Marketing campaign. Track. Measure. Improve ... | K13: analyticsseo.com
A14: 13 | B14: 2 | C14: seo | D14: co.uk | E14: uk | G14: http://www.attacat.co.uk/seo | H14: www.attacat.co.uk | I14: SEO (Search Engine Optimisation) | Attacat of Edinburgh | J14: SEO & Search Engine Optimisation services including consultancy & training from Edinburgh based Attacat. | K14: attacat.co.uk
A15: 14 | B15: 2 | C15: seo | D15: co.uk | E15: uk | G15: http://www.ihaveawebsite-nowwhat.co.uk/ | H15: www.ihaveawebsite-nowwhat.co.uk | I15: Search Engine Optimisation (SEO) is a flair not a science. | J15: Offers search engine optimization, free keyword checking, and SEO strategies for unlisted UK websites. | K15: ihaveawebsite-nowwhat.co.uk
A16: 15 | B16: 2 | C16: seo | D16: co.uk | E16: uk | G16: http://skyrocketseo.com/ | H16: skyrocketseo.com | I16: Skyrocket SEO - Content Creation & Content Promotion | J16: We devise and produce world-class content to connect clients with authoritative publishers, bloggers and webmasters on a daily basis. | K16: skyrocketseo.com
A17: 16 | B17: 2 | C17: seo | D17: co.uk | E17: uk | G17: http://www.redevolution.com/seo-explained/ | H17: www.redevolution.com | I17: SEO Explained, Our Super Hero SEO Man Gives You The Low ... | J17: Our SEO super hero SEO Man explains all about search engine optimisation in simple language. | K17: redevolution.com
A18: 17 | B18: 2 | C18: seo | D18: co.uk | E18: uk | G18: http://www.latitudegroup.com/our-services/channel-by-channel/seo | H18: www.latitudegroup.com | I18: SEO Services from Latitude Digital Marketing | J18: At Latitude we provide SEO products that are tailored specifically to your business needs that include a technical, content and outreach approach. | K18: latitudegroup.com
A19: 18 | B19: 2 | C19: seo | D19: co.uk | E19: uk | G19: http://www.news24.com/MyNews24/SEO-explained-20-quick-current-factors-20140907 | H19: www.news24.com | I19: SEO explained - 20 quick current factors | News24 | J19: 8 Sep 2014 ... What is the most important SEO for any website owner but more particular for small and medium businesses? | K19: news24.com
A20: 19 | B20: 2 | C20: seo | D20: co.uk | E20: uk | G20: http://www.linkdex.com/resources/r/seo-now-2014-ebook/ | H20: www.linkdex.com | I20: SEO Now. 2014 | Linkdex | J20: Welcome to SEO Now The ultimate barometer of where SEO is in 2014 if you're a brand wanting to be found, develop relationships with customers, and of... | K20: linkdex.com
A21: 20 | B21: 3 | C21: seo | D21: co.uk | E21: uk | G21: http://www.goup.co.uk/ | H21: www.goup.co.uk | I21: Go Up: SEO London | London SEO Agency | Web Design | J21: Go Up is a digital agency providing the best web design, inbound marketing, online PR and SEO London has to offer. We invite your company to Go Up online ! | K21: goup.co.uk
A22: 1 | B22: 1 | C22: search engine optimization | D22: co.uk | E22: uk | G22: http://en.wikipedia.org/wiki/Search_engine_optimization | H22: en.wikipedia.org | I22: Search engine optimization - Wikipedia, the free encyclopedia | J22: Search engine optimization (SEO) is the process of affecting the visibility of a website or a web page in a search engine's "natural" or un-paid ("organic") search ... | K22: wikipedia.org
A23: 2 | B23: 1 | C23: search engine optimization | D23: co.uk | E23: uk | G23: http://www.google.co.uk/webmasters/docs/search-engine-optimization-starter-guide.pdf | H23: www.google.co.uk | I23: Search Engine Optimization Starter Guide - Google | J23: the topic of search engine optimization and wish to improve their ... Even though this guide's title contains the words "search engine", we'd like to say that you ... | K23: google.co.uk
A24: 3 | B24: 1 | C24: search engine optimization | D24: co.uk | E24: uk | G24: http://searchengineland.com/guide/what-is-seo | H24: searchengineland.com | I24: What Is SEO / Search Engine Optimization? - Search Engine Land | J24: Get started learning all about SEO from the industry's most trusted source, Search Engine Land. Review basics of search engine optimization, ranking factors ... | K24: searchengineland.com
A25: 4 | B25: 1 | C25: search engine optimization | D25: co.uk | E25: uk | G25: https://support.google.com/webmasters/answer/35291%3Fhl%3Den | H25: support.google.com | I25: Do you need an SEO? - Webmaster Tools Help - Google Help | J25: SEO is an acronym for "search engine optimization" or "search engine optimizer." Deciding to hire an SEO is a big decision that can potentially improve your site ... | K25: google.com
A26: 5 | B26: 1 | C26: search engine optimization | D26: co.uk | E26: uk | G26: http://searchenginewatch.com/article/2259693/SEO-Basics-8-Essentials-When-Optimizing-Your-Site | H26: searchenginewatch.com | I26: SEO Basics: 8 Essentials When Optimizing Your Site - SEW | J26: 31 Dec 2013 ... Basic search engine optimization (SEO) is fundamental. And essential. SEO will help you position your website properly to be found at the most ... | K26: searchenginewatch.com
A27: 6 | B27: 1 | C27: search engine optimization | D27: co.uk | E27: uk | G27: http://www.majesticseo.com/ | H27: www.majesticseo.com | I27: Majestic SEO : Backlink Checker & Site Explorer | J27: Majestic SEO - Link intelligence tools for SEO and Internet PR and Marketing. Site Explorer shows inbound link and site summary data. | K27: majesticseo.com
A28: 7 | B28: 1 | C28: search engine optimization | D28: co.uk | E28: uk | G28: http://www.webopedia.com/TERM/S/SEO.html | H28: www.webopedia.com | I28: What is Search Engine Optimization (SEO)? Webopedia | J28: SEO is strategies, techniques and tactics to increase the number of visitors to a website by obtaining a high-ranking placement in search results. | K28: webopedia.com
A29: 8 | B29: 1 | C29: search engine optimization | D29: co.uk | E29: uk | G29: http://www.hobo-web.co.uk/seo-tutorial/ | H29: www.hobo-web.co.uk | I29: Google SEO Tutorial for Beginners | How To SEO A Website Step By ... | J29: 2 Apr 2013 ... Here are some free search engine optimisation tips for you to help you create a successful site, based on over 10 years experience making ... | K29: hobo-web.co.uk
A30: 9 | B30: 1 | C30: search engine optimization | D30: co.uk | E30: uk | G30: http://www.screamingfrog.co.uk/search-engine-optimisation/ | H30: www.screamingfrog.co.uk | I30: Search Engine Optimisation (SEO) Services Agency | Screaming Frog | J30: Find out how Screaming Frog can help you leap to the top of the search engines with our innovative & transparent search engine optimisation (SEO) services. | K30: screamingfrog.co.uk
A31: 10 | B31: 2 | C31: search engine optimization | D31: co.uk | E31: uk | G31: http://moz.com/beginners-guide-to-seo | H31: moz.com | I31: SEO: The Free Beginner's Guide From Moz | J31: 1 Mar 2013 ... New to SEO? Need to polish up your knowledge? The Beginner's Guide to SEO has been read over 1 million times and provides the ... | K31: moz.com
A32: 11 | B32: 2 | C32: search engine optimization | D32: co.uk | E32: uk | G32: http://www.redevolution.com/what-is-seo/ | H32: www.redevolution.com | I32: What is SEO? Here's A Simple Plain English Answer, SEO in a ... | J32: Wondering what search engine optimisation is all about. Here's a simple explanation of SEO. A straightforward answer to the question, what is SEO? | K32: redevolution.com
A33: 12 | B33: 2 | C33: search engine optimization | D33: co.uk | E33: uk | G33: http://computer.howstuffworks.com/search-engine-optimization.htm | H33: computer.howstuffworks.com | I33: HowStuffWorks "How Search Engine Optimization (SEO) Works" | J33: Search engine optimization (SEO) is a collection of techniques used to increase a Web site's ranking in search engine results pages. Learn about SEO. | K33: howstuffworks.com
A34: 13 | B34: 2 | C34: search engine optimization | D34: co.uk | E34: uk | G34: http://www.bruceclay.com/eu/seo/search-engine-optimization.htm | H34: www.bruceclay.com | I34: Bruce Clay EU - Search Engine Optimization Training and SEO ... | J34: Free step-by-step SEO tutorial with tools and advice. Search Engine Optimization services, classroom SEO training, SEO tools, site Assessments, free tips, ... | K34: bruceclay.com
A35: 14 | B35: 2 | C35: search engine optimization | D35: co.uk | E35: uk | G35: https://econsultancy.com/reports/seo-best-practice-guide | H35: econsultancy.com | I35: Search Engine Optimization (SEO) Best Practice Guide | Econsultancy | J35: Built on the foundations of our previous, highly-renowned report, Econsultancy's SEO Best Practice Guide contains everything you need to know about search ... | K35: econsultancy.com
A36: 15 | B36: 2 | C36: search engine optimization | D36: co.uk | E36: uk | G36: http://www.entrepreneur.com/seo/ | H36: www.entrepreneur.com | I36: SEO | Search Engine Optimization - Entrepreneur | J36: The latest SEO news, tips, and tools for growing your business online. Search engine optimization strategies to get more traffic and sales from Entrepreneur. | K36: entrepreneur.com
A37: 16 | B37: 2 | C37: search engine optimization | D37: co.uk | E37: uk | G37: http://www.submitexpress.com/ | H37: www.submitexpress.com | I37: Search Engine Marketing & Search Engine Optimization Services | J37: ... search engine optimization (SEO) marketing services & placement since 1998. Ranked the #1 Search Engine Optimization (SEO) Firm by Website Magazine. | K37: submitexpress.com
A38: 17 | B38: 2 | C38: search engine optimization | D38: co.uk | E38: uk | G38: http://www.searchenginejournal.com/55-quick-seo-tips-even-your-mother-would-love/ | H38: www.searchenginejournal.com | I38: 55 Quick SEO Tips Even Your Mother Would Love - Search Engine ... | J38: 55 quick SEO tips to help your rank your site higher. | K38: searchenginejournal.com
A39: 18 | B39: 2 | C39: search engine optimization | D39: co.uk | E39: uk | G39: http://www.searchenginejournal.com/category/search-engine-optimization/ | H39: www.searchenginejournal.com | I39: SEO Archives - Search Engine Journal | J39: SEJ brings you updates and how-to's from search marketing's best known experts on the world of SEO, paid search, social, analytics and tools. | K39: searchenginejournal.com
A40: 19 | B40: 2 | C40: search engine optimization | D40: co.uk | E40: uk | G40: http://www.seochat.com/ | H40: www.seochat.com | I40: SEO Chat | Search Engine Optimization News and Talk | J40: Welcome to Seochat, a community dedicated to helping beginners and professionals alike in improving their Search Engine Optimization knowledge. Join Now | K40: seochat.com
A41: 20 | B41: 3 | C41: search engine optimization | D41: co.uk | E41: uk | G41: http://www.seobook.com/ | H41: www.seobook.com | I41: SEO Book.com ~ SEO Training Made Easy | J41: "Aaron Wall's SEO Book is the best guide I have found for getting serious web visibility." - Professor J. Michael Steele, The Wharton School. And now you can ... | K41: seobook.com
A42: 1 | B42: 1 | C42: seo services | D42: co.uk | E42: uk | G42: http://www.getmanic.co.uk/ | H42: www.getmanic.co.uk | I42: SEO Services | Social Media Marketing | Website Design UK | J42: Get Manic SEO & social media marketing UK. We specialise in local and national SEO services and website design to drive more traffic to your website. | K42: getmanic.co.uk
A43: 2 | B43: 1 | C43: seo services | D43: co.uk | E43: uk | G43: http://www.jointplan.co.uk/local-seo-expert | H43: www.jointplan.co.uk | I43: UK Local SEO Expert Services | Affordable SEO - Joint Plan | J43: Affordable SEO from the SEO Company from Bradford supporting local and national small businesses in SEO. | K43: jointplan.co.uk
A44: 3 | B44: 1 | C44: seo services | D44: co.uk | E44: uk | G44: http://en.wikipedia.org/wiki/Search_engine_optimization | H44: en.wikipedia.org | I44: Search engine optimization - Wikipedia, the free encyclopedia | J44: Search engine optimization (SEO) is the process of affecting the visibility of a .... Wired magazine reported that the same company sued blogger and SEO Aaron ... | K44: wikipedia.org
A45: 4 | B45: 1 | C45: seo services | D45: co.uk | E45: uk | G45: http://www.screamingfrog.co.uk/search-engine-optimisation/ | H45: www.screamingfrog.co.uk | I45: Search Engine Optimisation (SEO) Services Agency | Screaming Frog | J45: Find out how Screaming Frog can help you leap to the top of the search engines with our innovative & transparent search engine optimisation (SEO) services. | K45: screamingfrog.co.uk
A46: 5 | B46: 1 | C46: seo services | D46: co.uk | E46: uk | G46: http://www.rebootonline.com/ | H46: www.rebootonline.com | I46: SEO Services and Online Marketing From Reboot Online | J46: We do not offer anything else but ethical and organic SEO services. Being a small team means we have no need for “account managers” or other go betweens ... | K46: rebootonline.com
A47: 6 | B47: 1 | C47: seo services | D47: co.uk | E47: uk | G47: http://www.mainstreethost.com/ | H47: www.mainstreethost.com | I47: Mainstreethost: Affordable SEO & Search Engine Marketing ... | J47: Mainstreethost specializes in search engine optimization (SEO), paid search marketing, website design, ... See exactly what our services have done for you. | K47: mainstreethost.com
A48: 7 | B48: 1 | C48: seo services | D48: co.uk | E48: uk | G48: http://www.adjuice.co.uk/ | H48: www.adjuice.co.uk | I48: Surrey SEO & PPC Specialist | AdJuice SEO Services | J48: Our SEO services & PPC management expertise make website marketing easy for companies in Surrey, Berkshire, Hampshire and the South East. | K48: adjuice.co.uk
A49: 8 | B49: 1 | C49: seo services | D49: co.uk | E49: uk | G49: http://www.uwpgroup.co.uk/service/seo-london/ | H49: www.uwpgroup.co.uk | I49: UWP: London's No. 1 SEO company - UWP Group | J49: Our great value SEO has never failed. We'll get your site to the top of Google. If we don't, you don't pay. All kinds of clients – always the same outcome. | K49: uwpgroup.co.uk
A50: 9 | B50: 1 | C50: seo services | D50: co.uk | E50: uk | G50: http://www.seoservicepros.co.uk/ | H50: www.seoservicepros.co.uk | I50: Professional SEO services | Internet marketing consultants | J50: At SEO Service Pros, we believe every company is unique. This is why we don't offer you off-the-shelf SEO packages. Instead, we deliver only the services you ... | K50: seoservicepros.co.uk
A51: 10 | B51: 1 | C51: seo services | D51: co.uk | E51: uk | G51: http://www.seoconsultancyltd.com/ | H51: www.seoconsultancyltd.com | I51: SEO Consultancy Ltd a SEO Company That Gets Results | J51: SEO Consultancy Ltd, an Internationally Recognized SEO Company. Specializing in Local and National SEO services with Top SEO Consultants in UK and ... | K51: seoconsultancyltd.com
A52: 11 | B52: 2 | C52: seo services | D52: co.uk | E52: uk | G52: http://www.123ranking.co.uk/ | H52: www.123ranking.co.uk | I52: Cheap SEO Services - Low cost & highly rated SEO company in ... | J52: 123 Ranking Based in Leicester. We offer cheap SEO marketing services for SME companies in the UK. | K52: 123ranking.co.uk
A53: 12 | B53: 2 | C53: seo services | D53: co.uk | E53: uk | G53: http://www.seoconsultancyltd.com/choosing-right-seo-services/ | H53: www.seoconsultancyltd.com | I53: SEO Services - A SEO Company That Delivers - SEO Consultancy Ltd | J53: SEO Consultancy Ltd, one of the best SEO Services Company in UK and USA. We deliver consistent rankings in some of the most difficult sectors, we can help! | K53: seoconsultancyltd.com
A54: 13 | B54: 2 | C54: seo services | D54: co.uk | E54: uk | G54: http://www.expertseobournemouth.co.uk/ | H54: www.expertseobournemouth.co.uk | I54: SEO Bournemouth - SEO Services Bournemouth - Expert Company ... | J54: Expert SEO Bournemouth. The leading SEO Company in Bournemouth. Cutting edge SEO Services Bournemouth that produce results. Search Engine ... | K54: expertseobournemouth.co.uk
A55: 14 | B55: 2 | C55: seo services | D55: co.uk | E55: uk | G55: http://www.found.co.uk/ | H55: www.found.co.uk | I55: Found: SEO Services and PPC Management Agency London | J55: Found. London-based award-winning online performance marketing agency. We only earn when our clients earn. PPC. SEO, Social, Mobile. | K55: found.co.uk
A56: 15 | B56: 2 | C56: seo services | D56: co.uk | E56: uk | G56: http://www.found.co.uk/services/natural-search-seo/ | H56: www.found.co.uk | I56: SEO Services London / Search Engine Optimisation Agency | Found | J56: Increase traffic to your website with Search Engine Optimisation from London online marketing and SEO services agency Found. | K56: found.co.uk
A57: 16 | B57: 2 | C57: seo services | D57: co.uk | E57: uk | G57: http://searchenginewatch.com/article/2267471/How-Much-Should-You-Spend-on-SEO-Services | H57: searchenginewatch.com | I57: How Much Should You Spend on SEO Services? - SEW | J57: 27 Dec 2013 ... Contract services at fixed prices: Nearly all SEO agencies sell contract services. Often, before a client is ready to engage a monthly retainer, ... | K57: searchenginewatch.com
A58: 17 | B58: 2 | C58: seo services | D58: co.uk | E58: uk | G58: http://www.creode.co.uk/services/seo-services | H58: www.creode.co.uk | I58: SEO Services Leeds | Creode Digital Marketing Agency | J58: We provide high yielding SEO Services in Leeds & London through a wide range of Digital Marketing channels. Search engine optimisation is here to stay! | K58: creode.co.uk
A59: 18 | B59: 2 | C59: seo services | D59: co.uk | E59: uk | G59: http://www.rankno1.co.uk/ | H59: www.rankno1.co.uk | I59: SEO Company UK, Rank no1, SEO Drives Traffic, Leads and Sales | J59: SEO company UK Rank No1, FREE Advice and FREE SEO Report From Leading Experts, Search Engine Optimization Drives Traffic, Leads and Sales. ... Read ... | K59: rankno1.co.uk
A60: 19 | B60: 2 | C60: seo services | D60: co.uk | E60: uk | G60: http://www.hobo-web.co.uk/ | H60: www.hobo-web.co.uk | I60: Hobo SEO Agency | PPC & SEO Services in Glasgow | Scotland | UK | J60: I've been a reader of the blog for a fair while and check most days for new posts. I' ve also downloaded your seo and link building ebooks. I found you through ... | K60: hobo-web.co.uk
A61: 20 | B61: 2 | C61: seo services | D61: co.uk | E61: uk | G61: http://www.seoperspective.com/ | H61: www.seoperspective.com | I61: SEO Services UK | London SEO Agency | London SEO Consultants | J61: SEO Perspective : SEO services company UK offers exclusive website optimization service by London SEO experts.Call 0203 199 4421 to get started TODAY. | K61: seoperspective.com
A62: 1 | B62: 1 | C62: seo company | D62: co.uk | E62: uk | G62: http://www.rebootonline.com/ | H62: www.rebootonline.com | I62: SEO Services and Online Marketing From Reboot Online | J62: Here at REBOOT we do not claim to be the largest internet marketing or SEO company. In fact, we are proud to be a small 5 person team consisting of Shai, ... | K62: rebootonline.com
A63: 2 | B63: 1 | C63: seo company | D63: co.uk | E63: uk | G63: http://maps.google.co.uk/maps?hl=&gl=uk&lr=&num=10&um=1&ie=UTF-8&fb=1&q=seo%2Bcompany&hq=seo%2Bcompany&hnear=0x48768014e63fc7d3:0xb682f981a1a3f622,Crowthorne,+Bracknell+Forest | H63: maps.google.co.uk | I63: Local business results for seo+company near Crowthorne, Bracknell Forest | J63: Here at REBOOT we do not claim to be the largest internet marketing or SEO company. In fact, we are proud to be a small 5 person team consisting of Shai, ... | K63: google.co.uk
A64: 3 | B64: 1 | C64: seo company | D64: co.uk | E64: uk | G64: http://www.getmanic.co.uk/ | H64: www.getmanic.co.uk | I64: SEO Services | Social Media Marketing | Website Design UK | J64: Get Manic SEO & social media marketing UK. We specialise in local and national SEO services and website design to drive more traffic to your website. | K64: getmanic.co.uk
A65: 4 | B65: 1 | C65: seo company | D65: co.uk | E65: uk | G65: http://www.uwpgroup.co.uk/service/seo-london/ | H65: www.uwpgroup.co.uk | I65: UWP: London's No. 1 SEO company - UWP Group | J65: Our great value SEO has never failed. We'll get your site to the top of Google. If we don't, you don't pay. All kinds of clients – always the same outcome. | K65: uwpgroup.co.uk
A66: 5 | B66: 1 | C66: seo company | D66: co.uk | E66: uk | G66: http://www.seoconsultancyltd.com/choosing-right-seo-services/ | H66: www.seoconsultancyltd.com | I66: SEO Services - A SEO Company That Delivers - SEO Consultancy Ltd | J66: SEO Consultancy Ltd, one of the best SEO Services Company in UK and USA. We deliver consistent rankings in some of the most difficult sectors, we can help! | K66: seoconsultancyltd.com
A67: 6 | B67: 1 | C67: seo company | D67: co.uk | E67: uk | G67: http://www.seoconsultancyltd.com/ | H67: www.seoconsultancyltd.com | I67: SEO Consultancy Ltd a SEO Company That Gets Results | J67: SEO Consultancy Ltd, an Internationally Recognized SEO Company. Specializing in Local and National SEO services with Top SEO Consultants in UK and ... | K67: seoconsultancyltd.com
A68: 7 | B68: 1 | C68: seo company | D68: co.uk | E68: uk | G68: http://www.forbes.com/sites/joshsteimle/2013/09/23/4-tips-for-hiring-the-right-seo-firm/ | H68: www.forbes.com | I68: 4 Tips For Hiring The Right SEO Firm - Forbes | J68: 23 Sep 2013 ... You've got a problem. You've been tasked with hiring an search engine optimization (SEO) firm to provide various online marketing services to ... | K68: forbes.com
A69: 8 | B69: 1 | C69: seo company | D69: co.uk | E69: uk | G69: http://en.wikipedia.org/wiki/Search_engine_optimization | H69: en.wikipedia.org | I69: Search engine optimization - Wikipedia, the free encyclopedia | J69: Search engine optimization (SEO) is the process of affecting the visibility of a .... Wired magazine reported that the same company sued blogger and SEO Aaron ... | K69: wikipedia.org
A70: 9 | B70: 1 | C70: seo company | D70: co.uk | E70: uk | G70: http://www.upstream.co.uk/ | H70: www.upstream.co.uk | I70: Upstream Multilingual SEO Company in Brighton, UK| PPC & Social ... | J70: Upstream is a UK-based SEO Company. We are passionate about Internet Marketing and have achieved thousands of number one rankings for our clients. | K70: upstream.co.uk
A71: 10 | B71: 1 | C71: seo company | D71: co.uk | E71: uk | G71: http://www.hobo-web.co.uk/ | H71: www.hobo-web.co.uk | I71: Hobo SEO Agency | PPC & SEO Services in Glasgow | Scotland | UK | J71: I've been a reader of the blog for a fair while and check most days for new posts. I' ve also downloaded your seo and link building ebooks. I found you through ... | K71: hobo-web.co.uk
A72: 11 | B72: 1 | C72: seo company | D72: co.uk | E72: uk | G72: http://www.vanillacircus.co.uk/ | H72: www.vanillacircus.co.uk | I72: Vanilla Circus SEO Company run by one of the UK's leading SEO ... | J72: Best of Breed: VC is one of the most progressive SEO companies in the UK. Through our technology and insight, we offer long term, high volume web traffic ... | K72: vanillacircus.co.uk
A73: 12 | B73: 2 | C73: seo company | D73: co.uk | E73: uk | G73: http://www.seoco.co.uk/ | H73: www.seoco.co.uk | I73: The SEO Company – UK Search Engine Optimisation | J73: The SEO Company, a Morecambe based social media & search engine optimisation specialist. SMO & SEO services, news articles and resources. | K73: seoco.co.uk
A74: 13 | B74: 2 | C74: seo company | D74: co.uk | E74: uk | G74: http://www.adjuice.co.uk/ | H74: www.adjuice.co.uk | I74: Surrey SEO & PPC Specialist | AdJuice SEO Services | J74: Our SEO services & PPC management expertise make website marketing easy for companies in Surrey, Berkshire, Hampshire and the South East. | K74: adjuice.co.uk
A75: 14 | B75: 2 | C75: seo company | D75: co.uk | E75: uk | G75: http://www.risedigital.com/ | H75: www.risedigital.com | I75: Rise Digital: SEO Company London - Quality Search Engine ... | J75: Hello and welcome to Rise. Our London based agency offers a full complement of search marketing services, ensuring your website receives all the attention it ... | K75: risedigital.com
A76: 15 | B76: 2 | C76: seo company | D76: co.uk | E76: uk | G76: http://www.kdweb.co.uk/seo.htm | H76: www.kdweb.co.uk | I76: SEO Company - Web Designers | J76: KD Web is one of the UK's top SEO and digital internet marketing agency employing only the top SEO Developers and web designers trained in the latest search ... | K76: kdweb.co.uk
A77: 16 | B77: 2 | C77: seo company | D77: co.uk | E77: uk | G77: http://www.branded3.com/blogs/top-25-most-visible-seo-agencies-in-the-uk-according-to-searchmetrics/ | H77: www.branded3.com | I77: Top 25 Most Visible SEO Agencies in the UK According to ... | J77: 10 Jul 2013 ... Most people in the industry know not to judge an SEO company by their own rankings but there are still a lot of clients out there that choose an ... | K77: branded3.com
A78: 17 | B78: 2 | C78: seo company | D78: co.uk | E78: uk | G78: http://www.rankno1.co.uk/ | H78: www.rankno1.co.uk | I78: SEO Company UK, Rank no1, SEO Drives Traffic, Leads and Sales | J78: SEO company UK Rank No1, FREE Advice and FREE SEO Report From Leading Experts, Search Engine Optimization Drives Traffic, Leads and Sales. ... Read ... | K78: rankno1.co.uk
A79: 18 | B79: 2 | C79: seo company | D79: co.uk | E79: uk | G79: http://www.seosilly.co.uk/search-engine-optimisation/ | H79: www.seosilly.co.uk | I79: #1 SEO Company in Birmingham/Sutton Coldfield - World Class ... | J79: We are the Number #1 SEO Company in Birmingham, We let our results do the talking. Based in The Royal Town of Sutton Coldfield, we are search specialists. | K79: seosilly.co.uk
A80: 19 | B80: 2 | C80: seo company | D80: co.uk | E80: uk | G80: http://www.varnmedia.co.uk/seo-bath/ | H80: www.varnmedia.co.uk | I80: Search Engine Optimisation (SEO) Specialist Agency in Bath | J80: With proven results we are an experienced SEO agency & certified Google ... Varn Media is a local company and recognises how important it is to include ... | K80: varnmedia.co.uk
A81: 20 | B81: 2 | C81: seo company | D81: co.uk | E81: uk | G81: http://www.expertseobournemouth.co.uk/ | H81: www.expertseobournemouth.co.uk | I81: SEO Bournemouth - SEO Services Bournemouth - Expert Company ... | J81: Expert SEO Bournemouth. The leading SEO Company in Bournemouth. Cutting edge SEO Services Bournemouth that produce results. Search Engine ... | K81: expertseobournemouth.co.uk
A82: 1 | B82: 1 | C82: search optimization | D82: co.uk | E82: uk | G82: http://en.wikipedia.org/wiki/Search_engine_optimization | H82: en.wikipedia.org | I82: Search engine optimization - Wikipedia, the free encyclopedia | J82: Search engine optimization (SEO) is the process of affecting the visibility of a website or a web page in a search engine's "natural" or un-paid ("organic") search ... | K82: wikipedia.org
A83: 2 | B83: 1 | C83: search optimization | D83: co.uk | E83: uk | G83: http://www.google.co.uk/webmasters/docs/search-engine-optimization-starter-guide.pdf | H83: www.google.co.uk | I83: Search Engine Optimization Starter Guide - Google | J83: the topic of search engine optimization and wish to improve their sites' interaction with ... outlined below will make it easier for search engines to crawl, index. | K83: google.co.uk
A84: 3 | B84: 1 | C84: search optimization | D84: co.uk | E84: uk | G84: http://searchenginewatch.com/article/2259693/SEO-Basics-8-Essentials-When-Optimizing-Your-Site | H84: searchenginewatch.com | I84: SEO Basics: 8 Essentials When Optimizing Your Site - SEW | J84: 31 Dec 2013 ... Basic search engine optimization (SEO) is fundamental. And essential. SEO will help you position your website properly to be found at the most ... | K84: searchenginewatch.com
A85: 4 | B85: 1 | C85: search optimization | D85: co.uk | E85: uk | G85: http://searchengineland.com/guide/what-is-seo | H85: searchengineland.com | I85: What Is SEO / Search Engine Optimization? - Search Engine Land | J85: Get started learning all about SEO from the industry's most trusted source, Search Engine Land. Review basics of search engine optimization, ranking factors ... | K85: searchengineland.com
A86: 5 | B86: 1 | C86: search optimization | D86: co.uk | E86: uk | G86: https://support.google.com/webmasters/answer/35291%3Fhl%3Den | H86: support.google.com | I86: Do you need an SEO? - Webmaster Tools Help - Google Help | J86: SEO is an acronym for "search engine optimization" or "search engine optimizer." Deciding to hire an SEO is a big decision that can potentially improve your site ... | K86: google.com
A87: 6 | B87: 1 | C87: search optimization | D87: co.uk | E87: uk | G87: http://www.webopedia.com/TERM/S/SEO.html | H87: www.webopedia.com | I87: What is Search Engine Optimization (SEO)? Webopedia | J87: SEO is strategies, techniques and tactics to increase the number of visitors to a website by obtaining a high-ranking placement in search results. | K87: webopedia.com
A88: 7 | B88: 1 | C88: search optimization | D88: co.uk | E88: uk | G88: http://computer.howstuffworks.com/search-engine-optimization.htm | H88: computer.howstuffworks.com | I88: HowStuffWorks "How Search Engine Optimization (SEO) Works" | J88: Search engine optimization (SEO) is a collection of techniques used to increase a Web site's ranking in search engine results pages. Learn about SEO. | K88: howstuffworks.com
A89: 8 | B89: 1 | C89: search optimization | D89: co.uk | E89: uk | G89: http://moz.com/beginners-guide-to-seo | H89: moz.com | I89: SEO: The Free Beginner's Guide From Moz | J89: 1 Mar 2013 ... Search Engine Optimization isn't just about "engines." It's about making your site better for people too. At Moz we believe these principles go ... | K89: moz.com
A90: 9 | B90: 1 | C90: search optimization | D90: co.uk | E90: uk | G90: http://www.redevolution.com/what-is-seo/ | H90: www.redevolution.com | I90: What is SEO? Here's A Simple Plain English Answer, SEO in a ... | J90: Wondering what search engine optimisation is all about. Here's a simple explanation of SEO. A straightforward answer to the question, what is SEO? | K90: redevolution.com
A91: 10 | B91: 2 | C91: search optimization | D91: co.uk | E91: uk | G91: http://www.screamingfrog.co.uk/search-engine-optimisation/ | H91: www.screamingfrog.co.uk | I91: Search Engine Optimisation (SEO) Services Agency | Screaming Frog | J91: Find out how Screaming Frog can help you leap to the top of the search engines with our innovative & transparent search engine optimisation (SEO) services. | K91: screamingfrog.co.uk
A92: 11 | B92: 2 | C92: search optimization | D92: co.uk | E92: uk | G92: http://www.screamingfrog.co.uk/ | H92: www.screamingfrog.co.uk | I92: Screaming Frog: SEO, Search Engine Optimisation & Marketing | J92: Offers search engine optimisation and marketing services throughout the UK. Situated in Henley-on-Thames, Oxfordshire. | K92: screamingfrog.co.uk
A93: 12 | B93: 2 | C93: search optimization | D93: co.uk | E93: uk | G93: http://www.hobo-web.co.uk/seo-tutorial/ | H93: www.hobo-web.co.uk | I93: Google SEO Tutorial for Beginners | How To SEO A Website Step By ... | J93: 2 Apr 2013 ... Here are some free search engine optimisation tips for you to help you create a successful site, based on over 10 years experience making ... | K93: hobo-web.co.uk
A94: 13 | B94: 2 | C94: search optimization | D94: co.uk | E94: uk | G94: http://www.businessinsider.com/10-basic-seo-tips-everyone-should-know-2010-1%3Fop%3D1 | H94: www.businessinsider.com | I94: 10 Basic SEO Tips To Get You Started - Business Insider | J94: 13 Jan 2010 ... Every business with a Web site should make Search Engine Optimization -- trying to get your site as high up as possible on Google and Bing ... | K94: businessinsider.com
A95: 14 | B95: 2 | C95: search optimization | D95: co.uk | E95: uk | G95: http://www.huffingtonpost.com/loolwa-khazzoom/three-steps-to-optimizing_b_4153411.html | H95: www.huffingtonpost.com | I95: 5 Steps to Optimizing Your Website for Search Engines | Loolwa ... | J95: 24 Oct 2013 ... There are many helpful books and websites dedicated to the philosophy, science , and art of Search Engine Optimization (SEO). While these ... | K95: huffingtonpost.com
A96: 15 | B96: 2 | C96: search optimization | D96: co.uk | E96: uk | G96: http://www.searchenginejournal.com/55-quick-seo-tips-even-your-mother-would-love/ | H96: www.searchenginejournal.com | I96: 55 Quick SEO Tips Even Your Mother Would Love - Search Engine ... | J96: Here are 55 quick tips for search engine optimization that even your mother could ... are a household name, your business name will probably get few searches. | K96: searchenginejournal.com
A97: 16 | B97: 2 | C97: search optimization | D97: co.uk | E97: uk | G97: http://www.entrepreneur.com/seo/ | H97: www.entrepreneur.com | I97: SEO | Search Engine Optimization - Entrepreneur | J97: The latest SEO news, tips, and tools for growing your business online. Search engine optimization strategies to get more traffic and sales from Entrepreneur. | K97: entrepreneur.com
A98: 17 | B98: 2 | C98: search optimization | D98: co.uk | E98: uk | G98: http://www.bruceclay.com/eu/seo/search-engine-optimization.htm | H98: www.bruceclay.com | I98: Bruce Clay EU - Search Engine Optimization Training and SEO ... | J98: Free step-by-step SEO tutorial with tools and advice. Search Engine Optimization services, classroom SEO training, SEO tools, site Assessments, free tips, ... | K98: bruceclay.com
A99: 18 | B99: 2 | C99: search optimization | D99: co.uk | E99: uk | G99: http://www.youtube.com/watch%3Fv%3DhF515-0Tduk | H99: www.youtube.com | I99: What Is Search Engine Optimization / SEO - YouTube | J99: 12 Sep 2011 - 4 min - Uploaded by Search Engine Land Don't know what search engine optimization is? Know someone who needs easy to ... | K99: youtube.com
A100: 19 | B100: 2 | C100: search optimization | D100: co.uk | E100: uk | G100: http://www.inc.com/magazine/20100701/how-to-optimize-your-site-for-search.html | H100: www.inc.com | I100: How to Optimize Your Site for Search | Inc.com | J100: 1 Jul 2010 ... But every company, big or small, can draw more Google traffic by using search- engine optimization -- SEO, for short. Traffic is directly related to ... | K100: www.inc.com
A101: 20 | B101: 3 | C101: search optimization | D101: co.uk | E101: uk | G101: http://www.youtube.com/watch%3Fv%3DhF515-0Tduk | H101: www.youtube.com | I101: What Is Search Engine Optimization / SEO - YouTube | J101: 12 Sep 2011 - 4 min - Uploaded by Search Engine Land Don't know what search engine optimization is? Know someone who needs easy to ... | K101: youtube.com
A102: 1 | B102: 1 | C102: search engine optimization seo | D102: co.uk | E102: uk | G102: http://en.wikipedia.org/wiki/Search_engine_optimization | H102: en.wikipedia.org | I102: Search engine optimization - Wikipedia, the free encyclopedia | J102: Search engine optimization (SEO) is the process of affecting the visibility of a website or a web page in a search engine's "natural" or un-paid ("organic") search ... | K102: wikipedia.org
A103: 2 | B103: 1 | C103: search engine optimization seo | D103: co.uk | E103: uk | G103: http://searchengineland.com/guide/what-is-seo | H103: searchengineland.com | I103: What Is SEO / Search Engine Optimization? - Search Engine Land | J103: Get started learning all about SEO from the industry's most trusted source, Search Engine Land. Review basics of search engine optimization, ranking factors ... | K103: searchengineland.com
A104: 3 | B104: 1 | C104: search engine optimization seo | D104: co.uk | E104: uk | G104: https://support.google.com/webmasters/answer/35291%3Fhl%3Den | H104: support.google.com | I104: Do you need an SEO? - Webmaster Tools Help - Google Help | J104: SEO is an acronym for "search engine optimization" or "search engine optimizer." Deciding to hire an SEO is a big decision that can potentially improve your site ... | K104: google.com
A105: 4 | B105: 1 | C105: search engine optimization seo | D105: co.uk | E105: uk | G105: http://www.google.co.uk/webmasters/docs/search-engine-optimization-starter-guide.pdf | H105: www.google.co.uk | I105: Search Engine Optimization Starter Guide - Google | J105: every day, every night, non stop. From here on, I'll be explaining various points on search engine optimization (SEO)! SEO Basics. Create unique, accurate page ... | K105: google.co.uk
A106: 5 | B106: 1 | C106: search engine optimization seo | D106: co.uk | E106: uk | G106: http://www.webopedia.com/TERM/S/SEO.html | H106: www.webopedia.com | I106: What is Search Engine Optimization (SEO)? Webopedia | J106: SEO is short for search engine optimization or search engine optimizer. Search engine optimization is a methodology of strategies, techniques and tactics used ... | K106: webopedia.com
A107: 6 | B107: 1 | C107: search engine optimization seo | D107: co.uk | E107: uk | G107: http://moz.com/beginners-guide-to-seo | H107: moz.com | I107: SEO: The Free Beginner's Guide From Moz | J107: 1 Mar 2013 ... What is Search Engine Optimization (SEO)? SEO is the practice of improving and promoting a web site in order to increase the number of ... | K107: moz.com
A108: 7 | B108: 1 | C108: search engine optimization seo | D108: co.uk | E108: uk | G108: http://searchenginewatch.com/seo | H108: searchenginewatch.com | I108: SEO: Search Engine Optimization, Link Building & Social Marketing ... | J108: Search Engine Optimization (SEO) tactics, tools, and news on website crawling, indexing and ranking; link building; algorithm changes; keyword research, and ... | K108: searchenginewatch.com
A109: 8 | B109: 1 | C109: search engine optimization seo | D109: co.uk | E109: uk | G109: http://searchenginewatch.com/article/2259693/SEO-Basics-8-Essentials-When-Optimizing-Your-Site | H109: searchenginewatch.com | I109: SEO Basics: 8 Essentials When Optimizing Your Site - SEW | J109: 31 Dec 2013 ... Basic search engine optimization (SEO) is fundamental. And essential. SEO will help you position your website properly to be found at the most ... | K109: searchenginewatch.com
A110: 9 | B110: 1 | C110: search engine optimization seo | D110: co.uk | E110: uk | G110: http://www.bruceclay.com/eu/seo/search-engine-optimization.htm | H110: www.bruceclay.com | I110: Bruce Clay EU - Search Engine Optimization Training and SEO ... | J110: Free step-by-step SEO tutorial with tools and advice. Search Engine Optimization services, classroom SEO training, SEO tools, site Assessments, free tips, ... | K110: bruceclay.com
A111: 10 | B111: 2 | C111: search engine optimization seo | D111: co.uk | E111: uk | G111: http://www.screamingfrog.co.uk/search-engine-optimisation/ | H111: www.screamingfrog.co.uk | I111: Search Engine Optimisation (SEO) Services Agency | Screaming Frog | J111: Find out how Screaming Frog can help you leap to the top of the search engines with our innovative & transparent search engine optimisation (SEO) services. | K111: screamingfrog.co.uk
A112: 11 | B112: 2 | C112: search engine optimization seo | D112: co.uk | E112: uk | G112: http://www.screamingfrog.co.uk/ | H112: www.screamingfrog.co.uk | I112: Screaming Frog: SEO, Search Engine Optimisation & Marketing | J112: Screaming Frog are an innovative search engine marketing agency offering search engine optimisation (SEO) and pay-per-click (PPC) advertising services. | K112: screamingfrog.co.uk
A113: 12 | B113: 2 | C113: search engine optimization seo | D113: co.uk | E113: uk | G113: http://computer.howstuffworks.com/search-engine-optimization.htm | H113: computer.howstuffworks.com | I113: HowStuffWorks "How Search Engine Optimization (SEO) Works" | J113: Search engine optimization (SEO) is a collection of techniques used to increase a Web site's ranking in search engine results pages. Learn about SEO. | K113: howstuffworks.com
A114: 13 | B114: 2 | C114: search engine optimization seo | D114: co.uk | E114: uk | G114: http://www.techterms.com/definition/seo | H114: www.techterms.com | I114: SEO (Search Engine Optimization) Definition | J114: Stands for "Search Engine Optimization." Just about every Webmaster wants his or her site to appear in the top listings of all the major search engines. Say, for ... | K114: techterms.com
A115: 14 | B115: 2 | C115: search engine optimization seo | D115: co.uk | E115: uk | G115: http://www.mainstreethost.com/services/search-engine-optimization.html | H115: www.mainstreethost.com | I115: Search Engine Optimization | Affordable SEO Services at ... | J115: Looking for an established search engine optimization company? ... Our SEO services give you long-lasting results that extend beyond a quick, temporary boost ... | K115: mainstreethost.com
A116: 15 | B116: 2 | C116: search engine optimization seo | D116: co.uk | E116: uk | G116: http://www.searchenginejournal.com/55-quick-seo-tips-even-your-mother-would-love/ | H116: www.searchenginejournal.com | I116: 55 Quick SEO Tips Even Your Mother Would Love - Search Engine ... | J116: 55 quick SEO tips to help your rank your site higher. ... Here are 55 quick tips for search engine optimization that even your mother could use to get cooking. Well ... | K116: searchenginejournal.com
A117: 16 | B117: 2 | C117: search engine optimization seo | D117: co.uk | E117: uk | G117: http://www.entrepreneur.com/seo/ | H117: www.entrepreneur.com | I117: SEO | Search Engine Optimization - Entrepreneur | J117: The latest SEO news, tips, and tools for growing your business online. Search engine optimization strategies to get more traffic and sales from Entrepreneur. | K117: entrepreneur.com
A118: 17 | B118: 2 | C118: search engine optimization seo | D118: co.uk | E118: uk | G118: http://www.youtube.com/watch%3Fv%3DhF515-0Tduk | H118: www.youtube.com | I118: What Is Search Engine Optimization / SEO - YouTube | J118: 12 Sep 2011 - 4 min - Uploaded by Search Engine Land Don't know what search engine optimization is? Know someone who needs easy to ... | K118: youtube.com
A119: 18 | B119: 2 | C119: search engine optimization seo | D119: co.uk | E119: uk | G119: http://www.hobo-web.co.uk/seo-tutorial/ | H119: www.hobo-web.co.uk | I119: Google SEO Tutorial for Beginners | How To SEO A Website Step By ... | J119: 2 Apr 2013 ... There are a lot of definitions of SEO (spelled Search engine optimisation in the UK, or search engine optimization in the US) but lets face it, ... | K119: hobo-web.co.uk
A120: 19 | B120: 2 | C120: search engine optimization seo | D120: co.uk | E120: uk | G120: http://www.iis.net/downloads/microsoft/search-engine-optimization-toolkit | H120: www.iis.net | I120: Search Engine Optimization Toolkit : The Official Microsoft IIS Site | J120: The IIS Search Engine Optimization (SEO) Toolkit helps Web developers, hosting providers, and Web server administrators to improve their Web site's relevance ... | K120: www.iis.net
A121: 20 | B121: 3 | C121: search engine optimization seo | D121: co.uk | E121: uk | G121: http://www.businessinsider.com/10-basic-seo-tips-everyone-should-know-2010-1%3Fop%3D1 | H121: www.businessinsider.com | I121: 10 Basic SEO Tips To Get You Started - Business Insider | J121: 13 Jan 2010 ... Every business with a Web site should make Search Engine Optimization -- trying to get your site as high up as possible on Google and Bing ... | K121: businessinsider.com
A122: 1 | B122: 1 | C122: seo tools | D122: co.uk | E122: uk | G122: http://tools.seobook.com/ | H122: tools.seobook.com | I122: Free SEO Tools & Search Engine Optimization Software | J122: We offer a wide array of free and paid SEO tools to SEO professionals and DIY webmasters. Below you will find some of our most popular SEO tools sorted by ... | K122: seobook.com
A123: 2 | B123: 1 | C123: seo tools | D123: co.uk | E123: uk | G123: http://smallseotools.com/ | H123: smallseotools.com | I123: 100% Free SEO Tools - online SEO tools | J123: 100% Free SEO tools. Let's use and feeling. Unique content checker, unique content rewriter, keyword position, online ping website tool. | K123: smallseotools.com
A124: 3 | B124: 1 | C124: seo tools | D124: co.uk | E124: uk | G124: http://moz.com/tools | H124: moz.com | I124: The Best Free SEO Tools in the Search Industry - Moz - Moz | J124: Explore free Moz tools for SEO, Twitter analytics, rank tracking, and moreâ plus advanced SEO and marketing tools in a Moz Pro subscription. | K124: moz.com
A125: 4 | B125: 1 | C125: seo tools | D125: co.uk | E125: uk | G125: http://www.microsoft.com/web/seo/ | H125: www.microsoft.com | I125: Free SEO Toolkit - Microsoft | J125: The SEO Toolkit with its detailed analysis and search engine friendly suggestions ... Use SEO recommendations to improve traffic and increase your revenue stream. ... Blogs; Web Platform Team Blog · IIS Team Blog · Web Tools Team Blog ... | K125: microsoft.com
A126: 5 | B126: 1 | C126: seo tools | D126: co.uk | E126: uk | G126: http://searchenginewatch.com/article/2303494/21-Best-FREE-SEO-Tools-for-On-Page-Optimization | H126: searchenginewatch.com | I126: 21 Best FREE SEO Tools for On-Page Optimization - SEW | J126: 29 Oct 2013 ... To reach the top of the SERPs and stay there, your website must deserve to be there. It needs to be the best in class. It must offer the best user ... | K126: searchenginewatch.com
A127: 6 | B127: 1 | C127: seo tools | D127: co.uk | E127: uk | G127: http://www.webconfs.com/ | H127: www.webconfs.com | I127: SEO Tools - Search Engine Optimization Tools | J127: Duplicate content validation tool and search engine spider simulators. | K127: webconfs.com
A128: 7 | B128: 1 | C128: seo tools | D128: co.uk | E128: uk | G128: http://www.submitexpress.com/tools.html | H128: www.submitexpress.com | I128: Search Engine Optimization Tools, Free Webmaster Tools, SEO Tools | J128: Submit Express offers a wide range of search engine optimization tools for Web site owners, webmasters and other online marketing experts. Use our SEO tools ... | K128: submitexpress.com
A129: 8 | B129: 1 | C129: seo tools | D129: co.uk | E129: uk | G129: http://www.seotoolset.com/tools/free_tools.html | H129: www.seotoolset.com | I129: SEOToolSet - Free SEO Tools - Try Free Search Engine ... | J129: free SEO tools to test, analyze and boost your SEO strategy here. To gain access to more powerful reports, try our SEOToolSet® in a 30-day trial period -- cancel ... | K129: seotoolset.com
A130: 9 | B130: 1 | C130: seo tools | D130: co.uk | E130: uk | G130: http://www.majesticseo.com/webmaster-tools | H130: www.majesticseo.com | I130: Webmaster Tools - Majestic SEO | J130: This tool allows you to verify ownership of your websites, and generate ... You can also import your pre-verified sites over from Google® Webmaster Tools, giving ... | K130: majesticseo.com
A131: 10 | B131: 1 | C131: seo tools | D131: co.uk | E131: uk | G131: http://www.majesticseo.com/support/tools | H131: www.majesticseo.com | I131: Link Intelligence Tools - Majestic SEO | J131: Our Backlink History tool allows SEOs to determine the number of backlinks detected by our sophisticated web robots for given domains, subdomains or URLs. | K131: majesticseo.com
A132: 11 | B132: 2 | C132: seo tools | D132: co.uk | E132: uk | G132: http://raventools.com/marketing-software/seo/ | H132: raventools.com | I132: SEO Software Tools: Site Audits, Link Building & More - Raven | J132: Perform site audits and conduct link building outreach with SEO software research and reporting tools from Raven. Loved by SEO obsessives and clients alike. | K132: raventools.com
A133: 12 | B133: 2 | C133: seo tools | D133: co.uk | E133: uk | G133: https://yoast.com/tools/seo/ | H133: yoast.com | I133: SEO Tools • Yoast | J133: 19 Aug 2014 ... Over the years I've created quite a few SEO tools, some of which quite a few people have been using. Have fun with them! Search plugin which ... | K133: yoast.com
A134: 13 | B134: 2 | C134: seo tools | D134: co.uk | E134: uk | G134: http://www.found.co.uk/seo-tool/ | H134: www.found.co.uk | I134: FOUND SEO Audit Tool - Free Online Canonicalisation & Link ... | J134: Founds Free Online SEO Audit Tool gives your URL a scan for technical issues. Fantastic canonicalisation error checks and more. | K134: found.co.uk
A135: 14 | B135: 2 | C135: seo tools | D135: co.uk | E135: uk | G135: http://seositecheckup.com/ | H135: seositecheckup.com | I135: SeoSiteCheckup.com: SEO Tools, Software and Articles | J135: Find comprehensive search engine optimization (SEO) tools for your site. | K135: seositecheckup.com
A136: 15 | B136: 2 | C136: seo tools | D136: co.uk | E136: uk | G136: http://www.seotools.com/ | H136: www.seotools.com | I136: Free SEO Tools | J136: Looking for the best free SEO Tools for Search Engine Optimization? Check out the free tool versions from Bruce Clay Inc. | K136: seotools.com
A137: 16 | B137: 2 | C137: seo tools | D137: co.uk | E137: uk | G137: http://www.seocompany.ca/tool/seo-tools.html | H137: www.seocompany.ca | I137: 140 SEO Tools - SEO Company | J137: SEO Tool Logo This SEO Tools page has links to the best SEO Tools on the internet and these tools will help you to optimize your website and move your search ... | K137: seocompany.ca
A138: 17 | B138: 2 | C138: seo tools | D138: co.uk | E138: uk | G138: http://www.wordstream.com/seo-tools | H138: www.wordstream.com | I138: SEO tools - WordStream | J138: SEO tools from WordStream give you more keywords and more data power to improve overall search performance. Try WordStream's SEO tools free. | K138: wordstream.com
A139: 18 | B139: 2 | C139: seo tools | D139: co.uk | E139: uk | G139: http://www.screamingfrog.co.uk/seo-spider/ | H139: www.screamingfrog.co.uk | I139: Screaming Frog SEO Spider Tool & Crawler Software | Screaming ... | J139: The Screaming Frog SEO Spider is a small desktop program (PC or Mac) which crawls websites' links, images, CSS, script and apps from an SEO perspective. | K139: screamingfrog.co.uk
A140: 19 | B140: 2 | C140: seo tools | D140: co.uk | E140: uk | G140: http://www.woorank.com/ | H140: www.woorank.com | I140: WooRank.com: Website Review - SEO Tool | J140: WooRank is the most popular Website Review and SEO Tool. Run a free Review. Then create an Advanced Review to track and optimize your website. | K140: woorank.com
A141: 20 | B141: 2 | C141: seo tools | D141: co.uk | E141: uk | G141: https://support.google.com/webmasters/answer/35291%3Fhl%3Den | H141: support.google.com | I141: Do you need an SEO? - Webmaster Tools Help - Google Help | J141: SEO is an acronym for "search engine optimization" or "search engine optimizer. ... Free resources such as Webmaster Tools, the official Webmaster Central ... | K141: google.com
A142: 1 | B142: 1 | C142: search engine optimisation | D142: co.uk | E142: uk | G142: http://en.wikipedia.org/wiki/Search_engine_optimization | H142: en.wikipedia.org | I142: Search engine optimization - Wikipedia, the free encyclopedia | J142: Search engine optimization (SEO) is the process of affecting the visibility of a website or a web page in a search engine's "natural" or un-paid ("organic") search ... | K142: wikipedia.org
A143: 2 | B143: 1 | C143: search engine optimisation | D143: co.uk | E143: uk | G143: http://www.google.co.uk/webmasters/docs/search-engine-optimization-starter-guide.pdf | H143: www.google.co.uk | I143: Search Engine Optimization Starter Guide - Google | J143: the topic of search engine optimization and wish to improve their ... Even though this guide's title contains the words "search engine", we'd like to say that you ... | K143: google.co.uk
A144: 3 | B144: 1 | C144: search engine optimisation | D144: co.uk | E144: uk | G144: http://searchengineland.com/guide/what-is-seo | H144: searchengineland.com | I144: What Is SEO / Search Engine Optimization? - Search Engine Land | J144: Get started learning all about SEO from the industry's most trusted source, Search Engine Land. Review basics of search engine optimization, ranking factors ... | K144: searchengineland.com
A145: 4 | B145: 1 | C145: search engine optimisation | D145: co.uk | E145: uk | G145: http://www.screamingfrog.co.uk/search-engine-optimisation/ | H145: www.screamingfrog.co.uk | I145: Search Engine Optimisation (SEO) Services Agency | Screaming Frog | J145: Find out how Screaming Frog can help you leap to the top of the search engines with our innovative & transparent search engine optimisation (SEO) services. | K145: screamingfrog.co.uk
A146: 5 | B146: 1 | C146: search engine optimisation | D146: co.uk | E146: uk | G146: http://searchenginewatch.com/article/2259693/SEO-Basics-8-Essentials-When-Optimizing-Your-Site | H146: searchenginewatch.com | I146: SEO Basics: 8 Essentials When Optimizing Your Site - SEW | J146: 31 Dec 2013 ... Basic search engine optimization (SEO) is fundamental. And essential. SEO will help you position your website properly to be found at the most ... | K146: searchenginewatch.com
A147: 6 | B147: 1 | C147: search engine optimisation | D147: co.uk | E147: uk | G147: https://support.google.com/webmasters/answer/35291%3Fhl%3Den | H147: support.google.com | I147: Do you need an SEO? - Webmaster Tools Help - Google Help | J147: SEO is an acronym for "search engine optimization" or "search engine optimizer." Deciding to hire an SEO is a big decision that can potentially improve your site ... | K147: google.com
A148: 7 | B148: 1 | C148: search engine optimisation | D148: co.uk | E148: uk | G148: http://www.hobo-web.co.uk/seo-tutorial/ | H148: www.hobo-web.co.uk | I148: Google SEO Tutorial for Beginners | How To SEO A Website Step By ... | J148: 2 Apr 2013 ... Here are some free search engine optimisation tips for you to help you create a successful site, based on over 10 years experience making ... | K148: hobo-web.co.uk
A149: 8 | B149: 1 | C149: search engine optimisation | D149: co.uk | E149: uk | G149: http://www.redevolution.com/what-is-seo/ | H149: www.redevolution.com | I149: What is SEO? Here's A Simple Plain English Answer, SEO in a ... | J149: Wondering what search engine optimisation is all about. Here's a simple explanation of SEO. A straightforward answer to the question, what is SEO? | K149: redevolution.com
A150: 9 | B150: 1 | C150: search engine optimisation | D150: co.uk | E150: uk | G150: http://moz.com/beginners-guide-to-seo | H150: moz.com | I150: SEO: The Free Beginner's Guide From Moz | J150: 1 Mar 2013 ... New to SEO? Need to polish up your knowledge? The Beginner's Guide to SEO has been read over 1 million times and provides the ... | K150: moz.com
A151: 10 | B151: 1 | C151: search engine optimisation | D151: co.uk | E151: uk | G151: http://www.webopedia.com/TERM/S/SEO.html | H151: www.webopedia.com | I151: What is Search Engine Optimization (SEO)? Webopedia | J151: SEO is strategies, techniques and tactics to increase the number of visitors to a website by obtaining a high-ranking placement in search results. | K151: webopedia.com
A152: 11 | B152: 2 | C152: search engine optimisation | D152: co.uk | E152: uk | G152: http://computer.howstuffworks.com/search-engine-optimization.htm | H152: computer.howstuffworks.com | I152: HowStuffWorks "How Search Engine Optimization (SEO) Works" | J152: Search engine optimization (SEO) is a collection of techniques used to increase a Web site's ranking in search engine results pages. Learn about SEO. | K152: howstuffworks.com
A153: 12 | B153: 2 | C153: search engine optimisation | D153: co.uk | E153: uk | G153: http://www.youtube.com/watch%3Fv%3DhF515-0Tduk | H153: www.youtube.com | I153: What Is Search Engine Optimization / SEO - YouTube | J153: 12 Sep 2011 - 4 min - Uploaded by Search Engine Land Don't know what search engine optimization is? Know someone who needs easy to ... | K153: youtube.com
A154: 13 | B154: 2 | C154: search engine optimisation | D154: co.uk | E154: uk | G154: http://www.theguardian.com/small-business-network/2014/jan/16/what-is-seo-how-website-google-visibility | H154: www.theguardian.com | I154: What is SEO and how can it help my website's Google visibility ... | J154: 7 Jul 2014 ... Learning how to improve your site's SEO can significantly improve your business' prominence in online search results. | K154: theguardian.com
A155: 14 | B155: 2 | C155: search engine optimisation | D155: co.uk | E155: uk | G155: https://econsultancy.com/reports/seo-best-practice-guide | H155: econsultancy.com | I155: Search Engine Optimization (SEO) Best Practice Guide | Econsultancy | J155: Built on the foundations of our previous, highly-renowned report, Econsultancy's SEO Best Practice Guide contains everything you need to know about search ... | K155: econsultancy.com
A156: 15 | B156: 2 | C156: search engine optimisation | D156: co.uk | E156: uk | G156: http://www.telegraph.co.uk/technology/internet/8663964/What-is-Search-Engine-Optimisation.html | H156: www.telegraph.co.uk | I156: What is Search Engine Optimisation? - Telegraph | J156: 27 Jul 2011 ... SEO, or Search Engine Optimisation, is a marketing technique for making a web page appear more frequently above others in a list of results ... | K156: telegraph.co.uk
A157: 16 | B157: 2 | C157: search engine optimisation | D157: co.uk | E157: uk | G157: http://www.attacat.co.uk/seo | H157: www.attacat.co.uk | I157: SEO (Search Engine Optimisation) | Attacat of Edinburgh | J157: SEO & Search Engine Optimisation services including consultancy & training from Edinburgh based Attacat. | K157: attacat.co.uk
A158: 17 | B158: 2 | C158: search engine optimisation | D158: co.uk | E158: uk | G158: http://www.bbc.co.uk/blogs/internet/posts/search_engine_optimisation_in | H158: www.bbc.co.uk | I158: BBC - Blogs - Internet blog - Search Engine Optimisation in BBC News | J158: 6 Sep 2012 ... This is the third and final in a series of posts about Search Engine Optimisation, following Duncan Bloor and Oliver Bartlett writing about ... | K158: www.bbc.co.uk
A159: 18 | B159: 2 | C159: search engine optimisation | D159: co.uk | E159: uk | G159: http://www.hallaminternet.com/internet-services/seo/ | H159: www.hallaminternet.com | I159: Search Engine Optimisation Agency: SEO Company | Hallam ... | J159: Ethical SEO Services from a company you can trust. Established in 1999, Hallam works for some of the UK's leading companies, as well as a wide range of ... | K159: hallaminternet.com
A160: 19 | B160: 2 | C160: search engine optimisation | D160: co.uk | E160: uk | G160: http://www.123live.co.uk/optimising-your-website-for-search-engines.htm | H160: www.123live.co.uk | I160: How to optimise your website for search engines - 123Live | J160: How to optimise your website for search engines. More SEO resources can be found at: www.organicseo.org. Search engine optimisation (SEO) is often seen as ... | K160: 123live.co.uk
A161: 20 | B161: 2 | C161: search engine optimisation | D161: co.uk | E161: uk | G161: http://googlewebmastercentral.blogspot.com/2008/11/googles-seo-starter-guide.html | H161: googlewebmastercentral.blogspot.com | I161: Official Google Webmaster Central Blog: Google's SEO Starter Guide | J161: 12 Nov 2008 ... There are lots of possible answers to this question, and a wealth of search engine optimization information on the web, so much that it can be ... | K161: blogspot.com
A162: 1 | B162: 1 | C162: what is search engine optimization | D162: co.uk | E162: uk | G162: http://searchengineland.com/guide/what-is-seo | H162: searchengineland.com | I162: What Is SEO / Search Engine Optimization? - Search Engine Land | J162: Get started learning all about SEO from the industry's most trusted source, Search Engine Land. Review basics of search engine optimization, ranking factors ... | K162: searchengineland.com
A163: 2 | B163: 1 | C163: what is search engine optimization | D163: co.uk | E163: uk | G163: http://en.wikipedia.org/wiki/Search_engine_optimization | H163: en.wikipedia.org | I163: Search engine optimization - Wikipedia, the free encyclopedia | J163: Search engine optimization (SEO) is the process of affecting the visibility of a website or a web page in a search engine's "natural" or un-paid ("organic") search ... | K163: wikipedia.org
A164: 3 | B164: 1 | C164: what is search engine optimization | D164: co.uk | E164: uk | G164: http://www.redevolution.com/what-is-seo/ | H164: www.redevolution.com | I164: What is SEO? Here's A Simple Plain English Answer, SEO in a ... | J164: Wondering what search engine optimisation is all about. Here's a simple explanation of SEO. A straightforward answer to the question, what is SEO? | K164: redevolution.com
A165: 4 | B165: 1 | C165: what is search engine optimization | D165: co.uk | E165: uk | G165: http://www.webopedia.com/TERM/S/SEO.html | H165: www.webopedia.com | I165: What is Search Engine Optimization (SEO)? Webopedia | J165: SEO is strategies, techniques and tactics to increase the number of visitors to a website by obtaining a high-ranking placement in search results. | K165: webopedia.com
A166: 5 | B166: 1 | C166: what is search engine optimization | D166: co.uk | E166: uk | G166: http://searchenginewatch.com/article/2259693/SEO-Basics-8-Essentials-When-Optimizing-Your-Site | H166: searchenginewatch.com | I166: SEO Basics: 8 Essentials When Optimizing Your Site - SEW | J166: 31 Dec 2013 ... Basic search engine optimization (SEO) is fundamental. And essential. SEO will help you position your website properly to be found at the most ... | K166: searchenginewatch.com
A167: 6 | B167: 1 | C167: what is search engine optimization | D167: co.uk | E167: uk | G167: http://www.google.co.uk/webmasters/docs/search-engine-optimization-starter-guide.pdf | H167: www.google.co.uk | I167: Search Engine Optimization Starter Guide - Google | J167: the topic of search engine optimization and wish to improve their ... Even though this guide's title contains the words "search engine", we'd like to say that you ... | K167: google.co.uk
A168: 7 | B168: 1 | C168: what is search engine optimization | D168: co.uk | E168: uk | G168: https://support.google.com/webmasters/answer/35291%3Fhl%3Den | H168: support.google.com | I168: Do you need an SEO? - Webmaster Tools Help - Google Help | J168: SEO is an acronym for "search engine optimization" or "search engine optimizer." Deciding to hire an SEO is a big decision that can potentially improve your site ... | K168: google.com
A169: 8 | B169: 1 | C169: what is search engine optimization | D169: co.uk | E169: uk | G169: http://moz.com/beginners-guide-to-seo | H169: moz.com | I169: SEO: The Free Beginner's Guide From Moz | J169: 1 Mar 2013 ... New to SEO? Need to polish up your knowledge? The Beginner's Guide to SEO has been read over 1 million times and provides the ... | K169: moz.com
A170: 9 | B170: 1 | C170: what is search engine optimization | D170: co.uk | E170: uk | G170: http://www.theguardian.com/small-business-network/2014/jan/16/what-is-seo-how-website-google-visibility | H170: www.theguardian.com | I170: What is SEO and how can it help my website's Google visibility ... | J170: 7 Jul 2014 ... Learning how to improve your site's SEO can significantly improve your business' prominence in online search results. | K170: theguardian.com
A171: 10 | B171: 2 | C171: what is search engine optimization | D171: co.uk | E171: uk | G171: http://www.webconfs.com/seo-tutorial/introduction-to-seo.php | H171: www.webconfs.com | I171: What Is SEO - WebConfs | J171: Whenever you enter a query in a search engine and hit 'enter' you get a list of web results that contain that query term. Users normally tend to visit websites that ... | K171: webconfs.com
A172: 11 | B172: 2 | C172: what is search engine optimization | D172: co.uk | E172: uk | G172: http://www.youtube.com/watch%3Fv%3DhF515-0Tduk | H172: www.youtube.com | I172: What Is Search Engine Optimization / SEO - YouTube | J172: 12 Sep 2011 - 4 min - Uploaded by Search Engine Land Don't know what search engine optimization is? Know someone who needs easy to ... | K172: youtube.com
A173: 12 | B173: 2 | C173: what is search engine optimization | D173: co.uk | E173: uk | G173: http://www.hobo-web.co.uk/what-is-seo-a-guide-for-beginners/ | H173: www.hobo-web.co.uk | I173: What Is SEO in 2014? - Hobo | J173: 31 Jul 2014 ... What is SEO - Search engine optimisation. a beginners guide to the craft of Google SEO in 2014. | K173: hobo-web.co.uk
A174: 13 | B174: 2 | C174: what is search engine optimization | D174: co.uk | E174: uk | G174: http://computer.howstuffworks.com/search-engine-optimization.htm | H174: computer.howstuffworks.com | I174: HowStuffWorks "How Search Engine Optimization (SEO) Works" | J174: Search engine optimization (SEO) is a collection of techniques used to increase a Web site's ranking in search engine results pages. Learn about SEO. | K174: howstuffworks.com
A175: 14 | B175: 2 | C175: what is search engine optimization | D175: co.uk | E175: uk | G175: http://www.whatisseo.com/ | H175: www.whatisseo.com | I175: What is SEO | whatisseo.com | J175: Information about what search engine optimization is, and how to avoid the pitfalls of using SEO. | K175: whatisseo.com
A176: 15 | B176: 2 | C176: what is search engine optimization | D176: co.uk | E176: uk | G176: http://www.bruceclay.com/eu/seo/search-engine-optimization.htm | H176: www.bruceclay.com | I176: Bruce Clay EU - Search Engine Optimization Training and SEO ... | J176: Free step-by-step SEO tutorial with tools and advice. Search Engine Optimization services, classroom SEO training, SEO tools, site Assessments, free tips, ... | K176: bruceclay.com
A177: 16 | B177: 2 | C177: what is search engine optimization | D177: co.uk | E177: uk | G177: http://www.entrepreneur.com/seo/ | H177: www.entrepreneur.com | I177: SEO | Search Engine Optimization - Entrepreneur | J177: The latest SEO news, tips, and tools for growing your business online. Search engine optimization strategies to get more traffic and sales from Entrepreneur. | K177: entrepreneur.com
A178: 17 | B178: 2 | C178: what is search engine optimization | D178: co.uk | E178: uk | G178: http://www.telegraph.co.uk/technology/internet/8663964/What-is-Search-Engine-Optimisation.html | H178: www.telegraph.co.uk | I178: What is Search Engine Optimisation? - Telegraph | J178: 27 Jul 2011 ... SEO, or Search Engine Optimisation, is a marketing technique for making a web page appear more frequently above others in a list of results ... | K178: telegraph.co.uk
A179: 18 | B179: 2 | C179: what is search engine optimization | D179: co.uk | E179: uk | G179: http://www.screamingfrog.co.uk/search-engine-optimisation/ | H179: www.screamingfrog.co.uk | I179: Search Engine Optimisation (SEO) Services Agency | Screaming Frog | J179: Find out how Screaming Frog can help you leap to the top of the search engines with our innovative & transparent search engine optimisation (SEO) services. | K179: screamingfrog.co.uk
A180: 19 | B180: 2 | C180: what is search engine optimization | D180: co.uk | E180: uk | G180: http://pointblankseo.com/what-is-seo/ | H180: pointblankseo.com | I180: What Is SEO and Why Should I Care? - Point Blank SEO | J180: Search Engine Optimization (SEO) • is the process of affecting the visibility of a website in a search engine's “natural” or “organic” (not paid for) search results. | K180: pointblankseo.com
A181: 20 | B181: 3 | C181: what is search engine optimization | D181: co.uk | E181: uk | G181: http://www.searchenginejournal.com/55-quick-seo-tips-even-your-mother-would-love/ | H181: www.searchenginejournal.com | I181: 55 Quick SEO Tips Even Your Mother Would Love - Search Engine ... | J181: 55 quick SEO tips to help your rank your site higher. | K181: searchenginejournal.com
A182: 1 | B182: 1 | C182: seo companies | D182: co.uk | E182: uk | G182: http://www.rebootonline.com/services/seo-services | H182: www.rebootonline.com | I182: Seo Services Provided by Reboot Online Marketing | J182: Many would have you believe SEO to be some form of black magic. Voodoo even . In reality nothing could be further from the truth. Yes, years of observing, ... | K182: rebootonline.com
A183: 2 | B183: 1 | C183: seo companies | D183: co.uk | E183: uk | G183: http://www.forbes.com/sites/joshsteimle/2013/09/23/4-tips-for-hiring-the-right-seo-firm/ | H183: www.forbes.com | I183: 4 Tips For Hiring The Right SEO Firm - Forbes | J183: 23 Sep 2013 ... You've got a problem. You've been tasked with hiring an search engine optimization (SEO) firm to provide various online marketing services to ... | K183: forbes.com
A184: 3 | B184: 1 | C184: seo companies | D184: co.uk | E184: uk | G184: http://www.seoconsultancyltd.com/ | H184: www.seoconsultancyltd.com | I184: SEO Consultancy Ltd a SEO Company That Gets Results | J184: SEO Consultancy Ltd, an Internationally Recognized SEO Company. Specializing in Local and National SEO services with Top SEO Consultants in UK and ... | K184: seoconsultancyltd.com
A185: 4 | B185: 1 | C185: seo companies | D185: co.uk | E185: uk | G185: http://www.uwpgroup.co.uk/service/seo-london/ | H185: www.uwpgroup.co.uk | I185: UWP: London's No. 1 SEO company - UWP Group | J185: Our great value SEO has never failed. We'll get your site to the top of Google. If we don't, you don't pay. All kinds of clients – always the same outcome. | K185: uwpgroup.co.uk
A186: 5 | B186: 1 | C186: seo companies | D186: co.uk | E186: uk | G186: http://www.adjuice.co.uk/ | H186: www.adjuice.co.uk | I186: Surrey SEO & PPC Specialist | AdJuice SEO Services | J186: Our SEO services & PPC management expertise make website marketing easy for companies in Surrey, Berkshire, Hampshire and the South East. | K186: adjuice.co.uk
A187: 6 | B187: 1 | C187: seo companies | D187: co.uk | E187: uk | G187: http://www.kdweb.co.uk/seo.htm | H187: www.kdweb.co.uk | I187: SEO Company - Web Designers | J187: KD Web is one of the UK's top SEO and digital internet marketing agency employing only the top SEO Developers and web designers trained in the latest search ... | K187: kdweb.co.uk
A188: 7 | B188: 1 | C188: seo companies | D188: co.uk | E188: uk | G188: http://www.found.co.uk/ | H188: www.found.co.uk | I188: Found: SEO Services and PPC Management Agency London | J188: Found. London-based award-winning online performance marketing agency. We only earn when our clients earn. PPC. SEO, Social, Mobile. | K188: found.co.uk
A189: 8 | B189: 1 | C189: seo companies | D189: co.uk | E189: uk | G189: http://www.getmanic.co.uk/ | H189: www.getmanic.co.uk | I189: SEO Services | Social Media Marketing | Website Design UK | J189: Get Manic SEO & social media marketing UK. We specialise in local and national SEO services and website design to drive more traffic to your website. | K189: getmanic.co.uk
A190: 9 | B190: 1 | C190: seo companies | D190: co.uk | E190: uk | G190: http://www.vanillacircus.co.uk/ | H190: www.vanillacircus.co.uk | I190: Vanilla Circus SEO Company run by one of the UK's leading SEO ... | J190: Best of Breed: VC is one of the most progressive SEO companies in the UK. Through our technology and insight, we offer long term, high volume web traffic ... | K190: vanillacircus.co.uk
A191: 10 | B191: 1 | C191: seo companies | D191: co.uk | E191: uk | G191: http://www.branded3.com/blogs/top-25-most-visible-seo-agencies-in-the-uk-according-to-searchmetrics/ | H191: www.branded3.com | I191: Top 25 Most Visible SEO Agencies in the UK According to ... | J191: 10 Jul 2013 ... Most people in the industry know not to judge an SEO company by their own rankings but there are still a lot of clients out there that choose an ... | K191: branded3.com
A192: 11 | B192: 2 | C192: seo companies | D192: co.uk | E192: uk | G192: http://www.seo-london.com/about-us/seo-firms | H192: www.seo-london.com | I192: SEO Firms - SEO London | J192: Students applying through SEO can gain access to both graduate and internship opportunities at the following firms: Banking Firms. Bank of America Merrill ... | K192: seo-london.com
A193: 12 | B193: 2 | C193: seo companies | D193: co.uk | E193: uk | G193: http://en.wikipedia.org/wiki/Search_engine_optimization | H193: en.wikipedia.org | I193: Search engine optimization - Wikipedia, the free encyclopedia | J193: Search engine optimization (SEO) is the process of affecting the visibility of a .... Wired magazine reported that the same company sued blogger and SEO Aaron ... | K193: wikipedia.org
A194: 13 | B194: 2 | C194: seo companies | D194: co.uk | E194: uk | G194: http://www.hobo-web.co.uk/ | H194: www.hobo-web.co.uk | I194: Hobo SEO Agency | PPC & SEO Services in Glasgow | Scotland | UK | J194: I've been a reader of the blog for a fair while and check most days for new posts. I' ve also downloaded your seo and link building ebooks. I found you through ... | K194: hobo-web.co.uk
A195: 14 | B195: 2 | C195: seo companies | D195: co.uk | E195: uk | G195: http://www.rankno1.co.uk/ | H195: www.rankno1.co.uk | I195: SEO Company UK, Rank no1, SEO Drives Traffic, Leads and Sales | J195: SEO company UK Rank No1, FREE Advice and FREE SEO Report From Leading Experts, Search Engine Optimization Drives Traffic, Leads and Sales. ... Read ... | K195: rankno1.co.uk
A196: 15 | B196: 2 | C196: seo companies | D196: co.uk | E196: uk | G196: http://searchenginewatch.com/article/2267471/How-Much-Should-You-Spend-on-SEO-Services | H196: searchenginewatch.com | I196: How Much Should You Spend on SEO Services? - SEW | J196: 27 Dec 2013 ... Contract services at fixed prices: Nearly all SEO agencies sell contract services. Often, before a client is ready to engage a monthly retainer, ... | K196: searchenginewatch.com
A197: 16 | B197: 2 | C197: seo companies | D197: co.uk | E197: uk | G197: http://www.reviewcentre.com/products3098.html | H197: www.reviewcentre.com | I197: SEO Companies - User Reviews of 2013 & 2014 at Review Centre | J197: Here at Review Centre you can find and compare SEO companies here at Review Centre, we have many SEO sites from the UK and abroad giving you the ... | K197: reviewcentre.com
A198: 17 | B198: 2 | C198: seo companies | D198: co.uk | E198: uk | G198: http://www.mainstreethost.com/ | H198: www.mainstreethost.com | I198: Mainstreethost: Affordable SEO & Search Engine Marketing ... | J198: Mainstreethost specializes in search engine optimization (SEO), paid search ... We take time to understand how your company works and what your goals are, ... | K198: mainstreethost.com
A199: 18 | B199: 2 | C199: seo companies | D199: co.uk | E199: uk | G199: http://www.expertseobournemouth.co.uk/ | H199: www.expertseobournemouth.co.uk | I199: SEO Bournemouth - SEO Services Bournemouth - Expert Company ... | J199: Expert SEO Bournemouth. The leading SEO Company in Bournemouth. Cutting edge SEO Services Bournemouth that produce results. Search Engine ... | K199: expertseobournemouth.co.uk
A200: 19 | B200: 2 | C200: seo companies | D200: co.uk | E200: uk | G200: http://www.smart-traffic.co.uk/ | H200: www.smart-traffic.co.uk | I200: Smart Traffic - The UK's Largest SEO Company - Exceptional SEO ... | J200: The UK's largest SEO Company, providing Brand Management, SEO, PPC and Social Media Services to over 400 clients. Call today on 0845 331 3512. | K200: smart-traffic.co.uk
... 181 more rows

Sheet ShareOfSearch_Calculations (hidden)
A1: =IF(ISTEXT(ShareOfSearch_SERPS!C1),ShareOfSearch_SERPS!C1,"") -> KEYWORD | B1: =IF(ISTEXT(ShareOfSearch_SERPS!D1),ShareOfSearch_SERPS!D1,"") -> TLD | C1: RANK | D1: =IF(NOT(ISBLANK(ShareOfSearch_SERPS!G1)),ShareOfSearch_SERPS!G1,"") -> URL | E1: DOMAIN | F1: TRAFFIC
A2: =IF(ISTEXT(ShareOfSearch_SERPS!C2),ShareOfSearch_SERPS!C2,"") -> seo | B2: =IF(ISTEXT(ShareOfSearch_SERPS!D2),ShareOfSearch_SERPS!D2,"") -> co.uk | C2: =IF(NOT(ISBLANK(ShareOfSearch_SERPS!A2)),ShareOfSearch_SERPS!A2,"") -> 1 | D2: =IF(NOT(ISBLANK(ShareOfSearch_SERPS!G2)),ShareOfSearch_SERPS!G2,"") -> http://en.wikipedia.org/wiki/Search_engine_optimization | E2: =IF(NOT(ISBLANK(ShareOfSearch_SERPS!K2)),ShareOfSearch_SERPS!K2,"") -> wikipedia.org | F2: =IFERROR(VLOOKUP(C2,ShareOfSearch_CTR!$A$1:$B$100,2,FALSE)*VLOOKUP(A2&B2,ShareOfSearch_Volume!$C$1:$D$1000,2,FALSE),"") -> 804804
A3: =IF(ISTEXT(ShareOfSearch_SERPS!C3),ShareOfSearch_SERPS!C3,"") -> seo | B3: =IF(ISTEXT(ShareOfSearch_SERPS!D3),ShareOfSearch_SERPS!D3,"") -> co.uk | C3: =IF(NOT(ISBLANK(ShareOfSearch_SERPS!A3)),ShareOfSearch_SERPS!A3,"") -> 2 | D3: =IF(NOT(ISBLANK(ShareOfSearch_SERPS!G3)),ShareOfSearch_SERPS!G3,"") -> http://en.wikipedia.org/wiki/SEO_(disambiguation) | E3: =IF(NOT(ISBLANK(ShareOfSearch_SERPS!K3)),ShareOfSearch_SERPS!K3,"") -> wikipedia.org | F3: =IFERROR(VLOOKUP(C3,ShareOfSearch_CTR!$A$1:$B$100,2,FALSE)*VLOOKUP(A3&B3,ShareOfSearch_Volume!$C$1:$D$1000,2,FALSE),"") -> 276375
A4: =IF(ISTEXT(ShareOfSearch_SERPS!C4),ShareOfSearch_SERPS!C4,"") -> seo | B4: =IF(ISTEXT(ShareOfSearch_SERPS!D4),ShareOfSearch_SERPS!D4,"") -> co.uk | C4: =IF(NOT(ISBLANK(ShareOfSearch_SERPS!A4)),ShareOfSearch_SERPS!A4,"") -> 3 | D4: =IF(NOT(ISBLANK(ShareOfSearch_SERPS!G4)),ShareOfSearch_SERPS!G4,"") -> http://www.majesticseo.com/ | E4: =IF(NOT(ISBLANK(ShareOfSearch_SERPS!K4)),ShareOfSearch_SERPS!K4,"") -> majesticseo.com | F4: =IFERROR(VLOOKUP(C4,ShareOfSearch_CTR!$A$1:$B$100,2,FALSE)*VLOOKUP(A4&B4,ShareOfSearch_Volume!$C$1:$D$1000,2,FALSE),"") -> 210045
A5: =IF(ISTEXT(ShareOfSearch_SERPS!C5),ShareOfSearch_SERPS!C5,"") -> seo | B5: =IF(ISTEXT(ShareOfSearch_SERPS!D5),ShareOfSearch_SERPS!D5,"") -> co.uk | C5: =IF(NOT(ISBLANK(ShareOfSearch_SERPS!A5)),ShareOfSearch_SERPS!A5,"") -> 4 | D5: =IF(NOT(ISBLANK(ShareOfSearch_SERPS!G5)),ShareOfSearch_SERPS!G5,"") -> http://searchengineland.com/guide/what-is-seo | E5: =IF(NOT(ISBLANK(ShareOfSearch_SERPS!K5)),ShareOfSearch_SERPS!K5,"") -> searchengineland.com | F5: =IFERROR(VLOOKUP(C5,ShareOfSearch_CTR!$A$1:$B$100,2,FALSE)*VLOOKUP(A5&B5,ShareOfSearch_Volume!$C$1:$D$1000,2,FALSE),"") -> 174669
A6: =IF(ISTEXT(ShareOfSearch_SERPS!C6),ShareOfSearch_SERPS!C6,"") -> seo | B6: =IF(ISTEXT(ShareOfSearch_SERPS!D6),ShareOfSearch_SERPS!D6,"") -> co.uk | C6: =IF(NOT(ISBLANK(ShareOfSearch_SERPS!A6)),ShareOfSearch_SERPS!A6,"") -> 5 | D6: =IF(NOT(ISBLANK(ShareOfSearch_SERPS!G6)),ShareOfSearch_SERPS!G6,"") -> http://www.screamingfrog.co.uk/seo-spider/ | E6: =IF(NOT(ISBLANK(ShareOfSearch_SERPS!K6)),ShareOfSearch_SERPS!K6,"") -> screamingfrog.co.uk | F6: =IFERROR(VLOOKUP(C6,ShareOfSearch_CTR!$A$1:$B$100,2,FALSE)*VLOOKUP(A6&B6,ShareOfSearch_Volume!$C$1:$D$1000,2,FALSE),"") -> 134871
A7: =IF(ISTEXT(ShareOfSearch_SERPS!C7),ShareOfSearch_SERPS!C7,"") -> seo | B7: =IF(ISTEXT(ShareOfSearch_SERPS!D7),ShareOfSearch_SERPS!D7,"") -> co.uk | C7: =IF(NOT(ISBLANK(ShareOfSearch_SERPS!A7)),ShareOfSearch_SERPS!A7,"") -> 6 | D7: =IF(NOT(ISBLANK(ShareOfSearch_SERPS!G7)),ShareOfSearch_SERPS!G7,"") -> http://www.theguardian.com/technology/seo | E7: =IF(NOT(ISBLANK(ShareOfSearch_SERPS!K7)),ShareOfSearch_SERPS!K7,"") -> theguardian.com | F7: =IFERROR(VLOOKUP(C7,ShareOfSearch_CTR!$A$1:$B$100,2,FALSE)*VLOOKUP(A7&B7,ShareOfSearch_Volume!$C$1:$D$1000,2,FALSE),"") -> 90651
A8: =IF(ISTEXT(ShareOfSearch_SERPS!C8),ShareOfSearch_SERPS!C8,"") -> seo | B8: =IF(ISTEXT(ShareOfSearch_SERPS!D8),ShareOfSearch_SERPS!D8,"") -> co.uk | C8: =IF(NOT(ISBLANK(ShareOfSearch_SERPS!A8)),ShareOfSearch_SERPS!A8,"") -> 7 | D8: =IF(NOT(ISBLANK(ShareOfSearch_SERPS!G8)),ShareOfSearch_SERPS!G8,"") -> http://www.theguardian.com/small-business-network/2014/jan/16/what-is-seo-how-website-google-visibility | E8: =IF(NOT(ISBLANK(ShareOfSearch_SERPS!K8)),ShareOfSearch_SERPS!K8,"") -> theguardian.com | F8: =IFERROR(VLOOKUP(C8,ShareOfSearch_CTR!$A$1:$B$100,2,FALSE)*VLOOKUP(A8&B8,ShareOfSearch_Volume!$C$1:$D$1000,2,FALSE),"") -> 84018
A9: =IF(ISTEXT(ShareOfSearch_SERPS!C9),ShareOfSearch_SERPS!C9,"") -> seo | B9: =IF(ISTEXT(ShareOfSearch_SERPS!D9),ShareOfSearch_SERPS!D9,"") -> co.uk | C9: =IF(NOT(ISBLANK(ShareOfSearch_SERPS!A9)),ShareOfSearch_SERPS!A9,"") -> 8 | D9: =IF(NOT(ISBLANK(ShareOfSearch_SERPS!G9)),ShareOfSearch_SERPS!G9,"") -> http://www.seo-london.com/ | E9: =IF(NOT(ISBLANK(ShareOfSearch_SERPS!K9)),ShareOfSearch_SERPS!K9,"") -> seo-london.com | F9: =IFERROR(VLOOKUP(C9,ShareOfSearch_CTR!$A$1:$B$100,2,FALSE)*VLOOKUP(A9&B9,ShareOfSearch_Volume!$C$1:$D$1000,2,FALSE),"") -> 77385
A10: =IF(ISTEXT(ShareOfSearch_SERPS!C10),ShareOfSearch_SERPS!C10,"") -> seo | B10: =IF(ISTEXT(ShareOfSearch_SERPS!D10),ShareOfSearch_SERPS!D10,"") -> co.uk | C10: =IF(NOT(ISBLANK(ShareOfSearch_SERPS!A10)),ShareOfSearch_SERPS!A10,"") -> 9 | D10: =IF(NOT(ISBLANK(ShareOfSearch_SERPS!G10)),ShareOfSearch_SERPS!G10,"") -> https://support.google.com/webmasters/answer/35291%3Fhl%3Den | E10: =IF(NOT(ISBLANK(ShareOfSearch_SERPS!K10)),ShareOfSearch_SERPS!K10,"") -> google.com | F10: =IFERROR(VLOOKUP(C10,ShareOfSearch_CTR!$A$1:$B$100,2,FALSE)*VLOOKUP(A10&B10,ShareOfSearch_Volume!$C$1:$D$1000,2,FALSE),"") -> 66330
A11: =IF(ISTEXT(ShareOfSearch_SERPS!C11),ShareOfSearch_SERPS!C11,"") -> seo | B11: =IF(ISTEXT(ShareOfSearch_SERPS!D11),ShareOfSearch_SERPS!D11,"") -> co.uk | C11: =IF(NOT(ISBLANK(ShareOfSearch_SERPS!A11)),ShareOfSearch_SERPS!A11,"") -> 10 | D11: =IF(NOT(ISBLANK(ShareOfSearch_SERPS!G11)),ShareOfSearch_SERPS!G11,"") -> http://www.brightonseo.com/ | E11: =IF(NOT(ISBLANK(ShareOfSearch_SERPS!K11)),ShareOfSearch_SERPS!K11,"") -> brightonseo.com | F11: =IFERROR(VLOOKUP(C11,ShareOfSearch_CTR!$A$1:$B$100,2,FALSE)*VLOOKUP(A11&B11,ShareOfSearch_Volume!$C$1:$D$1000,2,FALSE),"") -> 48642
A12: =IF(ISTEXT(ShareOfSearch_SERPS!C12),ShareOfSearch_SERPS!C12,"") -> seo | B12: =IF(ISTEXT(ShareOfSearch_SERPS!D12),ShareOfSearch_SERPS!D12,"") -> co.uk | C12: =IF(NOT(ISBLANK(ShareOfSearch_SERPS!A12)),ShareOfSearch_SERPS!A12,"") -> 11 | D12: =IF(NOT(ISBLANK(ShareOfSearch_SERPS!G12)),ShareOfSearch_SERPS!G12,"") -> https://www.highposition.com/ | E12: =IF(NOT(ISBLANK(ShareOfSearch_SERPS!K12)),ShareOfSearch_SERPS!K12,"") -> highposition.com | F12: =IFERROR(VLOOKUP(C12,ShareOfSearch_CTR!$A$1:$B$100,2,FALSE)*VLOOKUP(A12&B12,ShareOfSearch_Volume!$C$1:$D$1000,2,FALSE),"") -> 57486
A13: =IF(ISTEXT(ShareOfSearch_SERPS!C13),ShareOfSearch_SERPS!C13,"") -> seo | B13: =IF(ISTEXT(ShareOfSearch_SERPS!D13),ShareOfSearch_SERPS!D13,"") -> co.uk | C13: =IF(NOT(ISBLANK(ShareOfSearch_SERPS!A13)),ShareOfSearch_SERPS!A13,"") -> 12 | D13: =IF(NOT(ISBLANK(ShareOfSearch_SERPS!G13)),ShareOfSearch_SERPS!G13,"") -> http://www.analyticsseo.com/ | E13: =IF(NOT(ISBLANK(ShareOfSearch_SERPS!K13)),ShareOfSearch_SERPS!K13,"") -> analyticsseo.com | F13: =IFERROR(VLOOKUP(C13,ShareOfSearch_CTR!$A$1:$B$100,2,FALSE)*VLOOKUP(A13&B13,ShareOfSearch_Volume!$C$1:$D$1000,2,FALSE),"") -> 33165
A14: =IF(ISTEXT(ShareOfSearch_SERPS!C14),ShareOfSearch_SERPS!C14,"") -> seo | B14: =IF(ISTEXT(ShareOfSearch_SERPS!D14),ShareOfSearch_SERPS!D14,"") -> co.uk | C14: =IF(NOT(ISBLANK(ShareOfSearch_SERPS!A14)),ShareOfSearch_SERPS!A14,"") -> 13 | D14: =IF(NOT(ISBLANK(ShareOfSearch_SERPS!G14)),ShareOfSearch_SERPS!G14,"") -> http://www.attacat.co.uk/seo | E14: =IF(NOT(ISBLANK(ShareOfSearch_SERPS!K14)),ShareOfSearch_SERPS!K14,"") -> attacat.co.uk | F14: =IFERROR(VLOOKUP(C14,ShareOfSearch_CTR!$A$1:$B$100,2,FALSE)*VLOOKUP(A14&B14,ShareOfSearch_Volume!$C$1:$D$1000,2,FALSE),"") -> 28743
A15: =IF(ISTEXT(ShareOfSearch_SERPS!C15),ShareOfSearch_SERPS!C15,"") -> seo | B15: =IF(ISTEXT(ShareOfSearch_SERPS!D15),ShareOfSearch_SERPS!D15,"") -> co.uk | C15: =IF(NOT(ISBLANK(ShareOfSearch_SERPS!A15)),ShareOfSearch_SERPS!A15,"") -> 14 | D15: =IF(NOT(ISBLANK(ShareOfSearch_SERPS!G15)),ShareOfSearch_SERPS!G15,"") -> http://www.ihaveawebsite-nowwhat.co.uk/ | E15: =IF(NOT(ISBLANK(ShareOfSearch_SERPS!K15)),ShareOfSearch_SERPS!K15,"") -> ihaveawebsite-nowwhat.co.uk | F15: =IFERROR(VLOOKUP(C15,ShareOfSearch_CTR!$A$1:$B$100,2,FALSE)*VLOOKUP(A15&B15,ShareOfSearch_Volume!$C$1:$D$1000,2,FALSE),"") -> 24321
A16: =IF(ISTEXT(ShareOfSearch_SERPS!C16),ShareOfSearch_SERPS!C16,"") -> seo | B16: =IF(ISTEXT(ShareOfSearch_SERPS!D16),ShareOfSearch_SERPS!D16,"") -> co.uk | C16: =IF(NOT(ISBLANK(ShareOfSearch_SERPS!A16)),ShareOfSearch_SERPS!A16,"") -> 15 | D16: =IF(NOT(ISBLANK(ShareOfSearch_SERPS!G16)),ShareOfSearch_SERPS!G16,"") -> http://skyrocketseo.com/ | E16: =IF(NOT(ISBLANK(ShareOfSearch_SERPS!K16)),ShareOfSearch_SERPS!K16,"") -> skyrocketseo.com | F16: =IFERROR(VLOOKUP(C16,ShareOfSearch_CTR!$A$1:$B$100,2,FALSE)*VLOOKUP(A16&B16,ShareOfSearch_Volume!$C$1:$D$1000,2,FALSE),"") -> 26532
A17: =IF(ISTEXT(ShareOfSearch_SERPS!C17),ShareOfSearch_SERPS!C17,"") -> seo | B17: =IF(ISTEXT(ShareOfSearch_SERPS!D17),ShareOfSearch_SERPS!D17,"") -> co.uk | C17: =IF(NOT(ISBLANK(ShareOfSearch_SERPS!A17)),ShareOfSearch_SERPS!A17,"") -> 16 | D17: =IF(NOT(ISBLANK(ShareOfSearch_SERPS!G17)),ShareOfSearch_SERPS!G17,"") -> http://www.redevolution.com/seo-explained/ | E17: =IF(NOT(ISBLANK(ShareOfSearch_SERPS!K17)),ShareOfSearch_SERPS!K17,"") -> redevolution.com | F17: =IFERROR(VLOOKUP(C17,ShareOfSearch_CTR!$A$1:$B$100,2,FALSE)*VLOOKUP(A17&B17,ShareOfSearch_Volume!$C$1:$D$1000,2,FALSE),"") -> 26532
A18: =IF(ISTEXT(ShareOfSearch_SERPS!C18),ShareOfSearch_SERPS!C18,"") -> seo | B18: =IF(ISTEXT(ShareOfSearch_SERPS!D18),ShareOfSearch_SERPS!D18,"") -> co.uk | C18: =IF(NOT(ISBLANK(ShareOfSearch_SERPS!A18)),ShareOfSearch_SERPS!A18,"") -> 17 | D18: =IF(NOT(ISBLANK(ShareOfSearch_SERPS!G18)),ShareOfSearch_SERPS!G18,"") -> http://www.latitudegroup.com/our-services/channel-by-channel/seo | E18: =IF(NOT(ISBLANK(ShareOfSearch_SERPS!K18)),ShareOfSearch_SERPS!K18,"") -> latitudegroup.com | F18: =IFERROR(VLOOKUP(C18,ShareOfSearch_CTR!$A$1:$B$100,2,FALSE)*VLOOKUP(A18&B18,ShareOfSearch_Volume!$C$1:$D$1000,2,FALSE),"") -> 30954
A19: =IF(ISTEXT(ShareOfSearch_SERPS!C19),ShareOfSearch_SERPS!C19,"") -> seo | B19: =IF(ISTEXT(ShareOfSearch_SERPS!D19),ShareOfSearch_SERPS!D19,"") -> co.uk | C19: =IF(NOT(ISBLANK(ShareOfSearch_SERPS!A19)),ShareOfSearch_SERPS!A19,"") -> 18 | D19: =IF(NOT(ISBLANK(ShareOfSearch_SERPS!G19)),ShareOfSearch_SERPS!G19,"") -> http://www.news24.com/MyNews24/SEO-explained-20-quick-current-factors-20140907 | E19: =IF(NOT(ISBLANK(ShareOfSearch_SERPS!K19)),ShareOfSearch_SERPS!K19,"") -> news24.com | F19: =IFERROR(VLOOKUP(C19,ShareOfSearch_CTR!$A$1:$B$100,2,FALSE)*VLOOKUP(A19&B19,ShareOfSearch_Volume!$C$1:$D$1000,2,FALSE),"") -> 28743
A20: =IF(ISTEXT(ShareOfSearch_SERPS!C20),ShareOfSearch_SERPS!C20,"") -> seo | B20: =IF(ISTEXT(ShareOfSearch_SERPS!D20),ShareOfSearch_SERPS!D20,"") -> co.uk | C20: =IF(NOT(ISBLANK(ShareOfSearch_SERPS!A20)),ShareOfSearch_SERPS!A20,"") -> 19 | D20: =IF(NOT(ISBLANK(ShareOfSearch_SERPS!G20)),ShareOfSearch_SERPS!G20,"") -> http://www.linkdex.com/resources/r/seo-now-2014-ebook/ | E20: =IF(NOT(ISBLANK(ShareOfSearch_SERPS!K20)),ShareOfSearch_SERPS!K20,"") -> linkdex.com | F20: =IFERROR(VLOOKUP(C20,ShareOfSearch_CTR!$A$1:$B$100,2,FALSE)*VLOOKUP(A20&B20,ShareOfSearch_Volume!$C$1:$D$1000,2,FALSE),"") -> 30954
A21: =IF(ISTEXT(ShareOfSearch_SERPS!C21),ShareOfSearch_SERPS!C21,"") -> seo | B21: =IF(ISTEXT(ShareOfSearch_SERPS!D21),ShareOfSearch_SERPS!D21,"") -> co.uk | C21: =IF(NOT(ISBLANK(ShareOfSearch_SERPS!A21)),ShareOfSearch_SERPS!A21,"") -> 20 | D21: =IF(NOT(ISBLANK(ShareOfSearch_SERPS!G21)),ShareOfSearch_SERPS!G21,"") -> http://www.goup.co.uk/ | E21: =IF(NOT(ISBLANK(ShareOfSearch_SERPS!K21)),ShareOfSearch_SERPS!K21,"") -> goup.co.uk | F21: =IFERROR(VLOOKUP(C21,ShareOfSearch_CTR!$A$1:$B$100,2,FALSE)*VLOOKUP(A21&B21,ShareOfSearch_Volume!$C$1:$D$1000,2,FALSE),"") -> 30954
A22: =IF(ISTEXT(ShareOfSearch_SERPS!C22),ShareOfSearch_SERPS!C22,"") -> search engine optimization | B22: =IF(ISTEXT(ShareOfSearch_SERPS!D22),ShareOfSearch_SERPS!D22,"") -> co.uk | C22: =IF(NOT(ISBLANK(ShareOfSearch_SERPS!A22)),ShareOfSearch_SERPS!A22,"") -> 1 | D22: =IF(NOT(ISBLANK(ShareOfSearch_SERPS!G22)),ShareOfSearch_SERPS!G22,"") -> http://en.wikipedia.org/wiki/Search_engine_optimization | E22: =IF(NOT(ISBLANK(ShareOfSearch_SERPS!K22)),ShareOfSearch_SERPS!K22,"") -> wikipedia.org | F22: =IFERROR(VLOOKUP(C22,ShareOfSearch_CTR!$A$1:$B$100,2,FALSE)*VLOOKUP(A22&B22,ShareOfSearch_Volume!$C$1:$D$1000,2,FALSE),"") -> 162962.8
A23: =IF(ISTEXT(ShareOfSearch_SERPS!C23),ShareOfSearch_SERPS!C23,"") -> search engine optimization | B23: =IF(ISTEXT(ShareOfSearch_SERPS!D23),ShareOfSearch_SERPS!D23,"") -> co.uk | C23: =IF(NOT(ISBLANK(ShareOfSearch_SERPS!A23)),ShareOfSearch_SERPS!A23,"") -> 2 | D23: =IF(NOT(ISBLANK(ShareOfSearch_SERPS!G23)),ShareOfSearch_SERPS!G23,"") -> http://www.google.co.uk/webmasters/docs/search-engine-optimization-starter-guide.pdf | E23: =IF(NOT(ISBLANK(ShareOfSearch_SERPS!K23)),ShareOfSearch_SERPS!K23,"") -> google.co.uk | F23: =IFERROR(VLOOKUP(C23,ShareOfSearch_CTR!$A$1:$B$100,2,FALSE)*VLOOKUP(A23&B23,ShareOfSearch_Volume!$C$1:$D$1000,2,FALSE),"") -> 55962.5
A24: =IF(ISTEXT(ShareOfSearch_SERPS!C24),ShareOfSearch_SERPS!C24,"") -> search engine optimization | B24: =IF(ISTEXT(ShareOfSearch_SERPS!D24),ShareOfSearch_SERPS!D24,"") -> co.uk | C24: =IF(NOT(ISBLANK(ShareOfSearch_SERPS!A24)),ShareOfSearch_SERPS!A24,"") -> 3 | D24: =IF(NOT(ISBLANK(ShareOfSearch_SERPS!G24)),ShareOfSearch_SERPS!G24,"") -> http://searchengineland.com/guide/what-is-seo | E24: =IF(NOT(ISBLANK(ShareOfSearch_SERPS!K24)),ShareOfSearch_SERPS!K24,"") -> searchengineland.com | F24: =IFERROR(VLOOKUP(C24,ShareOfSearch_CTR!$A$1:$B$100,2,FALSE)*VLOOKUP(A24&B24,ShareOfSearch_Volume!$C$1:$D$1000,2,FALSE),"") -> 42531.5
A25: =IF(ISTEXT(ShareOfSearch_SERPS!C25),ShareOfSearch_SERPS!C25,"") -> search engine optimization | B25: =IF(ISTEXT(ShareOfSearch_SERPS!D25),ShareOfSearch_SERPS!D25,"") -> co.uk | C25: =IF(NOT(ISBLANK(ShareOfSearch_SERPS!A25)),ShareOfSearch_SERPS!A25,"") -> 4 | D25: =IF(NOT(ISBLANK(ShareOfSearch_SERPS!G25)),ShareOfSearch_SERPS!G25,"") -> https://support.google.com/webmasters/answer/35291%3Fhl%3Den | E25: =IF(NOT(ISBLANK(ShareOfSearch_SERPS!K25)),ShareOfSearch_SERPS!K25,"") -> google.com | F25: =IFERROR(VLOOKUP(C25,ShareOfSearch_CTR!$A$1:$B$100,2,FALSE)*VLOOKUP(A25&B25,ShareOfSearch_Volume!$C$1:$D$1000,2,FALSE),"") -> 35368.3
A26: =IF(ISTEXT(ShareOfSearch_SERPS!C26),ShareOfSearch_SERPS!C26,"") -> search engine optimization | B26: =IF(ISTEXT(ShareOfSearch_SERPS!D26),ShareOfSearch_SERPS!D26,"") -> co.uk | C26: =IF(NOT(ISBLANK(ShareOfSearch_SERPS!A26)),ShareOfSearch_SERPS!A26,"") -> 5 | D26: =IF(NOT(ISBLANK(ShareOfSearch_SERPS!G26)),ShareOfSearch_SERPS!G26,"") -> http://searchenginewatch.com/article/2259693/SEO-Basics-8-Essentials-When-Optimizing-Your-Site | E26: =IF(NOT(ISBLANK(ShareOfSearch_SERPS!K26)),ShareOfSearch_SERPS!K26,"") -> searchenginewatch.com | F26: =IFERROR(VLOOKUP(C26,ShareOfSearch_CTR!$A$1:$B$100,2,FALSE)*VLOOKUP(A26&B26,ShareOfSearch_Volume!$C$1:$D$1000,2,FALSE),"") -> 27309.7
A27: =IF(ISTEXT(ShareOfSearch_SERPS!C27),ShareOfSearch_SERPS!C27,"") -> search engine optimization | B27: =IF(ISTEXT(ShareOfSearch_SERPS!D27),ShareOfSearch_SERPS!D27,"") -> co.uk | C27: =IF(NOT(ISBLANK(ShareOfSearch_SERPS!A27)),ShareOfSearch_SERPS!A27,"") -> 6 | D27: =IF(NOT(ISBLANK(ShareOfSearch_SERPS!G27)),ShareOfSearch_SERPS!G27,"") -> http://www.majesticseo.com/ | E27: =IF(NOT(ISBLANK(ShareOfSearch_SERPS!K27)),ShareOfSearch_SERPS!K27,"") -> majesticseo.com | F27: =IFERROR(VLOOKUP(C27,ShareOfSearch_CTR!$A$1:$B$100,2,FALSE)*VLOOKUP(A27&B27,ShareOfSearch_Volume!$C$1:$D$1000,2,FALSE),"") -> 18355.7
A28: =IF(ISTEXT(ShareOfSearch_SERPS!C28),ShareOfSearch_SERPS!C28,"") -> search engine optimization | B28: =IF(ISTEXT(ShareOfSearch_SERPS!D28),ShareOfSearch_SERPS!D28,"") -> co.uk | C28: =IF(NOT(ISBLANK(ShareOfSearch_SERPS!A28)),ShareOfSearch_SERPS!A28,"") -> 7 | D28: =IF(NOT(ISBLANK(ShareOfSearch_SERPS!G28)),ShareOfSearch_SERPS!G28,"") -> http://www.webopedia.com/TERM/S/SEO.html | E28: =IF(NOT(ISBLANK(ShareOfSearch_SERPS!K28)),ShareOfSearch_SERPS!K28,"") -> webopedia.com | F28: =IFERROR(VLOOKUP(C28,ShareOfSearch_CTR!$A$1:$B$100,2,FALSE)*VLOOKUP(A28&B28,ShareOfSearch_Volume!$C$1:$D$1000,2,FALSE),"") -> 17012.6
A29: =IF(ISTEXT(ShareOfSearch_SERPS!C29),ShareOfSearch_SERPS!C29,"") -> search engine optimization | B29: =IF(ISTEXT(ShareOfSearch_SERPS!D29),ShareOfSearch_SERPS!D29,"") -> co.uk | C29: =IF(NOT(ISBLANK(ShareOfSearch_SERPS!A29)),ShareOfSearch_SERPS!A29,"") -> 8 | D29: =IF(NOT(ISBLANK(ShareOfSearch_SERPS!G29)),ShareOfSearch_SERPS!G29,"") -> http://www.hobo-web.co.uk/seo-tutorial/ | E29: =IF(NOT(ISBLANK(ShareOfSearch_SERPS!K29)),ShareOfSearch_SERPS!K29,"") -> hobo-web.co.uk | F29: =IFERROR(VLOOKUP(C29,ShareOfSearch_CTR!$A$1:$B$100,2,FALSE)*VLOOKUP(A29&B29,ShareOfSearch_Volume!$C$1:$D$1000,2,FALSE),"") -> 15669.5
A30: =IF(ISTEXT(ShareOfSearch_SERPS!C30),ShareOfSearch_SERPS!C30,"") -> search engine optimization | B30: =IF(ISTEXT(ShareOfSearch_SERPS!D30),ShareOfSearch_SERPS!D30,"") -> co.uk | C30: =IF(NOT(ISBLANK(ShareOfSearch_SERPS!A30)),ShareOfSearch_SERPS!A30,"") -> 9 | D30: =IF(NOT(ISBLANK(ShareOfSearch_SERPS!G30)),ShareOfSearch_SERPS!G30,"") -> http://www.screamingfrog.co.uk/search-engine-optimisation/ | E30: =IF(NOT(ISBLANK(ShareOfSearch_SERPS!K30)),ShareOfSearch_SERPS!K30,"") -> screamingfrog.co.uk | F30: =IFERROR(VLOOKUP(C30,ShareOfSearch_CTR!$A$1:$B$100,2,FALSE)*VLOOKUP(A30&B30,ShareOfSearch_Volume!$C$1:$D$1000,2,FALSE),"") -> 13431
A31: =IF(ISTEXT(ShareOfSearch_SERPS!C31),ShareOfSearch_SERPS!C31,"") -> search engine optimization | B31: =IF(ISTEXT(ShareOfSearch_SERPS!D31),ShareOfSearch_SERPS!D31,"") -> co.uk | C31: =IF(NOT(ISBLANK(ShareOfSearch_SERPS!A31)),ShareOfSearch_SERPS!A31,"") -> 10 | D31: =IF(NOT(ISBLANK(ShareOfSearch_SERPS!G31)),ShareOfSearch_SERPS!G31,"") -> http://moz.com/beginners-guide-to-seo | E31: =IF(NOT(ISBLANK(ShareOfSearch_SERPS!K31)),ShareOfSearch_SERPS!K31,"") -> moz.com | F31: =IFERROR(VLOOKUP(C31,ShareOfSearch_CTR!$A$1:$B$100,2,FALSE)*VLOOKUP(A31&B31,ShareOfSearch_Volume!$C$1:$D$1000,2,FALSE),"") -> 9849.4
A32: =IF(ISTEXT(ShareOfSearch_SERPS!C32),ShareOfSearch_SERPS!C32,"") -> search engine optimization | B32: =IF(ISTEXT(ShareOfSearch_SERPS!D32),ShareOfSearch_SERPS!D32,"") -> co.uk | C32: =IF(NOT(ISBLANK(ShareOfSearch_SERPS!A32)),ShareOfSearch_SERPS!A32,"") -> 11 | D32: =IF(NOT(ISBLANK(ShareOfSearch_SERPS!G32)),ShareOfSearch_SERPS!G32,"") -> http://www.redevolution.com/what-is-seo/ | E32: =IF(NOT(ISBLANK(ShareOfSearch_SERPS!K32)),ShareOfSearch_SERPS!K32,"") -> redevolution.com | F32: =IFERROR(VLOOKUP(C32,ShareOfSearch_CTR!$A$1:$B$100,2,FALSE)*VLOOKUP(A32&B32,ShareOfSearch_Volume!$C$1:$D$1000,2,FALSE),"") -> 11640.2
A33: =IF(ISTEXT(ShareOfSearch_SERPS!C33),ShareOfSearch_SERPS!C33,"") -> search engine optimization | B33: =IF(ISTEXT(ShareOfSearch_SERPS!D33),ShareOfSearch_SERPS!D33,"") -> co.uk | C33: =IF(NOT(ISBLANK(ShareOfSearch_SERPS!A33)),ShareOfSearch_SERPS!A33,"") -> 12 | D33: =IF(NOT(ISBLANK(ShareOfSearch_SERPS!G33)),ShareOfSearch_SERPS!G33,"") -> http://computer.howstuffworks.com/search-engine-optimization.htm | E33: =IF(NOT(ISBLANK(ShareOfSearch_SERPS!K33)),ShareOfSearch_SERPS!K33,"") -> howstuffworks.com | F33: =IFERROR(VLOOKUP(C33,ShareOfSearch_CTR!$A$1:$B$100,2,FALSE)*VLOOKUP(A33&B33,ShareOfSearch_Volume!$C$1:$D$1000,2,FALSE),"") -> 6715.5
A34: =IF(ISTEXT(ShareOfSearch_SERPS!C34),ShareOfSearch_SERPS!C34,"") -> search engine optimization | B34: =IF(ISTEXT(ShareOfSearch_SERPS!D34),ShareOfSearch_SERPS!D34,"") -> co.uk | C34: =IF(NOT(ISBLANK(ShareOfSearch_SERPS!A34)),ShareOfSearch_SERPS!A34,"") -> 13 | D34: =IF(NOT(ISBLANK(ShareOfSearch_SERPS!G34)),ShareOfSearch_SERPS!G34,"") -> http://www.bruceclay.com/eu/seo/search-engine-optimization.htm | E34: =IF(NOT(ISBLANK(ShareOfSearch_SERPS!K34)),ShareOfSearch_SERPS!K34,"") -> bruceclay.com | F34: =IFERROR(VLOOKUP(C34,ShareOfSearch_CTR!$A$1:$B$100,2,FALSE)*VLOOKUP(A34&B34,ShareOfSearch_Volume!$C$1:$D$1000,2,FALSE),"") -> 5820.1
A35: =IF(ISTEXT(ShareOfSearch_SERPS!C35),ShareOfSearch_SERPS!C35,"") -> search engine optimization | B35: =IF(ISTEXT(ShareOfSearch_SERPS!D35),ShareOfSearch_SERPS!D35,"") -> co.uk | C35: =IF(NOT(ISBLANK(ShareOfSearch_SERPS!A35)),ShareOfSearch_SERPS!A35,"") -> 14 | D35: =IF(NOT(ISBLANK(ShareOfSearch_SERPS!G35)),ShareOfSearch_SERPS!G35,"") -> https://econsultancy.com/reports/seo-best-practice-guide | E35: =IF(NOT(ISBLANK(ShareOfSearch_SERPS!K35)),ShareOfSearch_SERPS!K35,"") -> econsultancy.com | F35: =IFERROR(VLOOKUP(C35,ShareOfSearch_CTR!$A$1:$B$100,2,FALSE)*VLOOKUP(A35&B35,ShareOfSearch_Volume!$C$1:$D$1000,2,FALSE),"") -> 4924.7
A36: =IF(ISTEXT(ShareOfSearch_SERPS!C36),ShareOfSearch_SERPS!C36,"") -> search engine optimization | B36: =IF(ISTEXT(ShareOfSearch_SERPS!D36),ShareOfSearch_SERPS!D36,"") -> co.uk | C36: =IF(NOT(ISBLANK(ShareOfSearch_SERPS!A36)),ShareOfSearch_SERPS!A36,"") -> 15 | D36: =IF(NOT(ISBLANK(ShareOfSearch_SERPS!G36)),ShareOfSearch_SERPS!G36,"") -> http://www.entrepreneur.com/seo/ | E36: =IF(NOT(ISBLANK(ShareOfSearch_SERPS!K36)),ShareOfSearch_SERPS!K36,"") -> entrepreneur.com | F36: =IFERROR(VLOOKUP(C36,ShareOfSearch_CTR!$A$1:$B$100,2,FALSE)*VLOOKUP(A36&B36,ShareOfSearch_Volume!$C$1:$D$1000,2,FALSE),"") -> 5372.4
A37: =IF(ISTEXT(ShareOfSearch_SERPS!C37),ShareOfSearch_SERPS!C37,"") -> search engine optimization | B37: =IF(ISTEXT(ShareOfSearch_SERPS!D37),ShareOfSearch_SERPS!D37,"") -> co.uk | C37: =IF(NOT(ISBLANK(ShareOfSearch_SERPS!A37)),ShareOfSearch_SERPS!A37,"") -> 16 | D37: =IF(NOT(ISBLANK(ShareOfSearch_SERPS!G37)),ShareOfSearch_SERPS!G37,"") -> http://www.submitexpress.com/ | E37: =IF(NOT(ISBLANK(ShareOfSearch_SERPS!K37)),ShareOfSearch_SERPS!K37,"") -> submitexpress.com | F37: =IFERROR(VLOOKUP(C37,ShareOfSearch_CTR!$A$1:$B$100,2,FALSE)*VLOOKUP(A37&B37,ShareOfSearch_Volume!$C$1:$D$1000,2,FALSE),"") -> 5372.4
A38: =IF(ISTEXT(ShareOfSearch_SERPS!C38),ShareOfSearch_SERPS!C38,"") -> search engine optimization | B38: =IF(ISTEXT(ShareOfSearch_SERPS!D38),ShareOfSearch_SERPS!D38,"") -> co.uk | C38: =IF(NOT(ISBLANK(ShareOfSearch_SERPS!A38)),ShareOfSearch_SERPS!A38,"") -> 17 | D38: =IF(NOT(ISBLANK(ShareOfSearch_SERPS!G38)),ShareOfSearch_SERPS!G38,"") -> http://www.searchenginejournal.com/55-quick-seo-tips-even-your-mother-would-love/ | E38: =IF(NOT(ISBLANK(ShareOfSearch_SERPS!K38)),ShareOfSearch_SERPS!K38,"") -> searchenginejournal.com | F38: =IFERROR(VLOOKUP(C38,ShareOfSearch_CTR!$A$1:$B$100,2,FALSE)*VLOOKUP(A38&B38,ShareOfSearch_Volume!$C$1:$D$1000,2,FALSE),"") -> 6267.8
A39: =IF(ISTEXT(ShareOfSearch_SERPS!C39),ShareOfSearch_SERPS!C39,"") -> search engine optimization | B39: =IF(ISTEXT(ShareOfSearch_SERPS!D39),ShareOfSearch_SERPS!D39,"") -> co.uk | C39: =IF(NOT(ISBLANK(ShareOfSearch_SERPS!A39)),ShareOfSearch_SERPS!A39,"") -> 18 | D39: =IF(NOT(ISBLANK(ShareOfSearch_SERPS!G39)),ShareOfSearch_SERPS!G39,"") -> http://www.searchenginejournal.com/category/search-engine-optimization/ | E39: =IF(NOT(ISBLANK(ShareOfSearch_SERPS!K39)),ShareOfSearch_SERPS!K39,"") -> searchenginejournal.com | F39: =IFERROR(VLOOKUP(C39,ShareOfSearch_CTR!$A$1:$B$100,2,FALSE)*VLOOKUP(A39&B39,ShareOfSearch_Volume!$C$1:$D$1000,2,FALSE),"") -> 5820.1
A40: =IF(ISTEXT(ShareOfSearch_SERPS!C40),ShareOfSearch_SERPS!C40,"") -> search engine optimization | B40: =IF(ISTEXT(ShareOfSearch_SERPS!D40),ShareOfSearch_SERPS!D40,"") -> co.uk | C40: =IF(NOT(ISBLANK(ShareOfSearch_SERPS!A40)),ShareOfSearch_SERPS!A40,"") -> 19 | D40: =IF(NOT(ISBLANK(ShareOfSearch_SERPS!G40)),ShareOfSearch_SERPS!G40,"") -> http://www.seochat.com/ | E40: =IF(NOT(ISBLANK(ShareOfSearch_SERPS!K40)),ShareOfSearch_SERPS!K40,"") -> seochat.com | F40: =IFERROR(VLOOKUP(C40,ShareOfSearch_CTR!$A$1:$B$100,2,FALSE)*VLOOKUP(A40&B40,ShareOfSearch_Volume!$C$1:$D$1000,2,FALSE),"") -> 6267.8
A41: =IF(ISTEXT(ShareOfSearch_SERPS!C41),ShareOfSearch_SERPS!C41,"") -> search engine optimization | B41: =IF(ISTEXT(ShareOfSearch_SERPS!D41),ShareOfSearch_SERPS!D41,"") -> co.uk | C41: =IF(NOT(ISBLANK(ShareOfSearch_SERPS!A41)),ShareOfSearch_SERPS!A41,"") -> 20 | D41: =IF(NOT(ISBLANK(ShareOfSearch_SERPS!G41)),ShareOfSearch_SERPS!G41,"") -> http://www.seobook.com/ | E41: =IF(NOT(ISBLANK(ShareOfSearch_SERPS!K41)),ShareOfSearch_SERPS!K41,"") -> seobook.com | F41: =IFERROR(VLOOKUP(C41,ShareOfSearch_CTR!$A$1:$B$100,2,FALSE)*VLOOKUP(A41&B41,ShareOfSearch_Volume!$C$1:$D$1000,2,FALSE),"") -> 6267.8
A42: =IF(ISTEXT(ShareOfSearch_SERPS!C42),ShareOfSearch_SERPS!C42,"") -> seo services | B42: =IF(ISTEXT(ShareOfSearch_SERPS!D42),ShareOfSearch_SERPS!D42,"") -> co.uk | C42: =IF(NOT(ISBLANK(ShareOfSearch_SERPS!A42)),ShareOfSearch_SERPS!A42,"") -> 1 | D42: =IF(NOT(ISBLANK(ShareOfSearch_SERPS!G42)),ShareOfSearch_SERPS!G42,"") -> http://www.getmanic.co.uk/ | E42: =IF(NOT(ISBLANK(ShareOfSearch_SERPS!K42)),ShareOfSearch_SERPS!K42,"") -> getmanic.co.uk | F42: =IFERROR(VLOOKUP(C42,ShareOfSearch_CTR!$A$1:$B$100,2,FALSE)*VLOOKUP(A42&B42,ShareOfSearch_Volume!$C$1:$D$1000,2,FALSE),"") -> 82170.452
A43: =IF(ISTEXT(ShareOfSearch_SERPS!C43),ShareOfSearch_SERPS!C43,"") -> seo services | B43: =IF(ISTEXT(ShareOfSearch_SERPS!D43),ShareOfSearch_SERPS!D43,"") -> co.uk | C43: =IF(NOT(ISBLANK(ShareOfSearch_SERPS!A43)),ShareOfSearch_SERPS!A43,"") -> 2 | D43: =IF(NOT(ISBLANK(ShareOfSearch_SERPS!G43)),ShareOfSearch_SERPS!G43,"") -> http://www.jointplan.co.uk/local-seo-expert | E43: =IF(NOT(ISBLANK(ShareOfSearch_SERPS!K43)),ShareOfSearch_SERPS!K43,"") -> jointplan.co.uk | F43: =IFERROR(VLOOKUP(C43,ShareOfSearch_CTR!$A$1:$B$100,2,FALSE)*VLOOKUP(A43&B43,ShareOfSearch_Volume!$C$1:$D$1000,2,FALSE),"") -> 28217.875
A44: =IF(ISTEXT(ShareOfSearch_SERPS!C44),ShareOfSearch_SERPS!C44,"") -> seo services | B44: =IF(ISTEXT(ShareOfSearch_SERPS!D44),ShareOfSearch_SERPS!D44,"") -> co.uk | C44: =IF(NOT(ISBLANK(ShareOfSearch_SERPS!A44)),ShareOfSearch_SERPS!A44,"") -> 3 | D44: =IF(NOT(ISBLANK(ShareOfSearch_SERPS!G44)),ShareOfSearch_SERPS!G44,"") -> http://en.wikipedia.org/wiki/Search_engine_optimization | E44: =IF(NOT(ISBLANK(ShareOfSearch_SERPS!K44)),ShareOfSearch_SERPS!K44,"") -> wikipedia.org | F44: =IFERROR(VLOOKUP(C44,ShareOfSearch_CTR!$A$1:$B$100,2,FALSE)*VLOOKUP(A44&B44,ShareOfSearch_Volume!$C$1:$D$1000,2,FALSE),"") -> 21445.585
A45: =IF(ISTEXT(ShareOfSearch_SERPS!C45),ShareOfSearch_SERPS!C45,"") -> seo services | B45: =IF(ISTEXT(ShareOfSearch_SERPS!D45),ShareOfSearch_SERPS!D45,"") -> co.uk | C45: =IF(NOT(ISBLANK(ShareOfSearch_SERPS!A45)),ShareOfSearch_SERPS!A45,"") -> 4 | D45: =IF(NOT(ISBLANK(ShareOfSearch_SERPS!G45)),ShareOfSearch_SERPS!G45,"") -> http://www.screamingfrog.co.uk/search-engine-optimisation/ | E45: =IF(NOT(ISBLANK(ShareOfSearch_SERPS!K45)),ShareOfSearch_SERPS!K45,"") -> screamingfrog.co.uk | F45: =IFERROR(VLOOKUP(C45,ShareOfSearch_CTR!$A$1:$B$100,2,FALSE)*VLOOKUP(A45&B45,ShareOfSearch_Volume!$C$1:$D$1000,2,FALSE),"") -> 17833.697
A46: =IF(ISTEXT(ShareOfSearch_SERPS!C46),ShareOfSearch_SERPS!C46,"") -> seo services | B46: =IF(ISTEXT(ShareOfSearch_SERPS!D46),ShareOfSearch_SERPS!D46,"") -> co.uk | C46: =IF(NOT(ISBLANK(ShareOfSearch_SERPS!A46)),ShareOfSearch_SERPS!A46,"") -> 5 | D46: =IF(NOT(ISBLANK(ShareOfSearch_SERPS!G46)),ShareOfSearch_SERPS!G46,"") -> http://www.rebootonline.com/ | E46: =IF(NOT(ISBLANK(ShareOfSearch_SERPS!K46)),ShareOfSearch_SERPS!K46,"") -> rebootonline.com | F46: =IFERROR(VLOOKUP(C46,ShareOfSearch_CTR!$A$1:$B$100,2,FALSE)*VLOOKUP(A46&B46,ShareOfSearch_Volume!$C$1:$D$1000,2,FALSE),"") -> 13770.323
A47: =IF(ISTEXT(ShareOfSearch_SERPS!C47),ShareOfSearch_SERPS!C47,"") -> seo services | B47: =IF(ISTEXT(ShareOfSearch_SERPS!D47),ShareOfSearch_SERPS!D47,"") -> co.uk | C47: =IF(NOT(ISBLANK(ShareOfSearch_SERPS!A47)),ShareOfSearch_SERPS!A47,"") -> 6 | D47: =IF(NOT(ISBLANK(ShareOfSearch_SERPS!G47)),ShareOfSearch_SERPS!G47,"") -> http://www.mainstreethost.com/ | E47: =IF(NOT(ISBLANK(ShareOfSearch_SERPS!K47)),ShareOfSearch_SERPS!K47,"") -> mainstreethost.com | F47: =IFERROR(VLOOKUP(C47,ShareOfSearch_CTR!$A$1:$B$100,2,FALSE)*VLOOKUP(A47&B47,ShareOfSearch_Volume!$C$1:$D$1000,2,FALSE),"") -> 9255.463
A48: =IF(ISTEXT(ShareOfSearch_SERPS!C48),ShareOfSearch_SERPS!C48,"") -> seo services | B48: =IF(ISTEXT(ShareOfSearch_SERPS!D48),ShareOfSearch_SERPS!D48,"") -> co.uk | C48: =IF(NOT(ISBLANK(ShareOfSearch_SERPS!A48)),ShareOfSearch_SERPS!A48,"") -> 7 | D48: =IF(NOT(ISBLANK(ShareOfSearch_SERPS!G48)),ShareOfSearch_SERPS!G48,"") -> http://www.adjuice.co.uk/ | E48: =IF(NOT(ISBLANK(ShareOfSearch_SERPS!K48)),ShareOfSearch_SERPS!K48,"") -> adjuice.co.uk | F48: =IFERROR(VLOOKUP(C48,ShareOfSearch_CTR!$A$1:$B$100,2,FALSE)*VLOOKUP(A48&B48,ShareOfSearch_Volume!$C$1:$D$1000,2,FALSE),"") -> 8578.234
A49: =IF(ISTEXT(ShareOfSearch_SERPS!C49),ShareOfSearch_SERPS!C49,"") -> seo services | B49: =IF(ISTEXT(ShareOfSearch_SERPS!D49),ShareOfSearch_SERPS!D49,"") -> co.uk | C49: =IF(NOT(ISBLANK(ShareOfSearch_SERPS!A49)),ShareOfSearch_SERPS!A49,"") -> 8 | D49: =IF(NOT(ISBLANK(ShareOfSearch_SERPS!G49)),ShareOfSearch_SERPS!G49,"") -> http://www.uwpgroup.co.uk/service/seo-london/ | E49: =IF(NOT(ISBLANK(ShareOfSearch_SERPS!K49)),ShareOfSearch_SERPS!K49,"") -> uwpgroup.co.uk | F49: =IFERROR(VLOOKUP(C49,ShareOfSearch_CTR!$A$1:$B$100,2,FALSE)*VLOOKUP(A49&B49,ShareOfSearch_Volume!$C$1:$D$1000,2,FALSE),"") -> 7901.005
A50: =IF(ISTEXT(ShareOfSearch_SERPS!C50),ShareOfSearch_SERPS!C50,"") -> seo services | B50: =IF(ISTEXT(ShareOfSearch_SERPS!D50),ShareOfSearch_SERPS!D50,"") -> co.uk | C50: =IF(NOT(ISBLANK(ShareOfSearch_SERPS!A50)),ShareOfSearch_SERPS!A50,"") -> 9 | D50: =IF(NOT(ISBLANK(ShareOfSearch_SERPS!G50)),ShareOfSearch_SERPS!G50,"") -> http://www.seoservicepros.co.uk/ | E50: =IF(NOT(ISBLANK(ShareOfSearch_SERPS!K50)),ShareOfSearch_SERPS!K50,"") -> seoservicepros.co.uk | F50: =IFERROR(VLOOKUP(C50,ShareOfSearch_CTR!$A$1:$B$100,2,FALSE)*VLOOKUP(A50&B50,ShareOfSearch_Volume!$C$1:$D$1000,2,FALSE),"") -> 6772.29
A51: =IF(ISTEXT(ShareOfSearch_SERPS!C51),ShareOfSearch_SERPS!C51,"") -> seo services | B51: =IF(ISTEXT(ShareOfSearch_SERPS!D51),ShareOfSearch_SERPS!D51,"") -> co.uk | C51: =IF(NOT(ISBLANK(ShareOfSearch_SERPS!A51)),ShareOfSearch_SERPS!A51,"") -> 10 | D51: =IF(NOT(ISBLANK(ShareOfSearch_SERPS!G51)),ShareOfSearch_SERPS!G51,"") -> http://www.seoconsultancyltd.com/ | E51: =IF(NOT(ISBLANK(ShareOfSearch_SERPS!K51)),ShareOfSearch_SERPS!K51,"") -> seoconsultancyltd.com | F51: =IFERROR(VLOOKUP(C51,ShareOfSearch_CTR!$A$1:$B$100,2,FALSE)*VLOOKUP(A51&B51,ShareOfSearch_Volume!$C$1:$D$1000,2,FALSE),"") -> 4966.346
A52: =IF(ISTEXT(ShareOfSearch_SERPS!C52),ShareOfSearch_SERPS!C52,"") -> seo services | B52: =IF(ISTEXT(ShareOfSearch_SERPS!D52),ShareOfSearch_SERPS!D52,"") -> co.uk | C52: =IF(NOT(ISBLANK(ShareOfSearch_SERPS!A52)),ShareOfSearch_SERPS!A52,"") -> 11 | D52: =IF(NOT(ISBLANK(ShareOfSearch_SERPS!G52)),ShareOfSearch_SERPS!G52,"") -> http://www.123ranking.co.uk/ | E52: =IF(NOT(ISBLANK(ShareOfSearch_SERPS!K52)),ShareOfSearch_SERPS!K52,"") -> 123ranking.co.uk | F52: =IFERROR(VLOOKUP(C52,ShareOfSearch_CTR!$A$1:$B$100,2,FALSE)*VLOOKUP(A52&B52,ShareOfSearch_Volume!$C$1:$D$1000,2,FALSE),"") -> 5869.318
A53: =IF(ISTEXT(ShareOfSearch_SERPS!C53),ShareOfSearch_SERPS!C53,"") -> seo services | B53: =IF(ISTEXT(ShareOfSearch_SERPS!D53),ShareOfSearch_SERPS!D53,"") -> co.uk | C53: =IF(NOT(ISBLANK(ShareOfSearch_SERPS!A53)),ShareOfSearch_SERPS!A53,"") -> 12 | D53: =IF(NOT(ISBLANK(ShareOfSearch_SERPS!G53)),ShareOfSearch_SERPS!G53,"") -> http://www.seoconsultancyltd.com/choosing-right-seo-services/ | E53: =IF(NOT(ISBLANK(ShareOfSearch_SERPS!K53)),ShareOfSearch_SERPS!K53,"") -> seoconsultancyltd.com | F53: =IFERROR(VLOOKUP(C53,ShareOfSearch_CTR!$A$1:$B$100,2,FALSE)*VLOOKUP(A53&B53,ShareOfSearch_Volume!$C$1:$D$1000,2,FALSE),"") -> 3386.145
A54: =IF(ISTEXT(ShareOfSearch_SERPS!C54),ShareOfSearch_SERPS!C54,"") -> seo services | B54: =IF(ISTEXT(ShareOfSearch_SERPS!D54),ShareOfSearch_SERPS!D54,"") -> co.uk | C54: =IF(NOT(ISBLANK(ShareOfSearch_SERPS!A54)),ShareOfSearch_SERPS!A54,"") -> 13 | D54: =IF(NOT(ISBLANK(ShareOfSearch_SERPS!G54)),ShareOfSearch_SERPS!G54,"") -> http://www.expertseobournemouth.co.uk/ | E54: =IF(NOT(ISBLANK(ShareOfSearch_SERPS!K54)),ShareOfSearch_SERPS!K54,"") -> expertseobournemouth.co.uk | F54: =IFERROR(VLOOKUP(C54,ShareOfSearch_CTR!$A$1:$B$100,2,FALSE)*VLOOKUP(A54&B54,ShareOfSearch_Volume!$C$1:$D$1000,2,FALSE),"") -> 2934.659
A55: =IF(ISTEXT(ShareOfSearch_SERPS!C55),ShareOfSearch_SERPS!C55,"") -> seo services | B55: =IF(ISTEXT(ShareOfSearch_SERPS!D55),ShareOfSearch_SERPS!D55,"") -> co.uk | C55: =IF(NOT(ISBLANK(ShareOfSearch_SERPS!A55)),ShareOfSearch_SERPS!A55,"") -> 14 | D55: =IF(NOT(ISBLANK(ShareOfSearch_SERPS!G55)),ShareOfSearch_SERPS!G55,"") -> http://www.found.co.uk/ | E55: =IF(NOT(ISBLANK(ShareOfSearch_SERPS!K55)),ShareOfSearch_SERPS!K55,"") -> found.co.uk | F55: =IFERROR(VLOOKUP(C55,ShareOfSearch_CTR!$A$1:$B$100,2,FALSE)*VLOOKUP(A55&B55,ShareOfSearch_Volume!$C$1:$D$1000,2,FALSE),"") -> 2483.173
A56: =IF(ISTEXT(ShareOfSearch_SERPS!C56),ShareOfSearch_SERPS!C56,"") -> seo services | B56: =IF(ISTEXT(ShareOfSearch_SERPS!D56),ShareOfSearch_SERPS!D56,"") -> co.uk | C56: =IF(NOT(ISBLANK(ShareOfSearch_SERPS!A56)),ShareOfSearch_SERPS!A56,"") -> 15 | D56: =IF(NOT(ISBLANK(ShareOfSearch_SERPS!G56)),ShareOfSearch_SERPS!G56,"") -> http://www.found.co.uk/services/natural-search-seo/ | E56: =IF(NOT(ISBLANK(ShareOfSearch_SERPS!K56)),ShareOfSearch_SERPS!K56,"") -> found.co.uk | F56: =IFERROR(VLOOKUP(C56,ShareOfSearch_CTR!$A$1:$B$100,2,FALSE)*VLOOKUP(A56&B56,ShareOfSearch_Volume!$C$1:$D$1000,2,FALSE),"") -> 2708.916
A57: =IF(ISTEXT(ShareOfSearch_SERPS!C57),ShareOfSearch_SERPS!C57,"") -> seo services | B57: =IF(ISTEXT(ShareOfSearch_SERPS!D57),ShareOfSearch_SERPS!D57,"") -> co.uk | C57: =IF(NOT(ISBLANK(ShareOfSearch_SERPS!A57)),ShareOfSearch_SERPS!A57,"") -> 16 | D57: =IF(NOT(ISBLANK(ShareOfSearch_SERPS!G57)),ShareOfSearch_SERPS!G57,"") -> http://searchenginewatch.com/article/2267471/How-Much-Should-You-Spend-on-SEO-Services | E57: =IF(NOT(ISBLANK(ShareOfSearch_SERPS!K57)),ShareOfSearch_SERPS!K57,"") -> searchenginewatch.com | F57: =IFERROR(VLOOKUP(C57,ShareOfSearch_CTR!$A$1:$B$100,2,FALSE)*VLOOKUP(A57&B57,ShareOfSearch_Volume!$C$1:$D$1000,2,FALSE),"") -> 2708.916
A58: =IF(ISTEXT(ShareOfSearch_SERPS!C58),ShareOfSearch_SERPS!C58,"") -> seo services | B58: =IF(ISTEXT(ShareOfSearch_SERPS!D58),ShareOfSearch_SERPS!D58,"") -> co.uk | C58: =IF(NOT(ISBLANK(ShareOfSearch_SERPS!A58)),ShareOfSearch_SERPS!A58,"") -> 17 | D58: =IF(NOT(ISBLANK(ShareOfSearch_SERPS!G58)),ShareOfSearch_SERPS!G58,"") -> http://www.creode.co.uk/services/seo-services | E58: =IF(NOT(ISBLANK(ShareOfSearch_SERPS!K58)),ShareOfSearch_SERPS!K58,"") -> creode.co.uk | F58: =IFERROR(VLOOKUP(C58,ShareOfSearch_CTR!$A$1:$B$100,2,FALSE)*VLOOKUP(A58&B58,ShareOfSearch_Volume!$C$1:$D$1000,2,FALSE),"") -> 3160.402
A59: =IF(ISTEXT(ShareOfSearch_SERPS!C59),ShareOfSearch_SERPS!C59,"") -> seo services | B59: =IF(ISTEXT(ShareOfSearch_SERPS!D59),ShareOfSearch_SERPS!D59,"") -> co.uk | C59: =IF(NOT(ISBLANK(ShareOfSearch_SERPS!A59)),ShareOfSearch_SERPS!A59,"") -> 18 | D59: =IF(NOT(ISBLANK(ShareOfSearch_SERPS!G59)),ShareOfSearch_SERPS!G59,"") -> http://www.rankno1.co.uk/ | E59: =IF(NOT(ISBLANK(ShareOfSearch_SERPS!K59)),ShareOfSearch_SERPS!K59,"") -> rankno1.co.uk | F59: =IFERROR(VLOOKUP(C59,ShareOfSearch_CTR!$A$1:$B$100,2,FALSE)*VLOOKUP(A59&B59,ShareOfSearch_Volume!$C$1:$D$1000,2,FALSE),"") -> 2934.659
A60: =IF(ISTEXT(ShareOfSearch_SERPS!C60),ShareOfSearch_SERPS!C60,"") -> seo services | B60: =IF(ISTEXT(ShareOfSearch_SERPS!D60),ShareOfSearch_SERPS!D60,"") -> co.uk | C60: =IF(NOT(ISBLANK(ShareOfSearch_SERPS!A60)),ShareOfSearch_SERPS!A60,"") -> 19 | D60: =IF(NOT(ISBLANK(ShareOfSearch_SERPS!G60)),ShareOfSearch_SERPS!G60,"") -> http://www.hobo-web.co.uk/ | E60: =IF(NOT(ISBLANK(ShareOfSearch_SERPS!K60)),ShareOfSearch_SERPS!K60,"") -> hobo-web.co.uk | F60: =IFERROR(VLOOKUP(C60,ShareOfSearch_CTR!$A$1:$B$100,2,FALSE)*VLOOKUP(A60&B60,ShareOfSearch_Volume!$C$1:$D$1000,2,FALSE),"") -> 3160.402
A61: =IF(ISTEXT(ShareOfSearch_SERPS!C61),ShareOfSearch_SERPS!C61,"") -> seo services | B61: =IF(ISTEXT(ShareOfSearch_SERPS!D61),ShareOfSearch_SERPS!D61,"") -> co.uk | C61: =IF(NOT(ISBLANK(ShareOfSearch_SERPS!A61)),ShareOfSearch_SERPS!A61,"") -> 20 | D61: =IF(NOT(ISBLANK(ShareOfSearch_SERPS!G61)),ShareOfSearch_SERPS!G61,"") -> http://www.seoperspective.com/ | E61: =IF(NOT(ISBLANK(ShareOfSearch_SERPS!K61)),ShareOfSearch_SERPS!K61,"") -> seoperspective.com | F61: =IFERROR(VLOOKUP(C61,ShareOfSearch_CTR!$A$1:$B$100,2,FALSE)*VLOOKUP(A61&B61,ShareOfSearch_Volume!$C$1:$D$1000,2,FALSE),"") -> 3160.402
A62: =IF(ISTEXT(ShareOfSearch_SERPS!C62),ShareOfSearch_SERPS!C62,"") -> seo company | B62: =IF(ISTEXT(ShareOfSearch_SERPS!D62),ShareOfSearch_SERPS!D62,"") -> co.uk | C62: =IF(NOT(ISBLANK(ShareOfSearch_SERPS!A62)),ShareOfSearch_SERPS!A62,"") -> 1 | D62: =IF(NOT(ISBLANK(ShareOfSearch_SERPS!G62)),ShareOfSearch_SERPS!G62,"") -> http://www.rebootonline.com/ | E62: =IF(NOT(ISBLANK(ShareOfSearch_SERPS!K62)),ShareOfSearch_SERPS!K62,"") -> rebootonline.com | F62: =IFERROR(VLOOKUP(C62,ShareOfSearch_CTR!$A$1:$B$100,2,FALSE)*VLOOKUP(A62&B62,ShareOfSearch_Volume!$C$1:$D$1000,2,FALSE),"") -> 80888.08
A63: =IF(ISTEXT(ShareOfSearch_SERPS!C63),ShareOfSearch_SERPS!C63,"") -> seo company | B63: =IF(ISTEXT(ShareOfSearch_SERPS!D63),ShareOfSearch_SERPS!D63,"") -> co.uk | C63: =IF(NOT(ISBLANK(ShareOfSearch_SERPS!A63)),ShareOfSearch_SERPS!A63,"") -> 2 | D63: =IF(NOT(ISBLANK(ShareOfSearch_SERPS!G63)),ShareOfSearch_SERPS!G63,"") -> http://maps.google.co.uk/maps?hl=&gl=uk&lr=&num=10&um=1&ie=UTF-8&fb=1&q=seo%2Bcompany&hq=seo%2Bcompany&hnear=0x48768014e63fc7d3:0xb682f981a1a3f622,Crowthorne,+Bracknell+Forest | E63: =IF(NOT(ISBLANK(ShareOfSearch_SERPS!K63)),ShareOfSearch_SERPS!K63,"") -> google.co.uk | F63: =IFERROR(VLOOKUP(C63,ShareOfSearch_CTR!$A$1:$B$100,2,FALSE)*VLOOKUP(A63&B63,ShareOfSearch_Volume!$C$1:$D$1000,2,FALSE),"") -> 27777.5
A64: =IF(ISTEXT(ShareOfSearch_SERPS!C64),ShareOfSearch_SERPS!C64,"") -> seo company | B64: =IF(ISTEXT(ShareOfSearch_SERPS!D64),ShareOfSearch_SERPS!D64,"") -> co.uk | C64: =IF(NOT(ISBLANK(ShareOfSearch_SERPS!A64)),ShareOfSearch_SERPS!A64,"") -> 3 | D64: =IF(NOT(ISBLANK(ShareOfSearch_SERPS!G64)),ShareOfSearch_SERPS!G64,"") -> http://www.getmanic.co.uk/ | E64: =IF(NOT(ISBLANK(ShareOfSearch_SERPS!K64)),ShareOfSearch_SERPS!K64,"") -> getmanic.co.uk | F64: =IFERROR(VLOOKUP(C64,ShareOfSearch_CTR!$A$1:$B$100,2,FALSE)*VLOOKUP(A64&B64,ShareOfSearch_Volume!$C$1:$D$1000,2,FALSE),"") -> 21110.9
A65: =IF(ISTEXT(ShareOfSearch_SERPS!C65),ShareOfSearch_SERPS!C65,"") -> seo company | B65: =IF(ISTEXT(ShareOfSearch_SERPS!D65),ShareOfSearch_SERPS!D65,"") -> co.uk | C65: =IF(NOT(ISBLANK(ShareOfSearch_SERPS!A65)),ShareOfSearch_SERPS!A65,"") -> 4 | D65: =IF(NOT(ISBLANK(ShareOfSearch_SERPS!G65)),ShareOfSearch_SERPS!G65,"") -> http://www.uwpgroup.co.uk/service/seo-london/ | E65: =IF(NOT(ISBLANK(ShareOfSearch_SERPS!K65)),ShareOfSearch_SERPS!K65,"") -> uwpgroup.co.uk | F65: =IFERROR(VLOOKUP(C65,ShareOfSearch_CTR!$A$1:$B$100,2,FALSE)*VLOOKUP(A65&B65,ShareOfSearch_Volume!$C$1:$D$1000,2,FALSE),"") -> 17555.38
A66: =IF(ISTEXT(ShareOfSearch_SERPS!C66),ShareOfSearch_SERPS!C66,"") -> seo company | B66: =IF(ISTEXT(ShareOfSearch_SERPS!D66),ShareOfSearch_SERPS!D66,"") -> co.uk | C66: =IF(NOT(ISBLANK(ShareOfSearch_SERPS!A66)),ShareOfSearch_SERPS!A66,"") -> 5 | D66: =IF(NOT(ISBLANK(ShareOfSearch_SERPS!G66)),ShareOfSearch_SERPS!G66,"") -> http://www.seoconsultancyltd.com/choosing-right-seo-services/ | E66: =IF(NOT(ISBLANK(ShareOfSearch_SERPS!K66)),ShareOfSearch_SERPS!K66,"") -> seoconsultancyltd.com | F66: =IFERROR(VLOOKUP(C66,ShareOfSearch_CTR!$A$1:$B$100,2,FALSE)*VLOOKUP(A66&B66,ShareOfSearch_Volume!$C$1:$D$1000,2,FALSE),"") -> 13555.42
A67: =IF(ISTEXT(ShareOfSearch_SERPS!C67),ShareOfSearch_SERPS!C67,"") -> seo company | B67: =IF(ISTEXT(ShareOfSearch_SERPS!D67),ShareOfSearch_SERPS!D67,"") -> co.uk | C67: =IF(NOT(ISBLANK(ShareOfSearch_SERPS!A67)),ShareOfSearch_SERPS!A67,"") -> 6 | D67: =IF(NOT(ISBLANK(ShareOfSearch_SERPS!G67)),ShareOfSearch_SERPS!G67,"") -> http://www.seoconsultancyltd.com/ | E67: =IF(NOT(ISBLANK(ShareOfSearch_SERPS!K67)),ShareOfSearch_SERPS!K67,"") -> seoconsultancyltd.com | F67: =IFERROR(VLOOKUP(C67,ShareOfSearch_CTR!$A$1:$B$100,2,FALSE)*VLOOKUP(A67&B67,ShareOfSearch_Volume!$C$1:$D$1000,2,FALSE),"") -> 9111.02
A68: =IF(ISTEXT(ShareOfSearch_SERPS!C68),ShareOfSearch_SERPS!C68,"") -> seo company | B68: =IF(ISTEXT(ShareOfSearch_SERPS!D68),ShareOfSearch_SERPS!D68,"") -> co.uk | C68: =IF(NOT(ISBLANK(ShareOfSearch_SERPS!A68)),ShareOfSearch_SERPS!A68,"") -> 7 | D68: =IF(NOT(ISBLANK(ShareOfSearch_SERPS!G68)),ShareOfSearch_SERPS!G68,"") -> http://www.forbes.com/sites/joshsteimle/2013/09/23/4-tips-for-hiring-the-right-seo-firm/ | E68: =IF(NOT(ISBLANK(ShareOfSearch_SERPS!K68)),ShareOfSearch_SERPS!K68,"") -> forbes.com | F68: =IFERROR(VLOOKUP(C68,ShareOfSearch_CTR!$A$1:$B$100,2,FALSE)*VLOOKUP(A68&B68,ShareOfSearch_Volume!$C$1:$D$1000,2,FALSE),"") -> 8444.36
A69: =IF(ISTEXT(ShareOfSearch_SERPS!C69),ShareOfSearch_SERPS!C69,"") -> seo company | B69: =IF(ISTEXT(ShareOfSearch_SERPS!D69),ShareOfSearch_SERPS!D69,"") -> co.uk | C69: =IF(NOT(ISBLANK(ShareOfSearch_SERPS!A69)),ShareOfSearch_SERPS!A69,"") -> 8 | D69: =IF(NOT(ISBLANK(ShareOfSearch_SERPS!G69)),ShareOfSearch_SERPS!G69,"") -> http://en.wikipedia.org/wiki/Search_engine_optimization | E69: =IF(NOT(ISBLANK(ShareOfSearch_SERPS!K69)),ShareOfSearch_SERPS!K69,"") -> wikipedia.org | F69: =IFERROR(VLOOKUP(C69,ShareOfSearch_CTR!$A$1:$B$100,2,FALSE)*VLOOKUP(A69&B69,ShareOfSearch_Volume!$C$1:$D$1000,2,FALSE),"") -> 7777.7
A70: =IF(ISTEXT(ShareOfSearch_SERPS!C70),ShareOfSearch_SERPS!C70,"") -> seo company | B70: =IF(ISTEXT(ShareOfSearch_SERPS!D70),ShareOfSearch_SERPS!D70,"") -> co.uk | C70: =IF(NOT(ISBLANK(ShareOfSearch_SERPS!A70)),ShareOfSearch_SERPS!A70,"") -> 9 | D70: =IF(NOT(ISBLANK(ShareOfSearch_SERPS!G70)),ShareOfSearch_SERPS!G70,"") -> http://www.upstream.co.uk/ | E70: =IF(NOT(ISBLANK(ShareOfSearch_SERPS!K70)),ShareOfSearch_SERPS!K70,"") -> upstream.co.uk | F70: =IFERROR(VLOOKUP(C70,ShareOfSearch_CTR!$A$1:$B$100,2,FALSE)*VLOOKUP(A70&B70,ShareOfSearch_Volume!$C$1:$D$1000,2,FALSE),"") -> 6666.6
A71: =IF(ISTEXT(ShareOfSearch_SERPS!C71),ShareOfSearch_SERPS!C71,"") -> seo company | B71: =IF(ISTEXT(ShareOfSearch_SERPS!D71),ShareOfSearch_SERPS!D71,"") -> co.uk | C71: =IF(NOT(ISBLANK(ShareOfSearch_SERPS!A71)),ShareOfSearch_SERPS!A71,"") -> 10 | D71: =IF(NOT(ISBLANK(ShareOfSearch_SERPS!G71)),ShareOfSearch_SERPS!G71,"") -> http://www.hobo-web.co.uk/ | E71: =IF(NOT(ISBLANK(ShareOfSearch_SERPS!K71)),ShareOfSearch_SERPS!K71,"") -> hobo-web.co.uk | F71: =IFERROR(VLOOKUP(C71,ShareOfSearch_CTR!$A$1:$B$100,2,FALSE)*VLOOKUP(A71&B71,ShareOfSearch_Volume!$C$1:$D$1000,2,FALSE),"") -> 4888.84
A72: =IF(ISTEXT(ShareOfSearch_SERPS!C72),ShareOfSearch_SERPS!C72,"") -> seo company | B72: =IF(ISTEXT(ShareOfSearch_SERPS!D72),ShareOfSearch_SERPS!D72,"") -> co.uk | C72: =IF(NOT(ISBLANK(ShareOfSearch_SERPS!A72)),ShareOfSearch_SERPS!A72,"") -> 11 | D72: =IF(NOT(ISBLANK(ShareOfSearch_SERPS!G72)),ShareOfSearch_SERPS!G72,"") -> http://www.vanillacircus.co.uk/ | E72: =IF(NOT(ISBLANK(ShareOfSearch_SERPS!K72)),ShareOfSearch_SERPS!K72,"") -> vanillacircus.co.uk | F72: =IFERROR(VLOOKUP(C72,ShareOfSearch_CTR!$A$1:$B$100,2,FALSE)*VLOOKUP(A72&B72,ShareOfSearch_Volume!$C$1:$D$1000,2,FALSE),"") -> 5777.72
A73: =IF(ISTEXT(ShareOfSearch_SERPS!C73),ShareOfSearch_SERPS!C73,"") -> seo company | B73: =IF(ISTEXT(ShareOfSearch_SERPS!D73),ShareOfSearch_SERPS!D73,"") -> co.uk | C73: =IF(NOT(ISBLANK(ShareOfSearch_SERPS!A73)),ShareOfSearch_SERPS!A73,"") -> 12 | D73: =IF(NOT(ISBLANK(ShareOfSearch_SERPS!G73)),ShareOfSearch_SERPS!G73,"") -> http://www.seoco.co.uk/ | E73: =IF(NOT(ISBLANK(ShareOfSearch_SERPS!K73)),ShareOfSearch_SERPS!K73,"") -> seoco.co.uk | F73: =IFERROR(VLOOKUP(C73,ShareOfSearch_CTR!$A$1:$B$100,2,FALSE)*VLOOKUP(A73&B73,ShareOfSearch_Volume!$C$1:$D$1000,2,FALSE),"") -> 3333.3
A74: =IF(ISTEXT(ShareOfSearch_SERPS!C74),ShareOfSearch_SERPS!C74,"") -> seo company | B74: =IF(ISTEXT(ShareOfSearch_SERPS!D74),ShareOfSearch_SERPS!D74,"") -> co.uk | C74: =IF(NOT(ISBLANK(ShareOfSearch_SERPS!A74)),ShareOfSearch_SERPS!A74,"") -> 13 | D74: =IF(NOT(ISBLANK(ShareOfSearch_SERPS!G74)),ShareOfSearch_SERPS!G74,"") -> http://www.adjuice.co.uk/ | E74: =IF(NOT(ISBLANK(ShareOfSearch_SERPS!K74)),ShareOfSearch_SERPS!K74,"") -> adjuice.co.uk | F74: =IFERROR(VLOOKUP(C74,ShareOfSearch_CTR!$A$1:$B$100,2,FALSE)*VLOOKUP(A74&B74,ShareOfSearch_Volume!$C$1:$D$1000,2,FALSE),"") -> 2888.86
A75: =IF(ISTEXT(ShareOfSearch_SERPS!C75),ShareOfSearch_SERPS!C75,"") -> seo company | B75: =IF(ISTEXT(ShareOfSearch_SERPS!D75),ShareOfSearch_SERPS!D75,"") -> co.uk | C75: =IF(NOT(ISBLANK(ShareOfSearch_SERPS!A75)),ShareOfSearch_SERPS!A75,"") -> 14 | D75: =IF(NOT(ISBLANK(ShareOfSearch_SERPS!G75)),ShareOfSearch_SERPS!G75,"") -> http://www.risedigital.com/ | E75: =IF(NOT(ISBLANK(ShareOfSearch_SERPS!K75)),ShareOfSearch_SERPS!K75,"") -> risedigital.com | F75: =IFERROR(VLOOKUP(C75,ShareOfSearch_CTR!$A$1:$B$100,2,FALSE)*VLOOKUP(A75&B75,ShareOfSearch_Volume!$C$1:$D$1000,2,FALSE),"") -> 2444.42
A76: =IF(ISTEXT(ShareOfSearch_SERPS!C76),ShareOfSearch_SERPS!C76,"") -> seo company | B76: =IF(ISTEXT(ShareOfSearch_SERPS!D76),ShareOfSearch_SERPS!D76,"") -> co.uk | C76: =IF(NOT(ISBLANK(ShareOfSearch_SERPS!A76)),ShareOfSearch_SERPS!A76,"") -> 15 | D76: =IF(NOT(ISBLANK(ShareOfSearch_SERPS!G76)),ShareOfSearch_SERPS!G76,"") -> http://www.kdweb.co.uk/seo.htm | E76: =IF(NOT(ISBLANK(ShareOfSearch_SERPS!K76)),ShareOfSearch_SERPS!K76,"") -> kdweb.co.uk | F76: =IFERROR(VLOOKUP(C76,ShareOfSearch_CTR!$A$1:$B$100,2,FALSE)*VLOOKUP(A76&B76,ShareOfSearch_Volume!$C$1:$D$1000,2,FALSE),"") -> 2666.64
A77: =IF(ISTEXT(ShareOfSearch_SERPS!C77),ShareOfSearch_SERPS!C77,"") -> seo company | B77: =IF(ISTEXT(ShareOfSearch_SERPS!D77),ShareOfSearch_SERPS!D77,"") -> co.uk | C77: =IF(NOT(ISBLANK(ShareOfSearch_SERPS!A77)),ShareOfSearch_SERPS!A77,"") -> 16 | D77: =IF(NOT(ISBLANK(ShareOfSearch_SERPS!G77)),ShareOfSearch_SERPS!G77,"") -> http://www.branded3.com/blogs/top-25-most-visible-seo-agencies-in-the-uk-according-to-searchmetrics/ | E77: =IF(NOT(ISBLANK(ShareOfSearch_SERPS!K77)),ShareOfSearch_SERPS!K77,"") -> branded3.com | F77: =IFERROR(VLOOKUP(C77,ShareOfSearch_CTR!$A$1:$B$100,2,FALSE)*VLOOKUP(A77&B77,ShareOfSearch_Volume!$C$1:$D$1000,2,FALSE),"") -> 2666.64
A78: =IF(ISTEXT(ShareOfSearch_SERPS!C78),ShareOfSearch_SERPS!C78,"") -> seo company | B78: =IF(ISTEXT(ShareOfSearch_SERPS!D78),ShareOfSearch_SERPS!D78,"") -> co.uk | C78: =IF(NOT(ISBLANK(ShareOfSearch_SERPS!A78)),ShareOfSearch_SERPS!A78,"") -> 17 | D78: =IF(NOT(ISBLANK(ShareOfSearch_SERPS!G78)),ShareOfSearch_SERPS!G78,"") -> http://www.rankno1.co.uk/ | E78: =IF(NOT(ISBLANK(ShareOfSearch_SERPS!K78)),ShareOfSearch_SERPS!K78,"") -> rankno1.co.uk | F78: =IFERROR(VLOOKUP(C78,ShareOfSearch_CTR!$A$1:$B$100,2,FALSE)*VLOOKUP(A78&B78,ShareOfSearch_Volume!$C$1:$D$1000,2,FALSE),"") -> 3111.08
A79: =IF(ISTEXT(ShareOfSearch_SERPS!C79),ShareOfSearch_SERPS!C79,"") -> seo company | B79: =IF(ISTEXT(ShareOfSearch_SERPS!D79),ShareOfSearch_SERPS!D79,"") -> co.uk | C79: =IF(NOT(ISBLANK(ShareOfSearch_SERPS!A79)),ShareOfSearch_SERPS!A79,"") -> 18 | D79: =IF(NOT(ISBLANK(ShareOfSearch_SERPS!G79)),ShareOfSearch_SERPS!G79,"") -> http://www.seosilly.co.uk/search-engine-optimisation/ | E79: =IF(NOT(ISBLANK(ShareOfSearch_SERPS!K79)),ShareOfSearch_SERPS!K79,"") -> seosilly.co.uk | F79: =IFERROR(VLOOKUP(C79,ShareOfSearch_CTR!$A$1:$B$100,2,FALSE)*VLOOKUP(A79&B79,ShareOfSearch_Volume!$C$1:$D$1000,2,FALSE),"") -> 2888.86
A80: =IF(ISTEXT(ShareOfSearch_SERPS!C80),ShareOfSearch_SERPS!C80,"") -> seo company | B80: =IF(ISTEXT(ShareOfSearch_SERPS!D80),ShareOfSearch_SERPS!D80,"") -> co.uk | C80: =IF(NOT(ISBLANK(ShareOfSearch_SERPS!A80)),ShareOfSearch_SERPS!A80,"") -> 19 | D80: =IF(NOT(ISBLANK(ShareOfSearch_SERPS!G80)),ShareOfSearch_SERPS!G80,"") -> http://www.varnmedia.co.uk/seo-bath/ | E80: =IF(NOT(ISBLANK(ShareOfSearch_SERPS!K80)),ShareOfSearch_SERPS!K80,"") -> varnmedia.co.uk | F80: =IFERROR(VLOOKUP(C80,ShareOfSearch_CTR!$A$1:$B$100,2,FALSE)*VLOOKUP(A80&B80,ShareOfSearch_Volume!$C$1:$D$1000,2,FALSE),"") -> 3111.08
A81: =IF(ISTEXT(ShareOfSearch_SERPS!C81),ShareOfSearch_SERPS!C81,"") -> seo company | B81: =IF(ISTEXT(ShareOfSearch_SERPS!D81),ShareOfSearch_SERPS!D81,"") -> co.uk | C81: =IF(NOT(ISBLANK(ShareOfSearch_SERPS!A81)),ShareOfSearch_SERPS!A81,"") -> 20 | D81: =IF(NOT(ISBLANK(ShareOfSearch_SERPS!G81)),ShareOfSearch_SERPS!G81,"") -> http://www.expertseobournemouth.co.uk/ | E81: =IF(NOT(ISBLANK(ShareOfSearch_SERPS!K81)),ShareOfSearch_SERPS!K81,"") -> expertseobournemouth.co.uk | F81: =IFERROR(VLOOKUP(C81,ShareOfSearch_CTR!$A$1:$B$100,2,FALSE)*VLOOKUP(A81&B81,ShareOfSearch_Volume!$C$1:$D$1000,2,FALSE),"") -> 3111.08
A82: =IF(ISTEXT(ShareOfSearch_SERPS!C82),ShareOfSearch_SERPS!C82,"") -> search optimization | B82: =IF(ISTEXT(ShareOfSearch_SERPS!D82),ShareOfSearch_SERPS!D82,"") -> co.uk | C82: =IF(NOT(ISBLANK(ShareOfSearch_SERPS!A82)),ShareOfSearch_SERPS!A82,"") -> 1 | D82: =IF(NOT(ISBLANK(ShareOfSearch_SERPS!G82)),ShareOfSearch_SERPS!G82,"") -> http://en.wikipedia.org/wiki/Search_engine_optimization | E82: =IF(NOT(ISBLANK(ShareOfSearch_SERPS!K82)),ShareOfSearch_SERPS!K82,"") -> wikipedia.org | F82: =IFERROR(VLOOKUP(C82,ShareOfSearch_CTR!$A$1:$B$100,2,FALSE)*VLOOKUP(A82&B82,ShareOfSearch_Volume!$C$1:$D$1000,2,FALSE),"") -> 78915.2
A83: =IF(ISTEXT(ShareOfSearch_SERPS!C83),ShareOfSearch_SERPS!C83,"") -> search optimization | B83: =IF(ISTEXT(ShareOfSearch_SERPS!D83),ShareOfSearch_SERPS!D83,"") -> co.uk | C83: =IF(NOT(ISBLANK(ShareOfSearch_SERPS!A83)),ShareOfSearch_SERPS!A83,"") -> 2 | D83: =IF(NOT(ISBLANK(ShareOfSearch_SERPS!G83)),ShareOfSearch_SERPS!G83,"") -> http://www.google.co.uk/webmasters/docs/search-engine-optimization-starter-guide.pdf | E83: =IF(NOT(ISBLANK(ShareOfSearch_SERPS!K83)),ShareOfSearch_SERPS!K83,"") -> google.co.uk | F83: =IFERROR(VLOOKUP(C83,ShareOfSearch_CTR!$A$1:$B$100,2,FALSE)*VLOOKUP(A83&B83,ShareOfSearch_Volume!$C$1:$D$1000,2,FALSE),"") -> 27100
A84: =IF(ISTEXT(ShareOfSearch_SERPS!C84),ShareOfSearch_SERPS!C84,"") -> search optimization | B84: =IF(ISTEXT(ShareOfSearch_SERPS!D84),ShareOfSearch_SERPS!D84,"") -> co.uk | C84: =IF(NOT(ISBLANK(ShareOfSearch_SERPS!A84)),ShareOfSearch_SERPS!A84,"") -> 3 | D84: =IF(NOT(ISBLANK(ShareOfSearch_SERPS!G84)),ShareOfSearch_SERPS!G84,"") -> http://searchenginewatch.com/article/2259693/SEO-Basics-8-Essentials-When-Optimizing-Your-Site | E84: =IF(NOT(ISBLANK(ShareOfSearch_SERPS!K84)),ShareOfSearch_SERPS!K84,"") -> searchenginewatch.com | F84: =IFERROR(VLOOKUP(C84,ShareOfSearch_CTR!$A$1:$B$100,2,FALSE)*VLOOKUP(A84&B84,ShareOfSearch_Volume!$C$1:$D$1000,2,FALSE),"") -> 20596
A85: =IF(ISTEXT(ShareOfSearch_SERPS!C85),ShareOfSearch_SERPS!C85,"") -> search optimization | B85: =IF(ISTEXT(ShareOfSearch_SERPS!D85),ShareOfSearch_SERPS!D85,"") -> co.uk | C85: =IF(NOT(ISBLANK(ShareOfSearch_SERPS!A85)),ShareOfSearch_SERPS!A85,"") -> 4 | D85: =IF(NOT(ISBLANK(ShareOfSearch_SERPS!G85)),ShareOfSearch_SERPS!G85,"") -> http://searchengineland.com/guide/what-is-seo | E85: =IF(NOT(ISBLANK(ShareOfSearch_SERPS!K85)),ShareOfSearch_SERPS!K85,"") -> searchengineland.com | F85: =IFERROR(VLOOKUP(C85,ShareOfSearch_CTR!$A$1:$B$100,2,FALSE)*VLOOKUP(A85&B85,ShareOfSearch_Volume!$C$1:$D$1000,2,FALSE),"") -> 17127.2
A86: =IF(ISTEXT(ShareOfSearch_SERPS!C86),ShareOfSearch_SERPS!C86,"") -> search optimization | B86: =IF(ISTEXT(ShareOfSearch_SERPS!D86),ShareOfSearch_SERPS!D86,"") -> co.uk | C86: =IF(NOT(ISBLANK(ShareOfSearch_SERPS!A86)),ShareOfSearch_SERPS!A86,"") -> 5 | D86: =IF(NOT(ISBLANK(ShareOfSearch_SERPS!G86)),ShareOfSearch_SERPS!G86,"") -> https://support.google.com/webmasters/answer/35291%3Fhl%3Den | E86: =IF(NOT(ISBLANK(ShareOfSearch_SERPS!K86)),ShareOfSearch_SERPS!K86,"") -> google.com | F86: =IFERROR(VLOOKUP(C86,ShareOfSearch_CTR!$A$1:$B$100,2,FALSE)*VLOOKUP(A86&B86,ShareOfSearch_Volume!$C$1:$D$1000,2,FALSE),"") -> 13224.8
A87: =IF(ISTEXT(ShareOfSearch_SERPS!C87),ShareOfSearch_SERPS!C87,"") -> search optimization | B87: =IF(ISTEXT(ShareOfSearch_SERPS!D87),ShareOfSearch_SERPS!D87,"") -> co.uk | C87: =IF(NOT(ISBLANK(ShareOfSearch_SERPS!A87)),ShareOfSearch_SERPS!A87,"") -> 6 | D87: =IF(NOT(ISBLANK(ShareOfSearch_SERPS!G87)),ShareOfSearch_SERPS!G87,"") -> http://www.webopedia.com/TERM/S/SEO.html | E87: =IF(NOT(ISBLANK(ShareOfSearch_SERPS!K87)),ShareOfSearch_SERPS!K87,"") -> webopedia.com | F87: =IFERROR(VLOOKUP(C87,ShareOfSearch_CTR!$A$1:$B$100,2,FALSE)*VLOOKUP(A87&B87,ShareOfSearch_Volume!$C$1:$D$1000,2,FALSE),"") -> 8888.8
A88: =IF(ISTEXT(ShareOfSearch_SERPS!C88),ShareOfSearch_SERPS!C88,"") -> search optimization | B88: =IF(ISTEXT(ShareOfSearch_SERPS!D88),ShareOfSearch_SERPS!D88,"") -> co.uk | C88: =IF(NOT(ISBLANK(ShareOfSearch_SERPS!A88)),ShareOfSearch_SERPS!A88,"") -> 7 | D88: =IF(NOT(ISBLANK(ShareOfSearch_SERPS!G88)),ShareOfSearch_SERPS!G88,"") -> http://computer.howstuffworks.com/search-engine-optimization.htm | E88: =IF(NOT(ISBLANK(ShareOfSearch_SERPS!K88)),ShareOfSearch_SERPS!K88,"") -> howstuffworks.com | F88: =IFERROR(VLOOKUP(C88,ShareOfSearch_CTR!$A$1:$B$100,2,FALSE)*VLOOKUP(A88&B88,ShareOfSearch_Volume!$C$1:$D$1000,2,FALSE),"") -> 8238.4
A89: =IF(ISTEXT(ShareOfSearch_SERPS!C89),ShareOfSearch_SERPS!C89,"") -> search optimization | B89: =IF(ISTEXT(ShareOfSearch_SERPS!D89),ShareOfSearch_SERPS!D89,"") -> co.uk | C89: =IF(NOT(ISBLANK(ShareOfSearch_SERPS!A89)),ShareOfSearch_SERPS!A89,"") -> 8 | D89: =IF(NOT(ISBLANK(ShareOfSearch_SERPS!G89)),ShareOfSearch_SERPS!G89,"") -> http://moz.com/beginners-guide-to-seo | E89: =IF(NOT(ISBLANK(ShareOfSearch_SERPS!K89)),ShareOfSearch_SERPS!K89,"") -> moz.com | F89: =IFERROR(VLOOKUP(C89,ShareOfSearch_CTR!$A$1:$B$100,2,FALSE)*VLOOKUP(A89&B89,ShareOfSearch_Volume!$C$1:$D$1000,2,FALSE),"") -> 7588
A90: =IF(ISTEXT(ShareOfSearch_SERPS!C90),ShareOfSearch_SERPS!C90,"") -> search optimization | B90: =IF(ISTEXT(ShareOfSearch_SERPS!D90),ShareOfSearch_SERPS!D90,"") -> co.uk | C90: =IF(NOT(ISBLANK(ShareOfSearch_SERPS!A90)),ShareOfSearch_SERPS!A90,"") -> 9 | D90: =IF(NOT(ISBLANK(ShareOfSearch_SERPS!G90)),ShareOfSearch_SERPS!G90,"") -> http://www.redevolution.com/what-is-seo/ | E90: =IF(NOT(ISBLANK(ShareOfSearch_SERPS!K90)),ShareOfSearch_SERPS!K90,"") -> redevolution.com | F90: =IFERROR(VLOOKUP(C90,ShareOfSearch_CTR!$A$1:$B$100,2,FALSE)*VLOOKUP(A90&B90,ShareOfSearch_Volume!$C$1:$D$1000,2,FALSE),"") -> 6504
A91: =IF(ISTEXT(ShareOfSearch_SERPS!C91),ShareOfSearch_SERPS!C91,"") -> search optimization | B91: =IF(ISTEXT(ShareOfSearch_SERPS!D91),ShareOfSearch_SERPS!D91,"") -> co.uk | C91: =IF(NOT(ISBLANK(ShareOfSearch_SERPS!A91)),ShareOfSearch_SERPS!A91,"") -> 10 | D91: =IF(NOT(ISBLANK(ShareOfSearch_SERPS!G91)),ShareOfSearch_SERPS!G91,"") -> http://www.screamingfrog.co.uk/search-engine-optimisation/ | E91: =IF(NOT(ISBLANK(ShareOfSearch_SERPS!K91)),ShareOfSearch_SERPS!K91,"") -> screamingfrog.co.uk | F91: =IFERROR(VLOOKUP(C91,ShareOfSearch_CTR!$A$1:$B$100,2,FALSE)*VLOOKUP(A91&B91,ShareOfSearch_Volume!$C$1:$D$1000,2,FALSE),"") -> 4769.6
A92: =IF(ISTEXT(ShareOfSearch_SERPS!C92),ShareOfSearch_SERPS!C92,"") -> search optimization | B92: =IF(ISTEXT(ShareOfSearch_SERPS!D92),ShareOfSearch_SERPS!D92,"") -> co.uk | C92: =IF(NOT(ISBLANK(ShareOfSearch_SERPS!A92)),ShareOfSearch_SERPS!A92,"") -> 11 | D92: =IF(NOT(ISBLANK(ShareOfSearch_SERPS!G92)),ShareOfSearch_SERPS!G92,"") -> http://www.screamingfrog.co.uk/ | E92: =IF(NOT(ISBLANK(ShareOfSearch_SERPS!K92)),ShareOfSearch_SERPS!K92,"") -> screamingfrog.co.uk | F92: =IFERROR(VLOOKUP(C92,ShareOfSearch_CTR!$A$1:$B$100,2,FALSE)*VLOOKUP(A92&B92,ShareOfSearch_Volume!$C$1:$D$1000,2,FALSE),"") -> 5636.8
A93: =IF(ISTEXT(ShareOfSearch_SERPS!C93),ShareOfSearch_SERPS!C93,"") -> search optimization | B93: =IF(ISTEXT(ShareOfSearch_SERPS!D93),ShareOfSearch_SERPS!D93,"") -> co.uk | C93: =IF(NOT(ISBLANK(ShareOfSearch_SERPS!A93)),ShareOfSearch_SERPS!A93,"") -> 12 | D93: =IF(NOT(ISBLANK(ShareOfSearch_SERPS!G93)),ShareOfSearch_SERPS!G93,"") -> http://www.hobo-web.co.uk/seo-tutorial/ | E93: =IF(NOT(ISBLANK(ShareOfSearch_SERPS!K93)),ShareOfSearch_SERPS!K93,"") -> hobo-web.co.uk | F93: =IFERROR(VLOOKUP(C93,ShareOfSearch_CTR!$A$1:$B$100,2,FALSE)*VLOOKUP(A93&B93,ShareOfSearch_Volume!$C$1:$D$1000,2,FALSE),"") -> 3252
A94: =IF(ISTEXT(ShareOfSearch_SERPS!C94),ShareOfSearch_SERPS!C94,"") -> search optimization | B94: =IF(ISTEXT(ShareOfSearch_SERPS!D94),ShareOfSearch_SERPS!D94,"") -> co.uk | C94: =IF(NOT(ISBLANK(ShareOfSearch_SERPS!A94)),ShareOfSearch_SERPS!A94,"") -> 13 | D94: =IF(NOT(ISBLANK(ShareOfSearch_SERPS!G94)),ShareOfSearch_SERPS!G94,"") -> http://www.businessinsider.com/10-basic-seo-tips-everyone-should-know-2010-1%3Fop%3D1 | E94: =IF(NOT(ISBLANK(ShareOfSearch_SERPS!K94)),ShareOfSearch_SERPS!K94,"") -> businessinsider.com | F94: =IFERROR(VLOOKUP(C94,ShareOfSearch_CTR!$A$1:$B$100,2,FALSE)*VLOOKUP(A94&B94,ShareOfSearch_Volume!$C$1:$D$1000,2,FALSE),"") -> 2818.4
A95: =IF(ISTEXT(ShareOfSearch_SERPS!C95),ShareOfSearch_SERPS!C95,"") -> search optimization | B95: =IF(ISTEXT(ShareOfSearch_SERPS!D95),ShareOfSearch_SERPS!D95,"") -> co.uk | C95: =IF(NOT(ISBLANK(ShareOfSearch_SERPS!A95)),ShareOfSearch_SERPS!A95,"") -> 14 | D95: =IF(NOT(ISBLANK(ShareOfSearch_SERPS!G95)),ShareOfSearch_SERPS!G95,"") -> http://www.huffingtonpost.com/loolwa-khazzoom/three-steps-to-optimizing_b_4153411.html | E95: =IF(NOT(ISBLANK(ShareOfSearch_SERPS!K95)),ShareOfSearch_SERPS!K95,"") -> huffingtonpost.com | F95: =IFERROR(VLOOKUP(C95,ShareOfSearch_CTR!$A$1:$B$100,2,FALSE)*VLOOKUP(A95&B95,ShareOfSearch_Volume!$C$1:$D$1000,2,FALSE),"") -> 2384.8
A96: =IF(ISTEXT(ShareOfSearch_SERPS!C96),ShareOfSearch_SERPS!C96,"") -> search optimization | B96: =IF(ISTEXT(ShareOfSearch_SERPS!D96),ShareOfSearch_SERPS!D96,"") -> co.uk | C96: =IF(NOT(ISBLANK(ShareOfSearch_SERPS!A96)),ShareOfSearch_SERPS!A96,"") -> 15 | D96: =IF(NOT(ISBLANK(ShareOfSearch_SERPS!G96)),ShareOfSearch_SERPS!G96,"") -> http://www.searchenginejournal.com/55-quick-seo-tips-even-your-mother-would-love/ | E96: =IF(NOT(ISBLANK(ShareOfSearch_SERPS!K96)),ShareOfSearch_SERPS!K96,"") -> searchenginejournal.com | F96: =IFERROR(VLOOKUP(C96,ShareOfSearch_CTR!$A$1:$B$100,2,FALSE)*VLOOKUP(A96&B96,ShareOfSearch_Volume!$C$1:$D$1000,2,FALSE),"") -> 2601.6
A97: =IF(ISTEXT(ShareOfSearch_SERPS!C97),ShareOfSearch_SERPS!C97,"") -> search optimization | B97: =IF(ISTEXT(ShareOfSearch_SERPS!D97),ShareOfSearch_SERPS!D97,"") -> co.uk | C97: =IF(NOT(ISBLANK(ShareOfSearch_SERPS!A97)),ShareOfSearch_SERPS!A97,"") -> 16 | D97: =IF(NOT(ISBLANK(ShareOfSearch_SERPS!G97)),ShareOfSearch_SERPS!G97,"") -> http://www.entrepreneur.com/seo/ | E97: =IF(NOT(ISBLANK(ShareOfSearch_SERPS!K97)),ShareOfSearch_SERPS!K97,"") -> entrepreneur.com | F97: =IFERROR(VLOOKUP(C97,ShareOfSearch_CTR!$A$1:$B$100,2,FALSE)*VLOOKUP(A97&B97,ShareOfSearch_Volume!$C$1:$D$1000,2,FALSE),"") -> 2601.6
A98: =IF(ISTEXT(ShareOfSearch_SERPS!C98),ShareOfSearch_SERPS!C98,"") -> search optimization | B98: =IF(ISTEXT(ShareOfSearch_SERPS!D98),ShareOfSearch_SERPS!D98,"") -> co.uk | C98: =IF(NOT(ISBLANK(ShareOfSearch_SERPS!A98)),ShareOfSearch_SERPS!A98,"") -> 17 | D98: =IF(NOT(ISBLANK(ShareOfSearch_SERPS!G98)),ShareOfSearch_SERPS!G98,"") -> http://www.bruceclay.com/eu/seo/search-engine-optimization.htm | E98: =IF(NOT(ISBLANK(ShareOfSearch_SERPS!K98)),ShareOfSearch_SERPS!K98,"") -> bruceclay.com | F98: =IFERROR(VLOOKUP(C98,ShareOfSearch_CTR!$A$1:$B$100,2,FALSE)*VLOOKUP(A98&B98,ShareOfSearch_Volume!$C$1:$D$1000,2,FALSE),"") -> 3035.2
A99: =IF(ISTEXT(ShareOfSearch_SERPS!C99),ShareOfSearch_SERPS!C99,"") -> search optimization | B99: =IF(ISTEXT(ShareOfSearch_SERPS!D99),ShareOfSearch_SERPS!D99,"") -> co.uk | C99: =IF(NOT(ISBLANK(ShareOfSearch_SERPS!A99)),ShareOfSearch_SERPS!A99,"") -> 18 | D99: =IF(NOT(ISBLANK(ShareOfSearch_SERPS!G99)),ShareOfSearch_SERPS!G99,"") -> http://www.youtube.com/watch%3Fv%3DhF515-0Tduk | E99: =IF(NOT(ISBLANK(ShareOfSearch_SERPS!K99)),ShareOfSearch_SERPS!K99,"") -> youtube.com | F99: =IFERROR(VLOOKUP(C99,ShareOfSearch_CTR!$A$1:$B$100,2,FALSE)*VLOOKUP(A99&B99,ShareOfSearch_Volume!$C$1:$D$1000,2,FALSE),"") -> 2818.4
A100: =IF(ISTEXT(ShareOfSearch_SERPS!C100),ShareOfSearch_SERPS!C100,"") -> search optimization | B100: =IF(ISTEXT(ShareOfSearch_SERPS!D100),ShareOfSearch_SERPS!D100,"") -> co.uk | C100: =IF(NOT(ISBLANK(ShareOfSearch_SERPS!A100)),ShareOfSearch_SERPS!A100,"") -> 19 | D100: =IF(NOT(ISBLANK(ShareOfSearch_SERPS!G100)),ShareOfSearch_SERPS!G100,"") -> http://www.inc.com/magazine/20100701/how-to-optimize-your-site-for-search.html | E100: =IF(NOT(ISBLANK(ShareOfSearch_SERPS!K100)),ShareOfSearch_SERPS!K100,"") -> www.inc.com | F100: =IFERROR(VLOOKUP(C100,ShareOfSearch_CTR!$A$1:$B$100,2,FALSE)*VLOOKUP(A100&B100,ShareOfSearch_Volume!$C$1:$D$1000,2,FALSE),"") -> 3035.2
A101: =IF(ISTEXT(ShareOfSearch_SERPS!C101),ShareOfSearch_SERPS!C101,"") -> search optimization | B101: =IF(ISTEXT(ShareOfSearch_SERPS!D101),ShareOfSearch_SERPS!D101,"") -> co.uk | C101: =IF(NOT(ISBLANK(ShareOfSearch_SERPS!A101)),ShareOfSearch_SERPS!A101,"") -> 20 | D101: =IF(NOT(ISBLANK(ShareOfSearch_SERPS!G101)),ShareOfSearch_SERPS!G101,"") -> http://www.youtube.com/watch%3Fv%3DhF515-0Tduk | E101: =IF(NOT(ISBLANK(ShareOfSearch_SERPS!K101)),ShareOfSearch_SERPS!K101,"") -> youtube.com | F101: =IFERROR(VLOOKUP(C101,ShareOfSearch_CTR!$A$1:$B$100,2,FALSE)*VLOOKUP(A101&B101,ShareOfSearch_Volume!$C$1:$D$1000,2,FALSE),"") -> 3035.2
A102: =IF(ISTEXT(ShareOfSearch_SERPS!C102),ShareOfSearch_SERPS!C102,"") -> search engine optimization seo | B102: =IF(ISTEXT(ShareOfSearch_SERPS!D102),ShareOfSearch_SERPS!D102,"") -> co.uk | C102: =IF(NOT(ISBLANK(ShareOfSearch_SERPS!A102)),ShareOfSearch_SERPS!A102,"") -> 1 | D102: =IF(NOT(ISBLANK(ShareOfSearch_SERPS!G102)),ShareOfSearch_SERPS!G102,"") -> http://en.wikipedia.org/wiki/Search_engine_optimization | E102: =IF(NOT(ISBLANK(ShareOfSearch_SERPS!K102)),ShareOfSearch_SERPS!K102,"") -> wikipedia.org | F102: =IFERROR(VLOOKUP(C102,ShareOfSearch_CTR!$A$1:$B$100,2,FALSE)*VLOOKUP(A102&B102,ShareOfSearch_Volume!$C$1:$D$1000,2,FALSE),"") -> 64611.82
A103: =IF(ISTEXT(ShareOfSearch_SERPS!C103),ShareOfSearch_SERPS!C103,"") -> search engine optimization seo | B103: =IF(ISTEXT(ShareOfSearch_SERPS!D103),ShareOfSearch_SERPS!D103,"") -> co.uk | C103: =IF(NOT(ISBLANK(ShareOfSearch_SERPS!A103)),ShareOfSearch_SERPS!A103,"") -> 2 | D103: =IF(NOT(ISBLANK(ShareOfSearch_SERPS!G103)),ShareOfSearch_SERPS!G103,"") -> http://searchengineland.com/guide/what-is-seo | E103: =IF(NOT(ISBLANK(ShareOfSearch_SERPS!K103)),ShareOfSearch_SERPS!K103,"") -> searchengineland.com | F103: =IFERROR(VLOOKUP(C103,ShareOfSearch_CTR!$A$1:$B$100,2,FALSE)*VLOOKUP(A103&B103,ShareOfSearch_Volume!$C$1:$D$1000,2,FALSE),"") -> 22188.125
A104: =IF(ISTEXT(ShareOfSearch_SERPS!C104),ShareOfSearch_SERPS!C104,"") -> search engine optimization seo | B104: =IF(ISTEXT(ShareOfSearch_SERPS!D104),ShareOfSearch_SERPS!D104,"") -> co.uk | C104: =IF(NOT(ISBLANK(ShareOfSearch_SERPS!A104)),ShareOfSearch_SERPS!A104,"") -> 3 | D104: =IF(NOT(ISBLANK(ShareOfSearch_SERPS!G104)),ShareOfSearch_SERPS!G104,"") -> https://support.google.com/webmasters/answer/35291%3Fhl%3Den | E104: =IF(NOT(ISBLANK(ShareOfSearch_SERPS!K104)),ShareOfSearch_SERPS!K104,"") -> google.com | F104: =IFERROR(VLOOKUP(C104,ShareOfSearch_CTR!$A$1:$B$100,2,FALSE)*VLOOKUP(A104&B104,ShareOfSearch_Volume!$C$1:$D$1000,2,FALSE),"") -> 16862.975
A105: =IF(ISTEXT(ShareOfSearch_SERPS!C105),ShareOfSearch_SERPS!C105,"") -> search engine optimization seo | B105: =IF(ISTEXT(ShareOfSearch_SERPS!D105),ShareOfSearch_SERPS!D105,"") -> co.uk | C105: =IF(NOT(ISBLANK(ShareOfSearch_SERPS!A105)),ShareOfSearch_SERPS!A105,"") -> 4 | D105: =IF(NOT(ISBLANK(ShareOfSearch_SERPS!G105)),ShareOfSearch_SERPS!G105,"") -> http://www.google.co.uk/webmasters/docs/search-engine-optimization-starter-guide.pdf | E105: =IF(NOT(ISBLANK(ShareOfSearch_SERPS!K105)),ShareOfSearch_SERPS!K105,"") -> google.co.uk | F105: =IFERROR(VLOOKUP(C105,ShareOfSearch_CTR!$A$1:$B$100,2,FALSE)*VLOOKUP(A105&B105,ShareOfSearch_Volume!$C$1:$D$1000,2,FALSE),"") -> 14022.895
A106: =IF(ISTEXT(ShareOfSearch_SERPS!C106),ShareOfSearch_SERPS!C106,"") -> search engine optimization seo | B106: =IF(ISTEXT(ShareOfSearch_SERPS!D106),ShareOfSearch_SERPS!D106,"") -> co.uk | C106: =IF(NOT(ISBLANK(ShareOfSearch_SERPS!A106)),ShareOfSearch_SERPS!A106,"") -> 5 | D106: =IF(NOT(ISBLANK(ShareOfSearch_SERPS!G106)),ShareOfSearch_SERPS!G106,"") -> http://www.webopedia.com/TERM/S/SEO.html | E106: =IF(NOT(ISBLANK(ShareOfSearch_SERPS!K106)),ShareOfSearch_SERPS!K106,"") -> webopedia.com | F106: =IFERROR(VLOOKUP(C106,ShareOfSearch_CTR!$A$1:$B$100,2,FALSE)*VLOOKUP(A106&B106,ShareOfSearch_Volume!$C$1:$D$1000,2,FALSE),"") -> 10827.805
A107: =IF(ISTEXT(ShareOfSearch_SERPS!C107),ShareOfSearch_SERPS!C107,"") -> search engine optimization seo | B107: =IF(ISTEXT(ShareOfSearch_SERPS!D107),ShareOfSearch_SERPS!D107,"") -> co.uk | C107: =IF(NOT(ISBLANK(ShareOfSearch_SERPS!A107)),ShareOfSearch_SERPS!A107,"") -> 6 | D107: =IF(NOT(ISBLANK(ShareOfSearch_SERPS!G107)),ShareOfSearch_SERPS!G107,"") -> http://moz.com/beginners-guide-to-seo | E107: =IF(NOT(ISBLANK(ShareOfSearch_SERPS!K107)),ShareOfSearch_SERPS!K107,"") -> moz.com | F107: =IFERROR(VLOOKUP(C107,ShareOfSearch_CTR!$A$1:$B$100,2,FALSE)*VLOOKUP(A107&B107,ShareOfSearch_Volume!$C$1:$D$1000,2,FALSE),"") -> 7277.705
A108: =IF(ISTEXT(ShareOfSearch_SERPS!C108),ShareOfSearch_SERPS!C108,"") -> search engine optimization seo | B108: =IF(ISTEXT(ShareOfSearch_SERPS!D108),ShareOfSearch_SERPS!D108,"") -> co.uk | C108: =IF(NOT(ISBLANK(ShareOfSearch_SERPS!A108)),ShareOfSearch_SERPS!A108,"") -> 7 | D108: =IF(NOT(ISBLANK(ShareOfSearch_SERPS!G108)),ShareOfSearch_SERPS!G108,"") -> http://searchenginewatch.com/seo | E108: =IF(NOT(ISBLANK(ShareOfSearch_SERPS!K108)),ShareOfSearch_SERPS!K108,"") -> searchenginewatch.com | F108: =IFERROR(VLOOKUP(C108,ShareOfSearch_CTR!$A$1:$B$100,2,FALSE)*VLOOKUP(A108&B108,ShareOfSearch_Volume!$C$1:$D$1000,2,FALSE),"") -> 6745.19
A109: =IF(ISTEXT(ShareOfSearch_SERPS!C109),ShareOfSearch_SERPS!C109,"") -> search engine optimization seo | B109: =IF(ISTEXT(ShareOfSearch_SERPS!D109),ShareOfSearch_SERPS!D109,"") -> co.uk | C109: =IF(NOT(ISBLANK(ShareOfSearch_SERPS!A109)),ShareOfSearch_SERPS!A109,"") -> 8 | D109: =IF(NOT(ISBLANK(ShareOfSearch_SERPS!G109)),ShareOfSearch_SERPS!G109,"") -> http://searchenginewatch.com/article/2259693/SEO-Basics-8-Essentials-When-Optimizing-Your-Site | E109: =IF(NOT(ISBLANK(ShareOfSearch_SERPS!K109)),ShareOfSearch_SERPS!K109,"") -> searchenginewatch.com | F109: =IFERROR(VLOOKUP(C109,ShareOfSearch_CTR!$A$1:$B$100,2,FALSE)*VLOOKUP(A109&B109,ShareOfSearch_Volume!$C$1:$D$1000,2,FALSE),"") -> 6212.675
A110: =IF(ISTEXT(ShareOfSearch_SERPS!C110),ShareOfSearch_SERPS!C110,"") -> search engine optimization seo | B110: =IF(ISTEXT(ShareOfSearch_SERPS!D110),ShareOfSearch_SERPS!D110,"") -> co.uk | C110: =IF(NOT(ISBLANK(ShareOfSearch_SERPS!A110)),ShareOfSearch_SERPS!A110,"") -> 9 | D110: =IF(NOT(ISBLANK(ShareOfSearch_SERPS!G110)),ShareOfSearch_SERPS!G110,"") -> http://www.bruceclay.com/eu/seo/search-engine-optimization.htm | E110: =IF(NOT(ISBLANK(ShareOfSearch_SERPS!K110)),ShareOfSearch_SERPS!K110,"") -> bruceclay.com | F110: =IFERROR(VLOOKUP(C110,ShareOfSearch_CTR!$A$1:$B$100,2,FALSE)*VLOOKUP(A110&B110,ShareOfSearch_Volume!$C$1:$D$1000,2,FALSE),"") -> 5325.15
A111: =IF(ISTEXT(ShareOfSearch_SERPS!C111),ShareOfSearch_SERPS!C111,"") -> search engine optimization seo | B111: =IF(ISTEXT(ShareOfSearch_SERPS!D111),ShareOfSearch_SERPS!D111,"") -> co.uk | C111: =IF(NOT(ISBLANK(ShareOfSearch_SERPS!A111)),ShareOfSearch_SERPS!A111,"") -> 10 | D111: =IF(NOT(ISBLANK(ShareOfSearch_SERPS!G111)),ShareOfSearch_SERPS!G111,"") -> http://www.screamingfrog.co.uk/search-engine-optimisation/ | E111: =IF(NOT(ISBLANK(ShareOfSearch_SERPS!K111)),ShareOfSearch_SERPS!K111,"") -> screamingfrog.co.uk | F111: =IFERROR(VLOOKUP(C111,ShareOfSearch_CTR!$A$1:$B$100,2,FALSE)*VLOOKUP(A111&B111,ShareOfSearch_Volume!$C$1:$D$1000,2,FALSE),"") -> 3905.11
A112: =IF(ISTEXT(ShareOfSearch_SERPS!C112),ShareOfSearch_SERPS!C112,"") -> search engine optimization seo | B112: =IF(ISTEXT(ShareOfSearch_SERPS!D112),ShareOfSearch_SERPS!D112,"") -> co.uk | C112: =IF(NOT(ISBLANK(ShareOfSearch_SERPS!A112)),ShareOfSearch_SERPS!A112,"") -> 11 | D112: =IF(NOT(ISBLANK(ShareOfSearch_SERPS!G112)),ShareOfSearch_SERPS!G112,"") -> http://www.screamingfrog.co.uk/ | E112: =IF(NOT(ISBLANK(ShareOfSearch_SERPS!K112)),ShareOfSearch_SERPS!K112,"") -> screamingfrog.co.uk | F112: =IFERROR(VLOOKUP(C112,ShareOfSearch_CTR!$A$1:$B$100,2,FALSE)*VLOOKUP(A112&B112,ShareOfSearch_Volume!$C$1:$D$1000,2,FALSE),"") -> 4615.13
A113: =IF(ISTEXT(ShareOfSearch_SERPS!C113),ShareOfSearch_SERPS!C113,"") -> search engine optimization seo | B113: =IF(ISTEXT(ShareOfSearch_SERPS!D113),ShareOfSearch_SERPS!D113,"") -> co.uk | C113: =IF(NOT(ISBLANK(ShareOfSearch_SERPS!A113)),ShareOfSearch_SERPS!A113,"") -> 12 | D113: =IF(NOT(ISBLANK(ShareOfSearch_SERPS!G113)),ShareOfSearch_SERPS!G113,"") -> http://computer.howstuffworks.com/search-engine-optimization.htm | E113: =IF(NOT(ISBLANK(ShareOfSearch_SERPS!K113)),ShareOfSearch_SERPS!K113,"") -> howstuffworks.com | F113: =IFERROR(VLOOKUP(C113,ShareOfSearch_CTR!$A$1:$B$100,2,FALSE)*VLOOKUP(A113&B113,ShareOfSearch_Volume!$C$1:$D$1000,2,FALSE),"") -> 2662.575
A114: =IF(ISTEXT(ShareOfSearch_SERPS!C114),ShareOfSearch_SERPS!C114,"") -> search engine optimization seo | B114: =IF(ISTEXT(ShareOfSearch_SERPS!D114),ShareOfSearch_SERPS!D114,"") -> co.uk | C114: =IF(NOT(ISBLANK(ShareOfSearch_SERPS!A114)),ShareOfSearch_SERPS!A114,"") -> 13 | D114: =IF(NOT(ISBLANK(ShareOfSearch_SERPS!G114)),ShareOfSearch_SERPS!G114,"") -> http://www.techterms.com/definition/seo | E114: =IF(NOT(ISBLANK(ShareOfSearch_SERPS!K114)),ShareOfSearch_SERPS!K114,"") -> techterms.com | F114: =IFERROR(VLOOKUP(C114,ShareOfSearch_CTR!$A$1:$B$100,2,FALSE)*VLOOKUP(A114&B114,ShareOfSearch_Volume!$C$1:$D$1000,2,FALSE),"") -> 2307.565
A115: =IF(ISTEXT(ShareOfSearch_SERPS!C115),ShareOfSearch_SERPS!C115,"") -> search engine optimization seo | B115: =IF(ISTEXT(ShareOfSearch_SERPS!D115),ShareOfSearch_SERPS!D115,"") -> co.uk | C115: =IF(NOT(ISBLANK(ShareOfSearch_SERPS!A115)),ShareOfSearch_SERPS!A115,"") -> 14 | D115: =IF(NOT(ISBLANK(ShareOfSearch_SERPS!G115)),ShareOfSearch_SERPS!G115,"") -> http://www.mainstreethost.com/services/search-engine-optimization.html | E115: =IF(NOT(ISBLANK(ShareOfSearch_SERPS!K115)),ShareOfSearch_SERPS!K115,"") -> mainstreethost.com | F115: =IFERROR(VLOOKUP(C115,ShareOfSearch_CTR!$A$1:$B$100,2,FALSE)*VLOOKUP(A115&B115,ShareOfSearch_Volume!$C$1:$D$1000,2,FALSE),"") -> 1952.555
A116: =IF(ISTEXT(ShareOfSearch_SERPS!C116),ShareOfSearch_SERPS!C116,"") -> search engine optimization seo | B116: =IF(ISTEXT(ShareOfSearch_SERPS!D116),ShareOfSearch_SERPS!D116,"") -> co.uk | C116: =IF(NOT(ISBLANK(ShareOfSearch_SERPS!A116)),ShareOfSearch_SERPS!A116,"") -> 15 | D116: =IF(NOT(ISBLANK(ShareOfSearch_SERPS!G116)),ShareOfSearch_SERPS!G116,"") -> http://www.searchenginejournal.com/55-quick-seo-tips-even-your-mother-would-love/ | E116: =IF(NOT(ISBLANK(ShareOfSearch_SERPS!K116)),ShareOfSearch_SERPS!K116,"") -> searchenginejournal.com | F116: =IFERROR(VLOOKUP(C116,ShareOfSearch_CTR!$A$1:$B$100,2,FALSE)*VLOOKUP(A116&B116,ShareOfSearch_Volume!$C$1:$D$1000,2,FALSE),"") -> 2130.06
A117: =IF(ISTEXT(ShareOfSearch_SERPS!C117),ShareOfSearch_SERPS!C117,"") -> search engine optimization seo | B117: =IF(ISTEXT(ShareOfSearch_SERPS!D117),ShareOfSearch_SERPS!D117,"") -> co.uk | C117: =IF(NOT(ISBLANK(ShareOfSearch_SERPS!A117)),ShareOfSearch_SERPS!A117,"") -> 16 | D117: =IF(NOT(ISBLANK(ShareOfSearch_SERPS!G117)),ShareOfSearch_SERPS!G117,"") -> http://www.entrepreneur.com/seo/ | E117: =IF(NOT(ISBLANK(ShareOfSearch_SERPS!K117)),ShareOfSearch_SERPS!K117,"") -> entrepreneur.com | F117: =IFERROR(VLOOKUP(C117,ShareOfSearch_CTR!$A$1:$B$100,2,FALSE)*VLOOKUP(A117&B117,ShareOfSearch_Volume!$C$1:$D$1000,2,FALSE),"") -> 2130.06
A118: =IF(ISTEXT(ShareOfSearch_SERPS!C118),ShareOfSearch_SERPS!C118,"") -> search engine optimization seo | B118: =IF(ISTEXT(ShareOfSearch_SERPS!D118),ShareOfSearch_SERPS!D118,"") -> co.uk | C118: =IF(NOT(ISBLANK(ShareOfSearch_SERPS!A118)),ShareOfSearch_SERPS!A118,"") -> 17 | D118: =IF(NOT(ISBLANK(ShareOfSearch_SERPS!G118)),ShareOfSearch_SERPS!G118,"") -> http://www.youtube.com/watch%3Fv%3DhF515-0Tduk | E118: =IF(NOT(ISBLANK(ShareOfSearch_SERPS!K118)),ShareOfSearch_SERPS!K118,"") -> youtube.com | F118: =IFERROR(VLOOKUP(C118,ShareOfSearch_CTR!$A$1:$B$100,2,FALSE)*VLOOKUP(A118&B118,ShareOfSearch_Volume!$C$1:$D$1000,2,FALSE),"") -> 2485.07
A119: =IF(ISTEXT(ShareOfSearch_SERPS!C119),ShareOfSearch_SERPS!C119,"") -> search engine optimization seo | B119: =IF(ISTEXT(ShareOfSearch_SERPS!D119),ShareOfSearch_SERPS!D119,"") -> co.uk | C119: =IF(NOT(ISBLANK(ShareOfSearch_SERPS!A119)),ShareOfSearch_SERPS!A119,"") -> 18 | D119: =IF(NOT(ISBLANK(ShareOfSearch_SERPS!G119)),ShareOfSearch_SERPS!G119,"") -> http://www.hobo-web.co.uk/seo-tutorial/ | E119: =IF(NOT(ISBLANK(ShareOfSearch_SERPS!K119)),ShareOfSearch_SERPS!K119,"") -> hobo-web.co.uk | F119: =IFERROR(VLOOKUP(C119,ShareOfSearch_CTR!$A$1:$B$100,2,FALSE)*VLOOKUP(A119&B119,ShareOfSearch_Volume!$C$1:$D$1000,2,FALSE),"") -> 2307.565
A120: =IF(ISTEXT(ShareOfSearch_SERPS!C120),ShareOfSearch_SERPS!C120,"") -> search engine optimization seo | B120: =IF(ISTEXT(ShareOfSearch_SERPS!D120),ShareOfSearch_SERPS!D120,"") -> co.uk | C120: =IF(NOT(ISBLANK(ShareOfSearch_SERPS!A120)),ShareOfSearch_SERPS!A120,"") -> 19 | D120: =IF(NOT(ISBLANK(ShareOfSearch_SERPS!G120)),ShareOfSearch_SERPS!G120,"") -> http://www.iis.net/downloads/microsoft/search-engine-optimization-toolkit | E120: =IF(NOT(ISBLANK(ShareOfSearch_SERPS!K120)),ShareOfSearch_SERPS!K120,"") -> www.iis.net | F120: =IFERROR(VLOOKUP(C120,ShareOfSearch_CTR!$A$1:$B$100,2,FALSE)*VLOOKUP(A120&B120,ShareOfSearch_Volume!$C$1:$D$1000,2,FALSE),"") -> 2485.07
A121: =IF(ISTEXT(ShareOfSearch_SERPS!C121),ShareOfSearch_SERPS!C121,"") -> search engine optimization seo | B121: =IF(ISTEXT(ShareOfSearch_SERPS!D121),ShareOfSearch_SERPS!D121,"") -> co.uk | C121: =IF(NOT(ISBLANK(ShareOfSearch_SERPS!A121)),ShareOfSearch_SERPS!A121,"") -> 20 | D121: =IF(NOT(ISBLANK(ShareOfSearch_SERPS!G121)),ShareOfSearch_SERPS!G121,"") -> http://www.businessinsider.com/10-basic-seo-tips-everyone-should-know-2010-1%3Fop%3D1 | E121: =IF(NOT(ISBLANK(ShareOfSearch_SERPS!K121)),ShareOfSearch_SERPS!K121,"") -> businessinsider.com | F121: =IFERROR(VLOOKUP(C121,ShareOfSearch_CTR!$A$1:$B$100,2,FALSE)*VLOOKUP(A121&B121,ShareOfSearch_Volume!$C$1:$D$1000,2,FALSE),"") -> 2485.07
A122: =IF(ISTEXT(ShareOfSearch_SERPS!C122),ShareOfSearch_SERPS!C122,"") -> seo tools | B122: =IF(ISTEXT(ShareOfSearch_SERPS!D122),ShareOfSearch_SERPS!D122,"") -> co.uk | C122: =IF(NOT(ISBLANK(ShareOfSearch_SERPS!A122)),ShareOfSearch_SERPS!A122,"") -> 1 | D122: =IF(NOT(ISBLANK(ShareOfSearch_SERPS!G122)),ShareOfSearch_SERPS!G122,"") -> http://tools.seobook.com/ | E122: =IF(NOT(ISBLANK(ShareOfSearch_SERPS!K122)),ShareOfSearch_SERPS!K122,"") -> seobook.com | F122: =IFERROR(VLOOKUP(C122,ShareOfSearch_CTR!$A$1:$B$100,2,FALSE)*VLOOKUP(A122&B122,ShareOfSearch_Volume!$C$1:$D$1000,2,FALSE),"") -> 46145.372
A123: =IF(ISTEXT(ShareOfSearch_SERPS!C123),ShareOfSearch_SERPS!C123,"") -> seo tools | B123: =IF(ISTEXT(ShareOfSearch_SERPS!D123),ShareOfSearch_SERPS!D123,"") -> co.uk | C123: =IF(NOT(ISBLANK(ShareOfSearch_SERPS!A123)),ShareOfSearch_SERPS!A123,"") -> 2 | D123: =IF(NOT(ISBLANK(ShareOfSearch_SERPS!G123)),ShareOfSearch_SERPS!G123,"") -> http://smallseotools.com/ | E123: =IF(NOT(ISBLANK(ShareOfSearch_SERPS!K123)),ShareOfSearch_SERPS!K123,"") -> smallseotools.com | F123: =IFERROR(VLOOKUP(C123,ShareOfSearch_CTR!$A$1:$B$100,2,FALSE)*VLOOKUP(A123&B123,ShareOfSearch_Volume!$C$1:$D$1000,2,FALSE),"") -> 15846.625
A124: =IF(ISTEXT(ShareOfSearch_SERPS!C124),ShareOfSearch_SERPS!C124,"") -> seo tools | B124: =IF(ISTEXT(ShareOfSearch_SERPS!D124),ShareOfSearch_SERPS!D124,"") -> co.uk | C124: =IF(NOT(ISBLANK(ShareOfSearch_SERPS!A124)),ShareOfSearch_SERPS!A124,"") -> 3 | D124: =IF(NOT(ISBLANK(ShareOfSearch_SERPS!G124)),ShareOfSearch_SERPS!G124,"") -> http://moz.com/tools | E124: =IF(NOT(ISBLANK(ShareOfSearch_SERPS!K124)),ShareOfSearch_SERPS!K124,"") -> moz.com | F124: =IFERROR(VLOOKUP(C124,ShareOfSearch_CTR!$A$1:$B$100,2,FALSE)*VLOOKUP(A124&B124,ShareOfSearch_Volume!$C$1:$D$1000,2,FALSE),"") -> 12043.435
A125: =IF(ISTEXT(ShareOfSearch_SERPS!C125),ShareOfSearch_SERPS!C125,"") -> seo tools | B125: =IF(ISTEXT(ShareOfSearch_SERPS!D125),ShareOfSearch_SERPS!D125,"") -> co.uk | C125: =IF(NOT(ISBLANK(ShareOfSearch_SERPS!A125)),ShareOfSearch_SERPS!A125,"") -> 4 | D125: =IF(NOT(ISBLANK(ShareOfSearch_SERPS!G125)),ShareOfSearch_SERPS!G125,"") -> http://www.microsoft.com/web/seo/ | E125: =IF(NOT(ISBLANK(ShareOfSearch_SERPS!K125)),ShareOfSearch_SERPS!K125,"") -> microsoft.com | F125: =IFERROR(VLOOKUP(C125,ShareOfSearch_CTR!$A$1:$B$100,2,FALSE)*VLOOKUP(A125&B125,ShareOfSearch_Volume!$C$1:$D$1000,2,FALSE),"") -> 10015.067
A126: =IF(ISTEXT(ShareOfSearch_SERPS!C126),ShareOfSearch_SERPS!C126,"") -> seo tools | B126: =IF(ISTEXT(ShareOfSearch_SERPS!D126),ShareOfSearch_SERPS!D126,"") -> co.uk | C126: =IF(NOT(ISBLANK(ShareOfSearch_SERPS!A126)),ShareOfSearch_SERPS!A126,"") -> 5 | D126: =IF(NOT(ISBLANK(ShareOfSearch_SERPS!G126)),ShareOfSearch_SERPS!G126,"") -> http://searchenginewatch.com/article/2303494/21-Best-FREE-SEO-Tools-for-On-Page-Optimization | E126: =IF(NOT(ISBLANK(ShareOfSearch_SERPS!K126)),ShareOfSearch_SERPS!K126,"") -> searchenginewatch.com | F126: =IFERROR(VLOOKUP(C126,ShareOfSearch_CTR!$A$1:$B$100,2,FALSE)*VLOOKUP(A126&B126,ShareOfSearch_Volume!$C$1:$D$1000,2,FALSE),"") -> 7733.153
A127: =IF(ISTEXT(ShareOfSearch_SERPS!C127),ShareOfSearch_SERPS!C127,"") -> seo tools | B127: =IF(ISTEXT(ShareOfSearch_SERPS!D127),ShareOfSearch_SERPS!D127,"") -> co.uk | C127: =IF(NOT(ISBLANK(ShareOfSearch_SERPS!A127)),ShareOfSearch_SERPS!A127,"") -> 6 | D127: =IF(NOT(ISBLANK(ShareOfSearch_SERPS!G127)),ShareOfSearch_SERPS!G127,"") -> http://www.webconfs.com/ | E127: =IF(NOT(ISBLANK(ShareOfSearch_SERPS!K127)),ShareOfSearch_SERPS!K127,"") -> webconfs.com | F127: =IFERROR(VLOOKUP(C127,ShareOfSearch_CTR!$A$1:$B$100,2,FALSE)*VLOOKUP(A127&B127,ShareOfSearch_Volume!$C$1:$D$1000,2,FALSE),"") -> 5197.693
A128: =IF(ISTEXT(ShareOfSearch_SERPS!C128),ShareOfSearch_SERPS!C128,"") -> seo tools | B128: =IF(ISTEXT(ShareOfSearch_SERPS!D128),ShareOfSearch_SERPS!D128,"") -> co.uk | C128: =IF(NOT(ISBLANK(ShareOfSearch_SERPS!A128)),ShareOfSearch_SERPS!A128,"") -> 7 | D128: =IF(NOT(ISBLANK(ShareOfSearch_SERPS!G128)),ShareOfSearch_SERPS!G128,"") -> http://www.submitexpress.com/tools.html | E128: =IF(NOT(ISBLANK(ShareOfSearch_SERPS!K128)),ShareOfSearch_SERPS!K128,"") -> submitexpress.com | F128: =IFERROR(VLOOKUP(C128,ShareOfSearch_CTR!$A$1:$B$100,2,FALSE)*VLOOKUP(A128&B128,ShareOfSearch_Volume!$C$1:$D$1000,2,FALSE),"") -> 4817.374
A129: =IF(ISTEXT(ShareOfSearch_SERPS!C129),ShareOfSearch_SERPS!C129,"") -> seo tools | B129: =IF(ISTEXT(ShareOfSearch_SERPS!D129),ShareOfSearch_SERPS!D129,"") -> co.uk | C129: =IF(NOT(ISBLANK(ShareOfSearch_SERPS!A129)),ShareOfSearch_SERPS!A129,"") -> 8 | D129: =IF(NOT(ISBLANK(ShareOfSearch_SERPS!G129)),ShareOfSearch_SERPS!G129,"") -> http://www.seotoolset.com/tools/free_tools.html | E129: =IF(NOT(ISBLANK(ShareOfSearch_SERPS!K129)),ShareOfSearch_SERPS!K129,"") -> seotoolset.com | F129: =IFERROR(VLOOKUP(C129,ShareOfSearch_CTR!$A$1:$B$100,2,FALSE)*VLOOKUP(A129&B129,ShareOfSearch_Volume!$C$1:$D$1000,2,FALSE),"") -> 4437.055
A130: =IF(ISTEXT(ShareOfSearch_SERPS!C130),ShareOfSearch_SERPS!C130,"") -> seo tools | B130: =IF(ISTEXT(ShareOfSearch_SERPS!D130),ShareOfSearch_SERPS!D130,"") -> co.uk | C130: =IF(NOT(ISBLANK(ShareOfSearch_SERPS!A130)),ShareOfSearch_SERPS!A130,"") -> 9 | D130: =IF(NOT(ISBLANK(ShareOfSearch_SERPS!G130)),ShareOfSearch_SERPS!G130,"") -> http://www.majesticseo.com/webmaster-tools | E130: =IF(NOT(ISBLANK(ShareOfSearch_SERPS!K130)),ShareOfSearch_SERPS!K130,"") -> majesticseo.com | F130: =IFERROR(VLOOKUP(C130,ShareOfSearch_CTR!$A$1:$B$100,2,FALSE)*VLOOKUP(A130&B130,ShareOfSearch_Volume!$C$1:$D$1000,2,FALSE),"") -> 3803.19
A131: =IF(ISTEXT(ShareOfSearch_SERPS!C131),ShareOfSearch_SERPS!C131,"") -> seo tools | B131: =IF(ISTEXT(ShareOfSearch_SERPS!D131),ShareOfSearch_SERPS!D131,"") -> co.uk | C131: =IF(NOT(ISBLANK(ShareOfSearch_SERPS!A131)),ShareOfSearch_SERPS!A131,"") -> 10 | D131: =IF(NOT(ISBLANK(ShareOfSearch_SERPS!G131)),ShareOfSearch_SERPS!G131,"") -> http://www.majesticseo.com/support/tools | E131: =IF(NOT(ISBLANK(ShareOfSearch_SERPS!K131)),ShareOfSearch_SERPS!K131,"") -> majesticseo.com | F131: =IFERROR(VLOOKUP(C131,ShareOfSearch_CTR!$A$1:$B$100,2,FALSE)*VLOOKUP(A131&B131,ShareOfSearch_Volume!$C$1:$D$1000,2,FALSE),"") -> 2789.006
A132: =IF(ISTEXT(ShareOfSearch_SERPS!C132),ShareOfSearch_SERPS!C132,"") -> seo tools | B132: =IF(ISTEXT(ShareOfSearch_SERPS!D132),ShareOfSearch_SERPS!D132,"") -> co.uk | C132: =IF(NOT(ISBLANK(ShareOfSearch_SERPS!A132)),ShareOfSearch_SERPS!A132,"") -> 11 | D132: =IF(NOT(ISBLANK(ShareOfSearch_SERPS!G132)),ShareOfSearch_SERPS!G132,"") -> http://raventools.com/marketing-software/seo/ | E132: =IF(NOT(ISBLANK(ShareOfSearch_SERPS!K132)),ShareOfSearch_SERPS!K132,"") -> raventools.com | F132: =IFERROR(VLOOKUP(C132,ShareOfSearch_CTR!$A$1:$B$100,2,FALSE)*VLOOKUP(A132&B132,ShareOfSearch_Volume!$C$1:$D$1000,2,FALSE),"") -> 3296.098
A133: =IF(ISTEXT(ShareOfSearch_SERPS!C133),ShareOfSearch_SERPS!C133,"") -> seo tools | B133: =IF(ISTEXT(ShareOfSearch_SERPS!D133),ShareOfSearch_SERPS!D133,"") -> co.uk | C133: =IF(NOT(ISBLANK(ShareOfSearch_SERPS!A133)),ShareOfSearch_SERPS!A133,"") -> 12 | D133: =IF(NOT(ISBLANK(ShareOfSearch_SERPS!G133)),ShareOfSearch_SERPS!G133,"") -> https://yoast.com/tools/seo/ | E133: =IF(NOT(ISBLANK(ShareOfSearch_SERPS!K133)),ShareOfSearch_SERPS!K133,"") -> yoast.com | F133: =IFERROR(VLOOKUP(C133,ShareOfSearch_CTR!$A$1:$B$100,2,FALSE)*VLOOKUP(A133&B133,ShareOfSearch_Volume!$C$1:$D$1000,2,FALSE),"") -> 1901.595
A134: =IF(ISTEXT(ShareOfSearch_SERPS!C134),ShareOfSearch_SERPS!C134,"") -> seo tools | B134: =IF(ISTEXT(ShareOfSearch_SERPS!D134),ShareOfSearch_SERPS!D134,"") -> co.uk | C134: =IF(NOT(ISBLANK(ShareOfSearch_SERPS!A134)),ShareOfSearch_SERPS!A134,"") -> 13 | D134: =IF(NOT(ISBLANK(ShareOfSearch_SERPS!G134)),ShareOfSearch_SERPS!G134,"") -> http://www.found.co.uk/seo-tool/ | E134: =IF(NOT(ISBLANK(ShareOfSearch_SERPS!K134)),ShareOfSearch_SERPS!K134,"") -> found.co.uk | F134: =IFERROR(VLOOKUP(C134,ShareOfSearch_CTR!$A$1:$B$100,2,FALSE)*VLOOKUP(A134&B134,ShareOfSearch_Volume!$C$1:$D$1000,2,FALSE),"") -> 1648.049
A135: =IF(ISTEXT(ShareOfSearch_SERPS!C135),ShareOfSearch_SERPS!C135,"") -> seo tools | B135: =IF(ISTEXT(ShareOfSearch_SERPS!D135),ShareOfSearch_SERPS!D135,"") -> co.uk | C135: =IF(NOT(ISBLANK(ShareOfSearch_SERPS!A135)),ShareOfSearch_SERPS!A135,"") -> 14 | D135: =IF(NOT(ISBLANK(ShareOfSearch_SERPS!G135)),ShareOfSearch_SERPS!G135,"") -> http://seositecheckup.com/ | E135: =IF(NOT(ISBLANK(ShareOfSearch_SERPS!K135)),ShareOfSearch_SERPS!K135,"") -> seositecheckup.com | F135: =IFERROR(VLOOKUP(C135,ShareOfSearch_CTR!$A$1:$B$100,2,FALSE)*VLOOKUP(A135&B135,ShareOfSearch_Volume!$C$1:$D$1000,2,FALSE),"") -> 1394.503
A136: =IF(ISTEXT(ShareOfSearch_SERPS!C136),ShareOfSearch_SERPS!C136,"") -> seo tools | B136: =IF(ISTEXT(ShareOfSearch_SERPS!D136),ShareOfSearch_SERPS!D136,"") -> co.uk | C136: =IF(NOT(ISBLANK(ShareOfSearch_SERPS!A136)),ShareOfSearch_SERPS!A136,"") -> 15 | D136: =IF(NOT(ISBLANK(ShareOfSearch_SERPS!G136)),ShareOfSearch_SERPS!G136,"") -> http://www.seotools.com/ | E136: =IF(NOT(ISBLANK(ShareOfSearch_SERPS!K136)),ShareOfSearch_SERPS!K136,"") -> seotools.com | F136: =IFERROR(VLOOKUP(C136,ShareOfSearch_CTR!$A$1:$B$100,2,FALSE)*VLOOKUP(A136&B136,ShareOfSearch_Volume!$C$1:$D$1000,2,FALSE),"") -> 1521.276
A137: =IF(ISTEXT(ShareOfSearch_SERPS!C137),ShareOfSearch_SERPS!C137,"") -> seo tools | B137: =IF(ISTEXT(ShareOfSearch_SERPS!D137),ShareOfSearch_SERPS!D137,"") -> co.uk | C137: =IF(NOT(ISBLANK(ShareOfSearch_SERPS!A137)),ShareOfSearch_SERPS!A137,"") -> 16 | D137: =IF(NOT(ISBLANK(ShareOfSearch_SERPS!G137)),ShareOfSearch_SERPS!G137,"") -> http://www.seocompany.ca/tool/seo-tools.html | E137: =IF(NOT(ISBLANK(ShareOfSearch_SERPS!K137)),ShareOfSearch_SERPS!K137,"") -> seocompany.ca | F137: =IFERROR(VLOOKUP(C137,ShareOfSearch_CTR!$A$1:$B$100,2,FALSE)*VLOOKUP(A137&B137,ShareOfSearch_Volume!$C$1:$D$1000,2,FALSE),"") -> 1521.276
A138: =IF(ISTEXT(ShareOfSearch_SERPS!C138),ShareOfSearch_SERPS!C138,"") -> seo tools | B138: =IF(ISTEXT(ShareOfSearch_SERPS!D138),ShareOfSearch_SERPS!D138,"") -> co.uk | C138: =IF(NOT(ISBLANK(ShareOfSearch_SERPS!A138)),ShareOfSearch_SERPS!A138,"") -> 17 | D138: =IF(NOT(ISBLANK(ShareOfSearch_SERPS!G138)),ShareOfSearch_SERPS!G138,"") -> http://www.wordstream.com/seo-tools | E138: =IF(NOT(ISBLANK(ShareOfSearch_SERPS!K138)),ShareOfSearch_SERPS!K138,"") -> wordstream.com | F138: =IFERROR(VLOOKUP(C138,ShareOfSearch_CTR!$A$1:$B$100,2,FALSE)*VLOOKUP(A138&B138,ShareOfSearch_Volume!$C$1:$D$1000,2,FALSE),"") -> 1774.822
A139: =IF(ISTEXT(ShareOfSearch_SERPS!C139),ShareOfSearch_SERPS!C139,"") -> seo tools | B139: =IF(ISTEXT(ShareOfSearch_SERPS!D139),ShareOfSearch_SERPS!D139,"") -> co.uk | C139: =IF(NOT(ISBLANK(ShareOfSearch_SERPS!A139)),ShareOfSearch_SERPS!A139,"") -> 18 | D139: =IF(NOT(ISBLANK(ShareOfSearch_SERPS!G139)),ShareOfSearch_SERPS!G139,"") -> http://www.screamingfrog.co.uk/seo-spider/ | E139: =IF(NOT(ISBLANK(ShareOfSearch_SERPS!K139)),ShareOfSearch_SERPS!K139,"") -> screamingfrog.co.uk | F139: =IFERROR(VLOOKUP(C139,ShareOfSearch_CTR!$A$1:$B$100,2,FALSE)*VLOOKUP(A139&B139,ShareOfSearch_Volume!$C$1:$D$1000,2,FALSE),"") -> 1648.049
A140: =IF(ISTEXT(ShareOfSearch_SERPS!C140),ShareOfSearch_SERPS!C140,"") -> seo tools | B140: =IF(ISTEXT(ShareOfSearch_SERPS!D140),ShareOfSearch_SERPS!D140,"") -> co.uk | C140: =IF(NOT(ISBLANK(ShareOfSearch_SERPS!A140)),ShareOfSearch_SERPS!A140,"") -> 19 | D140: =IF(NOT(ISBLANK(ShareOfSearch_SERPS!G140)),ShareOfSearch_SERPS!G140,"") -> http://www.woorank.com/ | E140: =IF(NOT(ISBLANK(ShareOfSearch_SERPS!K140)),ShareOfSearch_SERPS!K140,"") -> woorank.com | F140: =IFERROR(VLOOKUP(C140,ShareOfSearch_CTR!$A$1:$B$100,2,FALSE)*VLOOKUP(A140&B140,ShareOfSearch_Volume!$C$1:$D$1000,2,FALSE),"") -> 1774.822
A141: =IF(ISTEXT(ShareOfSearch_SERPS!C141),ShareOfSearch_SERPS!C141,"") -> seo tools | B141: =IF(ISTEXT(ShareOfSearch_SERPS!D141),ShareOfSearch_SERPS!D141,"") -> co.uk | C141: =IF(NOT(ISBLANK(ShareOfSearch_SERPS!A141)),ShareOfSearch_SERPS!A141,"") -> 20 | D141: =IF(NOT(ISBLANK(ShareOfSearch_SERPS!G141)),ShareOfSearch_SERPS!G141,"") -> https://support.google.com/webmasters/answer/35291%3Fhl%3Den | E141: =IF(NOT(ISBLANK(ShareOfSearch_SERPS!K141)),ShareOfSearch_SERPS!K141,"") -> google.com | F141: =IFERROR(VLOOKUP(C141,ShareOfSearch_CTR!$A$1:$B$100,2,FALSE)*VLOOKUP(A141&B141,ShareOfSearch_Volume!$C$1:$D$1000,2,FALSE),"") -> 1774.822
A142: =IF(ISTEXT(ShareOfSearch_SERPS!C142),ShareOfSearch_SERPS!C142,"") -> search engine optimisation | B142: =IF(ISTEXT(ShareOfSearch_SERPS!D142),ShareOfSearch_SERPS!D142,"") -> co.uk | C142: =IF(NOT(ISBLANK(ShareOfSearch_SERPS!A142)),ShareOfSearch_SERPS!A142,"") -> 1 | D142: =IF(NOT(ISBLANK(ShareOfSearch_SERPS!G142)),ShareOfSearch_SERPS!G142,"") -> http://en.wikipedia.org/wiki/Search_engine_optimization | E142: =IF(NOT(ISBLANK(ShareOfSearch_SERPS!K142)),ShareOfSearch_SERPS!K142,"") -> wikipedia.org | F142: =IFERROR(VLOOKUP(C142,ShareOfSearch_CTR!$A$1:$B$100,2,FALSE)*VLOOKUP(A142&B142,ShareOfSearch_Volume!$C$1:$D$1000,2,FALSE),"") -> 37090.872
A143: =IF(ISTEXT(ShareOfSearch_SERPS!C143),ShareOfSearch_SERPS!C143,"") -> search engine optimisation | B143: =IF(ISTEXT(ShareOfSearch_SERPS!D143),ShareOfSearch_SERPS!D143,"") -> co.uk | C143: =IF(NOT(ISBLANK(ShareOfSearch_SERPS!A143)),ShareOfSearch_SERPS!A143,"") -> 2 | D143: =IF(NOT(ISBLANK(ShareOfSearch_SERPS!G143)),ShareOfSearch_SERPS!G143,"") -> http://www.google.co.uk/webmasters/docs/search-engine-optimization-starter-guide.pdf | E143: =IF(NOT(ISBLANK(ShareOfSearch_SERPS!K143)),ShareOfSearch_SERPS!K143,"") -> google.co.uk | F143: =IFERROR(VLOOKUP(C143,ShareOfSearch_CTR!$A$1:$B$100,2,FALSE)*VLOOKUP(A143&B143,ShareOfSearch_Volume!$C$1:$D$1000,2,FALSE),"") -> 12737.25
A144: =IF(ISTEXT(ShareOfSearch_SERPS!C144),ShareOfSearch_SERPS!C144,"") -> search engine optimisation | B144: =IF(ISTEXT(ShareOfSearch_SERPS!D144),ShareOfSearch_SERPS!D144,"") -> co.uk | C144: =IF(NOT(ISBLANK(ShareOfSearch_SERPS!A144)),ShareOfSearch_SERPS!A144,"") -> 3 | D144: =IF(NOT(ISBLANK(ShareOfSearch_SERPS!G144)),ShareOfSearch_SERPS!G144,"") -> http://searchengineland.com/guide/what-is-seo | E144: =IF(NOT(ISBLANK(ShareOfSearch_SERPS!K144)),ShareOfSearch_SERPS!K144,"") -> searchengineland.com | F144: =IFERROR(VLOOKUP(C144,ShareOfSearch_CTR!$A$1:$B$100,2,FALSE)*VLOOKUP(A144&B144,ShareOfSearch_Volume!$C$1:$D$1000,2,FALSE),"") -> 9680.31
A145: =IF(ISTEXT(ShareOfSearch_SERPS!C145),ShareOfSearch_SERPS!C145,"") -> search engine optimisation | B145: =IF(ISTEXT(ShareOfSearch_SERPS!D145),ShareOfSearch_SERPS!D145,"") -> co.uk | C145: =IF(NOT(ISBLANK(ShareOfSearch_SERPS!A145)),ShareOfSearch_SERPS!A145,"") -> 4 | D145: =IF(NOT(ISBLANK(ShareOfSearch_SERPS!G145)),ShareOfSearch_SERPS!G145,"") -> http://www.screamingfrog.co.uk/search-engine-optimisation/ | E145: =IF(NOT(ISBLANK(ShareOfSearch_SERPS!K145)),ShareOfSearch_SERPS!K145,"") -> screamingfrog.co.uk | F145: =IFERROR(VLOOKUP(C145,ShareOfSearch_CTR!$A$1:$B$100,2,FALSE)*VLOOKUP(A145&B145,ShareOfSearch_Volume!$C$1:$D$1000,2,FALSE),"") -> 8049.942
A146: =IF(ISTEXT(ShareOfSearch_SERPS!C146),ShareOfSearch_SERPS!C146,"") -> search engine optimisation | B146: =IF(ISTEXT(ShareOfSearch_SERPS!D146),ShareOfSearch_SERPS!D146,"") -> co.uk | C146: =IF(NOT(ISBLANK(ShareOfSearch_SERPS!A146)),ShareOfSearch_SERPS!A146,"") -> 5 | D146: =IF(NOT(ISBLANK(ShareOfSearch_SERPS!G146)),ShareOfSearch_SERPS!G146,"") -> http://searchenginewatch.com/article/2259693/SEO-Basics-8-Essentials-When-Optimizing-Your-Site | E146: =IF(NOT(ISBLANK(ShareOfSearch_SERPS!K146)),ShareOfSearch_SERPS!K146,"") -> searchenginewatch.com | F146: =IFERROR(VLOOKUP(C146,ShareOfSearch_CTR!$A$1:$B$100,2,FALSE)*VLOOKUP(A146&B146,ShareOfSearch_Volume!$C$1:$D$1000,2,FALSE),"") -> 6215.778
A147: =IF(ISTEXT(ShareOfSearch_SERPS!C147),ShareOfSearch_SERPS!C147,"") -> search engine optimisation | B147: =IF(ISTEXT(ShareOfSearch_SERPS!D147),ShareOfSearch_SERPS!D147,"") -> co.uk | C147: =IF(NOT(ISBLANK(ShareOfSearch_SERPS!A147)),ShareOfSearch_SERPS!A147,"") -> 6 | D147: =IF(NOT(ISBLANK(ShareOfSearch_SERPS!G147)),ShareOfSearch_SERPS!G147,"") -> https://support.google.com/webmasters/answer/35291%3Fhl%3Den | E147: =IF(NOT(ISBLANK(ShareOfSearch_SERPS!K147)),ShareOfSearch_SERPS!K147,"") -> google.com | F147: =IFERROR(VLOOKUP(C147,ShareOfSearch_CTR!$A$1:$B$100,2,FALSE)*VLOOKUP(A147&B147,ShareOfSearch_Volume!$C$1:$D$1000,2,FALSE),"") -> 4177.818
A148: =IF(ISTEXT(ShareOfSearch_SERPS!C148),ShareOfSearch_SERPS!C148,"") -> search engine optimisation | B148: =IF(ISTEXT(ShareOfSearch_SERPS!D148),ShareOfSearch_SERPS!D148,"") -> co.uk | C148: =IF(NOT(ISBLANK(ShareOfSearch_SERPS!A148)),ShareOfSearch_SERPS!A148,"") -> 7 | D148: =IF(NOT(ISBLANK(ShareOfSearch_SERPS!G148)),ShareOfSearch_SERPS!G148,"") -> http://www.hobo-web.co.uk/seo-tutorial/ | E148: =IF(NOT(ISBLANK(ShareOfSearch_SERPS!K148)),ShareOfSearch_SERPS!K148,"") -> hobo-web.co.uk | F148: =IFERROR(VLOOKUP(C148,ShareOfSearch_CTR!$A$1:$B$100,2,FALSE)*VLOOKUP(A148&B148,ShareOfSearch_Volume!$C$1:$D$1000,2,FALSE),"") -> 3872.124
A149: =IF(ISTEXT(ShareOfSearch_SERPS!C149),ShareOfSearch_SERPS!C149,"") -> search engine optimisation | B149: =IF(ISTEXT(ShareOfSearch_SERPS!D149),ShareOfSearch_SERPS!D149,"") -> co.uk | C149: =IF(NOT(ISBLANK(ShareOfSearch_SERPS!A149)),ShareOfSearch_SERPS!A149,"") -> 8 | D149: =IF(NOT(ISBLANK(ShareOfSearch_SERPS!G149)),ShareOfSearch_SERPS!G149,"") -> http://www.redevolution.com/what-is-seo/ | E149: =IF(NOT(ISBLANK(ShareOfSearch_SERPS!K149)),ShareOfSearch_SERPS!K149,"") -> redevolution.com | F149: =IFERROR(VLOOKUP(C149,ShareOfSearch_CTR!$A$1:$B$100,2,FALSE)*VLOOKUP(A149&B149,ShareOfSearch_Volume!$C$1:$D$1000,2,FALSE),"") -> 3566.43
A150: =IF(ISTEXT(ShareOfSearch_SERPS!C150),ShareOfSearch_SERPS!C150,"") -> search engine optimisation | B150: =IF(ISTEXT(ShareOfSearch_SERPS!D150),ShareOfSearch_SERPS!D150,"") -> co.uk | C150: =IF(NOT(ISBLANK(ShareOfSearch_SERPS!A150)),ShareOfSearch_SERPS!A150,"") -> 9 | D150: =IF(NOT(ISBLANK(ShareOfSearch_SERPS!G150)),ShareOfSearch_SERPS!G150,"") -> http://moz.com/beginners-guide-to-seo | E150: =IF(NOT(ISBLANK(ShareOfSearch_SERPS!K150)),ShareOfSearch_SERPS!K150,"") -> moz.com | F150: =IFERROR(VLOOKUP(C150,ShareOfSearch_CTR!$A$1:$B$100,2,FALSE)*VLOOKUP(A150&B150,ShareOfSearch_Volume!$C$1:$D$1000,2,FALSE),"") -> 3056.94
A151: =IF(ISTEXT(ShareOfSearch_SERPS!C151),ShareOfSearch_SERPS!C151,"") -> search engine optimisation | B151: =IF(ISTEXT(ShareOfSearch_SERPS!D151),ShareOfSearch_SERPS!D151,"") -> co.uk | C151: =IF(NOT(ISBLANK(ShareOfSearch_SERPS!A151)),ShareOfSearch_SERPS!A151,"") -> 10 | D151: =IF(NOT(ISBLANK(ShareOfSearch_SERPS!G151)),ShareOfSearch_SERPS!G151,"") -> http://www.webopedia.com/TERM/S/SEO.html | E151: =IF(NOT(ISBLANK(ShareOfSearch_SERPS!K151)),ShareOfSearch_SERPS!K151,"") -> webopedia.com | F151: =IFERROR(VLOOKUP(C151,ShareOfSearch_CTR!$A$1:$B$100,2,FALSE)*VLOOKUP(A151&B151,ShareOfSearch_Volume!$C$1:$D$1000,2,FALSE),"") -> 2241.756
A152: =IF(ISTEXT(ShareOfSearch_SERPS!C152),ShareOfSearch_SERPS!C152,"") -> search engine optimisation | B152: =IF(ISTEXT(ShareOfSearch_SERPS!D152),ShareOfSearch_SERPS!D152,"") -> co.uk | C152: =IF(NOT(ISBLANK(ShareOfSearch_SERPS!A152)),ShareOfSearch_SERPS!A152,"") -> 11 | D152: =IF(NOT(ISBLANK(ShareOfSearch_SERPS!G152)),ShareOfSearch_SERPS!G152,"") -> http://computer.howstuffworks.com/search-engine-optimization.htm | E152: =IF(NOT(ISBLANK(ShareOfSearch_SERPS!K152)),ShareOfSearch_SERPS!K152,"") -> howstuffworks.com | F152: =IFERROR(VLOOKUP(C152,ShareOfSearch_CTR!$A$1:$B$100,2,FALSE)*VLOOKUP(A152&B152,ShareOfSearch_Volume!$C$1:$D$1000,2,FALSE),"") -> 2649.348
A153: =IF(ISTEXT(ShareOfSearch_SERPS!C153),ShareOfSearch_SERPS!C153,"") -> search engine optimisation | B153: =IF(ISTEXT(ShareOfSearch_SERPS!D153),ShareOfSearch_SERPS!D153,"") -> co.uk | C153: =IF(NOT(ISBLANK(ShareOfSearch_SERPS!A153)),ShareOfSearch_SERPS!A153,"") -> 12 | D153: =IF(NOT(ISBLANK(ShareOfSearch_SERPS!G153)),ShareOfSearch_SERPS!G153,"") -> http://www.youtube.com/watch%3Fv%3DhF515-0Tduk | E153: =IF(NOT(ISBLANK(ShareOfSearch_SERPS!K153)),ShareOfSearch_SERPS!K153,"") -> youtube.com | F153: =IFERROR(VLOOKUP(C153,ShareOfSearch_CTR!$A$1:$B$100,2,FALSE)*VLOOKUP(A153&B153,ShareOfSearch_Volume!$C$1:$D$1000,2,FALSE),"") -> 1528.47
A154: =IF(ISTEXT(ShareOfSearch_SERPS!C154),ShareOfSearch_SERPS!C154,"") -> search engine optimisation | B154: =IF(ISTEXT(ShareOfSearch_SERPS!D154),ShareOfSearch_SERPS!D154,"") -> co.uk | C154: =IF(NOT(ISBLANK(ShareOfSearch_SERPS!A154)),ShareOfSearch_SERPS!A154,"") -> 13 | D154: =IF(NOT(ISBLANK(ShareOfSearch_SERPS!G154)),ShareOfSearch_SERPS!G154,"") -> http://www.theguardian.com/small-business-network/2014/jan/16/what-is-seo-how-website-google-visibility | E154: =IF(NOT(ISBLANK(ShareOfSearch_SERPS!K154)),ShareOfSearch_SERPS!K154,"") -> theguardian.com | F154: =IFERROR(VLOOKUP(C154,ShareOfSearch_CTR!$A$1:$B$100,2,FALSE)*VLOOKUP(A154&B154,ShareOfSearch_Volume!$C$1:$D$1000,2,FALSE),"") -> 1324.674
A155: =IF(ISTEXT(ShareOfSearch_SERPS!C155),ShareOfSearch_SERPS!C155,"") -> search engine optimisation | B155: =IF(ISTEXT(ShareOfSearch_SERPS!D155),ShareOfSearch_SERPS!D155,"") -> co.uk | C155: =IF(NOT(ISBLANK(ShareOfSearch_SERPS!A155)),ShareOfSearch_SERPS!A155,"") -> 14 | D155: =IF(NOT(ISBLANK(ShareOfSearch_SERPS!G155)),ShareOfSearch_SERPS!G155,"") -> https://econsultancy.com/reports/seo-best-practice-guide | E155: =IF(NOT(ISBLANK(ShareOfSearch_SERPS!K155)),ShareOfSearch_SERPS!K155,"") -> econsultancy.com | F155: =IFERROR(VLOOKUP(C155,ShareOfSearch_CTR!$A$1:$B$100,2,FALSE)*VLOOKUP(A155&B155,ShareOfSearch_Volume!$C$1:$D$1000,2,FALSE),"") -> 1120.878
A156: =IF(ISTEXT(ShareOfSearch_SERPS!C156),ShareOfSearch_SERPS!C156,"") -> search engine optimisation | B156: =IF(ISTEXT(ShareOfSearch_SERPS!D156),ShareOfSearch_SERPS!D156,"") -> co.uk | C156: =IF(NOT(ISBLANK(ShareOfSearch_SERPS!A156)),ShareOfSearch_SERPS!A156,"") -> 15 | D156: =IF(NOT(ISBLANK(ShareOfSearch_SERPS!G156)),ShareOfSearch_SERPS!G156,"") -> http://www.telegraph.co.uk/technology/internet/8663964/What-is-Search-Engine-Optimisation.html | E156: =IF(NOT(ISBLANK(ShareOfSearch_SERPS!K156)),ShareOfSearch_SERPS!K156,"") -> telegraph.co.uk | F156: =IFERROR(VLOOKUP(C156,ShareOfSearch_CTR!$A$1:$B$100,2,FALSE)*VLOOKUP(A156&B156,ShareOfSearch_Volume!$C$1:$D$1000,2,FALSE),"") -> 1222.776
A157: =IF(ISTEXT(ShareOfSearch_SERPS!C157),ShareOfSearch_SERPS!C157,"") -> search engine optimisation | B157: =IF(ISTEXT(ShareOfSearch_SERPS!D157),ShareOfSearch_SERPS!D157,"") -> co.uk | C157: =IF(NOT(ISBLANK(ShareOfSearch_SERPS!A157)),ShareOfSearch_SERPS!A157,"") -> 16 | D157: =IF(NOT(ISBLANK(ShareOfSearch_SERPS!G157)),ShareOfSearch_SERPS!G157,"") -> http://www.attacat.co.uk/seo | E157: =IF(NOT(ISBLANK(ShareOfSearch_SERPS!K157)),ShareOfSearch_SERPS!K157,"") -> attacat.co.uk | F157: =IFERROR(VLOOKUP(C157,ShareOfSearch_CTR!$A$1:$B$100,2,FALSE)*VLOOKUP(A157&B157,ShareOfSearch_Volume!$C$1:$D$1000,2,FALSE),"") -> 1222.776
A158: =IF(ISTEXT(ShareOfSearch_SERPS!C158),ShareOfSearch_SERPS!C158,"") -> search engine optimisation | B158: =IF(ISTEXT(ShareOfSearch_SERPS!D158),ShareOfSearch_SERPS!D158,"") -> co.uk | C158: =IF(NOT(ISBLANK(ShareOfSearch_SERPS!A158)),ShareOfSearch_SERPS!A158,"") -> 17 | D158: =IF(NOT(ISBLANK(ShareOfSearch_SERPS!G158)),ShareOfSearch_SERPS!G158,"") -> http://www.bbc.co.uk/blogs/internet/posts/search_engine_optimisation_in | E158: =IF(NOT(ISBLANK(ShareOfSearch_SERPS!K158)),ShareOfSearch_SERPS!K158,"") -> www.bbc.co.uk | F158: =IFERROR(VLOOKUP(C158,ShareOfSearch_CTR!$A$1:$B$100,2,FALSE)*VLOOKUP(A158&B158,ShareOfSearch_Volume!$C$1:$D$1000,2,FALSE),"") -> 1426.572
A159: =IF(ISTEXT(ShareOfSearch_SERPS!C159),ShareOfSearch_SERPS!C159,"") -> search engine optimisation | B159: =IF(ISTEXT(ShareOfSearch_SERPS!D159),ShareOfSearch_SERPS!D159,"") -> co.uk | C159: =IF(NOT(ISBLANK(ShareOfSearch_SERPS!A159)),ShareOfSearch_SERPS!A159,"") -> 18 | D159: =IF(NOT(ISBLANK(ShareOfSearch_SERPS!G159)),ShareOfSearch_SERPS!G159,"") -> http://www.hallaminternet.com/internet-services/seo/ | E159: =IF(NOT(ISBLANK(ShareOfSearch_SERPS!K159)),ShareOfSearch_SERPS!K159,"") -> hallaminternet.com | F159: =IFERROR(VLOOKUP(C159,ShareOfSearch_CTR!$A$1:$B$100,2,FALSE)*VLOOKUP(A159&B159,ShareOfSearch_Volume!$C$1:$D$1000,2,FALSE),"") -> 1324.674
A160: =IF(ISTEXT(ShareOfSearch_SERPS!C160),ShareOfSearch_SERPS!C160,"") -> search engine optimisation | B160: =IF(ISTEXT(ShareOfSearch_SERPS!D160),ShareOfSearch_SERPS!D160,"") -> co.uk | C160: =IF(NOT(ISBLANK(ShareOfSearch_SERPS!A160)),ShareOfSearch_SERPS!A160,"") -> 19 | D160: =IF(NOT(ISBLANK(ShareOfSearch_SERPS!G160)),ShareOfSearch_SERPS!G160,"") -> http://www.123live.co.uk/optimising-your-website-for-search-engines.htm | E160: =IF(NOT(ISBLANK(ShareOfSearch_SERPS!K160)),ShareOfSearch_SERPS!K160,"") -> 123live.co.uk | F160: =IFERROR(VLOOKUP(C160,ShareOfSearch_CTR!$A$1:$B$100,2,FALSE)*VLOOKUP(A160&B160,ShareOfSearch_Volume!$C$1:$D$1000,2,FALSE),"") -> 1426.572
A161: =IF(ISTEXT(ShareOfSearch_SERPS!C161),ShareOfSearch_SERPS!C161,"") -> search engine optimisation | B161: =IF(ISTEXT(ShareOfSearch_SERPS!D161),ShareOfSearch_SERPS!D161,"") -> co.uk | C161: =IF(NOT(ISBLANK(ShareOfSearch_SERPS!A161)),ShareOfSearch_SERPS!A161,"") -> 20 | D161: =IF(NOT(ISBLANK(ShareOfSearch_SERPS!G161)),ShareOfSearch_SERPS!G161,"") -> http://googlewebmastercentral.blogspot.com/2008/11/googles-seo-starter-guide.html | E161: =IF(NOT(ISBLANK(ShareOfSearch_SERPS!K161)),ShareOfSearch_SERPS!K161,"") -> blogspot.com | F161: =IFERROR(VLOOKUP(C161,ShareOfSearch_CTR!$A$1:$B$100,2,FALSE)*VLOOKUP(A161&B161,ShareOfSearch_Volume!$C$1:$D$1000,2,FALSE),"") -> 1426.572
A162: =IF(ISTEXT(ShareOfSearch_SERPS!C162),ShareOfSearch_SERPS!C162,"") -> what is search engine optimization | B162: =IF(ISTEXT(ShareOfSearch_SERPS!D162),ShareOfSearch_SERPS!D162,"") -> co.uk | C162: =IF(NOT(ISBLANK(ShareOfSearch_SERPS!A162)),ShareOfSearch_SERPS!A162,"") -> 1 | D162: =IF(NOT(ISBLANK(ShareOfSearch_SERPS!G162)),ShareOfSearch_SERPS!G162,"") -> http://searchengineland.com/guide/what-is-seo | E162: =IF(NOT(ISBLANK(ShareOfSearch_SERPS!K162)),ShareOfSearch_SERPS!K162,"") -> searchengineland.com | F162: =IFERROR(VLOOKUP(C162,ShareOfSearch_CTR!$A$1:$B$100,2,FALSE)*VLOOKUP(A162&B162,ShareOfSearch_Volume!$C$1:$D$1000,2,FALSE),"") -> 35959.56
A163: =IF(ISTEXT(ShareOfSearch_SERPS!C163),ShareOfSearch_SERPS!C163,"") -> what is search engine optimization | B163: =IF(ISTEXT(ShareOfSearch_SERPS!D163),ShareOfSearch_SERPS!D163,"") -> co.uk | C163: =IF(NOT(ISBLANK(ShareOfSearch_SERPS!A163)),ShareOfSearch_SERPS!A163,"") -> 2 | D163: =IF(NOT(ISBLANK(ShareOfSearch_SERPS!G163)),ShareOfSearch_SERPS!G163,"") -> http://en.wikipedia.org/wiki/Search_engine_optimization | E163: =IF(NOT(ISBLANK(ShareOfSearch_SERPS!K163)),ShareOfSearch_SERPS!K163,"") -> wikipedia.org | F163: =IFERROR(VLOOKUP(C163,ShareOfSearch_CTR!$A$1:$B$100,2,FALSE)*VLOOKUP(A163&B163,ShareOfSearch_Volume!$C$1:$D$1000,2,FALSE),"") -> 12348.75
A164: =IF(ISTEXT(ShareOfSearch_SERPS!C164),ShareOfSearch_SERPS!C164,"") -> what is search engine optimization | B164: =IF(ISTEXT(ShareOfSearch_SERPS!D164),ShareOfSearch_SERPS!D164,"") -> co.uk | C164: =IF(NOT(ISBLANK(ShareOfSearch_SERPS!A164)),ShareOfSearch_SERPS!A164,"") -> 3 | D164: =IF(NOT(ISBLANK(ShareOfSearch_SERPS!G164)),ShareOfSearch_SERPS!G164,"") -> http://www.redevolution.com/what-is-seo/ | E164: =IF(NOT(ISBLANK(ShareOfSearch_SERPS!K164)),ShareOfSearch_SERPS!K164,"") -> redevolution.com | F164: =IFERROR(VLOOKUP(C164,ShareOfSearch_CTR!$A$1:$B$100,2,FALSE)*VLOOKUP(A164&B164,ShareOfSearch_Volume!$C$1:$D$1000,2,FALSE),"") -> 9385.05
A165: =IF(ISTEXT(ShareOfSearch_SERPS!C165),ShareOfSearch_SERPS!C165,"") -> what is search engine optimization | B165: =IF(ISTEXT(ShareOfSearch_SERPS!D165),ShareOfSearch_SERPS!D165,"") -> co.uk | C165: =IF(NOT(ISBLANK(ShareOfSearch_SERPS!A165)),ShareOfSearch_SERPS!A165,"") -> 4 | D165: =IF(NOT(ISBLANK(ShareOfSearch_SERPS!G165)),ShareOfSearch_SERPS!G165,"") -> http://www.webopedia.com/TERM/S/SEO.html | E165: =IF(NOT(ISBLANK(ShareOfSearch_SERPS!K165)),ShareOfSearch_SERPS!K165,"") -> webopedia.com | F165: =IFERROR(VLOOKUP(C165,ShareOfSearch_CTR!$A$1:$B$100,2,FALSE)*VLOOKUP(A165&B165,ShareOfSearch_Volume!$C$1:$D$1000,2,FALSE),"") -> 7804.41
A166: =IF(ISTEXT(ShareOfSearch_SERPS!C166),ShareOfSearch_SERPS!C166,"") -> what is search engine optimization | B166: =IF(ISTEXT(ShareOfSearch_SERPS!D166),ShareOfSearch_SERPS!D166,"") -> co.uk | C166: =IF(NOT(ISBLANK(ShareOfSearch_SERPS!A166)),ShareOfSearch_SERPS!A166,"") -> 5 | D166: =IF(NOT(ISBLANK(ShareOfSearch_SERPS!G166)),ShareOfSearch_SERPS!G166,"") -> http://searchenginewatch.com/article/2259693/SEO-Basics-8-Essentials-When-Optimizing-Your-Site | E166: =IF(NOT(ISBLANK(ShareOfSearch_SERPS!K166)),ShareOfSearch_SERPS!K166,"") -> searchenginewatch.com | F166: =IFERROR(VLOOKUP(C166,ShareOfSearch_CTR!$A$1:$B$100,2,FALSE)*VLOOKUP(A166&B166,ShareOfSearch_Volume!$C$1:$D$1000,2,FALSE),"") -> 6026.19
A167: =IF(ISTEXT(ShareOfSearch_SERPS!C167),ShareOfSearch_SERPS!C167,"") -> what is search engine optimization | B167: =IF(ISTEXT(ShareOfSearch_SERPS!D167),ShareOfSearch_SERPS!D167,"") -> co.uk | C167: =IF(NOT(ISBLANK(ShareOfSearch_SERPS!A167)),ShareOfSearch_SERPS!A167,"") -> 6 | D167: =IF(NOT(ISBLANK(ShareOfSearch_SERPS!G167)),ShareOfSearch_SERPS!G167,"") -> http://www.google.co.uk/webmasters/docs/search-engine-optimization-starter-guide.pdf | E167: =IF(NOT(ISBLANK(ShareOfSearch_SERPS!K167)),ShareOfSearch_SERPS!K167,"") -> google.co.uk | F167: =IFERROR(VLOOKUP(C167,ShareOfSearch_CTR!$A$1:$B$100,2,FALSE)*VLOOKUP(A167&B167,ShareOfSearch_Volume!$C$1:$D$1000,2,FALSE),"") -> 4050.39
A168: =IF(ISTEXT(ShareOfSearch_SERPS!C168),ShareOfSearch_SERPS!C168,"") -> what is search engine optimization | B168: =IF(ISTEXT(ShareOfSearch_SERPS!D168),ShareOfSearch_SERPS!D168,"") -> co.uk | C168: =IF(NOT(ISBLANK(ShareOfSearch_SERPS!A168)),ShareOfSearch_SERPS!A168,"") -> 7 | D168: =IF(NOT(ISBLANK(ShareOfSearch_SERPS!G168)),ShareOfSearch_SERPS!G168,"") -> https://support.google.com/webmasters/answer/35291%3Fhl%3Den | E168: =IF(NOT(ISBLANK(ShareOfSearch_SERPS!K168)),ShareOfSearch_SERPS!K168,"") -> google.com | F168: =IFERROR(VLOOKUP(C168,ShareOfSearch_CTR!$A$1:$B$100,2,FALSE)*VLOOKUP(A168&B168,ShareOfSearch_Volume!$C$1:$D$1000,2,FALSE),"") -> 3754.02
A169: =IF(ISTEXT(ShareOfSearch_SERPS!C169),ShareOfSearch_SERPS!C169,"") -> what is search engine optimization | B169: =IF(ISTEXT(ShareOfSearch_SERPS!D169),ShareOfSearch_SERPS!D169,"") -> co.uk | C169: =IF(NOT(ISBLANK(ShareOfSearch_SERPS!A169)),ShareOfSearch_SERPS!A169,"") -> 8 | D169: =IF(NOT(ISBLANK(ShareOfSearch_SERPS!G169)),ShareOfSearch_SERPS!G169,"") -> http://moz.com/beginners-guide-to-seo | E169: =IF(NOT(ISBLANK(ShareOfSearch_SERPS!K169)),ShareOfSearch_SERPS!K169,"") -> moz.com | F169: =IFERROR(VLOOKUP(C169,ShareOfSearch_CTR!$A$1:$B$100,2,FALSE)*VLOOKUP(A169&B169,ShareOfSearch_Volume!$C$1:$D$1000,2,FALSE),"") -> 3457.65
A170: =IF(ISTEXT(ShareOfSearch_SERPS!C170),ShareOfSearch_SERPS!C170,"") -> what is search engine optimization | B170: =IF(ISTEXT(ShareOfSearch_SERPS!D170),ShareOfSearch_SERPS!D170,"") -> co.uk | C170: =IF(NOT(ISBLANK(ShareOfSearch_SERPS!A170)),ShareOfSearch_SERPS!A170,"") -> 9 | D170: =IF(NOT(ISBLANK(ShareOfSearch_SERPS!G170)),ShareOfSearch_SERPS!G170,"") -> http://www.theguardian.com/small-business-network/2014/jan/16/what-is-seo-how-website-google-visibility | E170: =IF(NOT(ISBLANK(ShareOfSearch_SERPS!K170)),ShareOfSearch_SERPS!K170,"") -> theguardian.com | F170: =IFERROR(VLOOKUP(C170,ShareOfSearch_CTR!$A$1:$B$100,2,FALSE)*VLOOKUP(A170&B170,ShareOfSearch_Volume!$C$1:$D$1000,2,FALSE),"") -> 2963.7
A171: =IF(ISTEXT(ShareOfSearch_SERPS!C171),ShareOfSearch_SERPS!C171,"") -> what is search engine optimization | B171: =IF(ISTEXT(ShareOfSearch_SERPS!D171),ShareOfSearch_SERPS!D171,"") -> co.uk | C171: =IF(NOT(ISBLANK(ShareOfSearch_SERPS!A171)),ShareOfSearch_SERPS!A171,"") -> 10 | D171: =IF(NOT(ISBLANK(ShareOfSearch_SERPS!G171)),ShareOfSearch_SERPS!G171,"") -> http://www.webconfs.com/seo-tutorial/introduction-to-seo.php | E171: =IF(NOT(ISBLANK(ShareOfSearch_SERPS!K171)),ShareOfSearch_SERPS!K171,"") -> webconfs.com | F171: =IFERROR(VLOOKUP(C171,ShareOfSearch_CTR!$A$1:$B$100,2,FALSE)*VLOOKUP(A171&B171,ShareOfSearch_Volume!$C$1:$D$1000,2,FALSE),"") -> 2173.38
A172: =IF(ISTEXT(ShareOfSearch_SERPS!C172),ShareOfSearch_SERPS!C172,"") -> what is search engine optimization | B172: =IF(ISTEXT(ShareOfSearch_SERPS!D172),ShareOfSearch_SERPS!D172,"") -> co.uk | C172: =IF(NOT(ISBLANK(ShareOfSearch_SERPS!A172)),ShareOfSearch_SERPS!A172,"") -> 11 | D172: =IF(NOT(ISBLANK(ShareOfSearch_SERPS!G172)),ShareOfSearch_SERPS!G172,"") -> http://www.youtube.com/watch%3Fv%3DhF515-0Tduk | E172: =IF(NOT(ISBLANK(ShareOfSearch_SERPS!K172)),ShareOfSearch_SERPS!K172,"") -> youtube.com | F172: =IFERROR(VLOOKUP(C172,ShareOfSearch_CTR!$A$1:$B$100,2,FALSE)*VLOOKUP(A172&B172,ShareOfSearch_Volume!$C$1:$D$1000,2,FALSE),"") -> 2568.54
A173: =IF(ISTEXT(ShareOfSearch_SERPS!C173),ShareOfSearch_SERPS!C173,"") -> what is search engine optimization | B173: =IF(ISTEXT(ShareOfSearch_SERPS!D173),ShareOfSearch_SERPS!D173,"") -> co.uk | C173: =IF(NOT(ISBLANK(ShareOfSearch_SERPS!A173)),ShareOfSearch_SERPS!A173,"") -> 12 | D173: =IF(NOT(ISBLANK(ShareOfSearch_SERPS!G173)),ShareOfSearch_SERPS!G173,"") -> http://www.hobo-web.co.uk/what-is-seo-a-guide-for-beginners/ | E173: =IF(NOT(ISBLANK(ShareOfSearch_SERPS!K173)),ShareOfSearch_SERPS!K173,"") -> hobo-web.co.uk | F173: =IFERROR(VLOOKUP(C173,ShareOfSearch_CTR!$A$1:$B$100,2,FALSE)*VLOOKUP(A173&B173,ShareOfSearch_Volume!$C$1:$D$1000,2,FALSE),"") -> 1481.85
A174: =IF(ISTEXT(ShareOfSearch_SERPS!C174),ShareOfSearch_SERPS!C174,"") -> what is search engine optimization | B174: =IF(ISTEXT(ShareOfSearch_SERPS!D174),ShareOfSearch_SERPS!D174,"") -> co.uk | C174: =IF(NOT(ISBLANK(ShareOfSearch_SERPS!A174)),ShareOfSearch_SERPS!A174,"") -> 13 | D174: =IF(NOT(ISBLANK(ShareOfSearch_SERPS!G174)),ShareOfSearch_SERPS!G174,"") -> http://computer.howstuffworks.com/search-engine-optimization.htm | E174: =IF(NOT(ISBLANK(ShareOfSearch_SERPS!K174)),ShareOfSearch_SERPS!K174,"") -> howstuffworks.com | F174: =IFERROR(VLOOKUP(C174,ShareOfSearch_CTR!$A$1:$B$100,2,FALSE)*VLOOKUP(A174&B174,ShareOfSearch_Volume!$C$1:$D$1000,2,FALSE),"") -> 1284.27
A175: =IF(ISTEXT(ShareOfSearch_SERPS!C175),ShareOfSearch_SERPS!C175,"") -> what is search engine optimization | B175: =IF(ISTEXT(ShareOfSearch_SERPS!D175),ShareOfSearch_SERPS!D175,"") -> co.uk | C175: =IF(NOT(ISBLANK(ShareOfSearch_SERPS!A175)),ShareOfSearch_SERPS!A175,"") -> 14 | D175: =IF(NOT(ISBLANK(ShareOfSearch_SERPS!G175)),ShareOfSearch_SERPS!G175,"") -> http://www.whatisseo.com/ | E175: =IF(NOT(ISBLANK(ShareOfSearch_SERPS!K175)),ShareOfSearch_SERPS!K175,"") -> whatisseo.com | F175: =IFERROR(VLOOKUP(C175,ShareOfSearch_CTR!$A$1:$B$100,2,FALSE)*VLOOKUP(A175&B175,ShareOfSearch_Volume!$C$1:$D$1000,2,FALSE),"") -> 1086.69
A176: =IF(ISTEXT(ShareOfSearch_SERPS!C176),ShareOfSearch_SERPS!C176,"") -> what is search engine optimization | B176: =IF(ISTEXT(ShareOfSearch_SERPS!D176),ShareOfSearch_SERPS!D176,"") -> co.uk | C176: =IF(NOT(ISBLANK(ShareOfSearch_SERPS!A176)),ShareOfSearch_SERPS!A176,"") -> 15 | D176: =IF(NOT(ISBLANK(ShareOfSearch_SERPS!G176)),ShareOfSearch_SERPS!G176,"") -> http://www.bruceclay.com/eu/seo/search-engine-optimization.htm | E176: =IF(NOT(ISBLANK(ShareOfSearch_SERPS!K176)),ShareOfSearch_SERPS!K176,"") -> bruceclay.com | F176: =IFERROR(VLOOKUP(C176,ShareOfSearch_CTR!$A$1:$B$100,2,FALSE)*VLOOKUP(A176&B176,ShareOfSearch_Volume!$C$1:$D$1000,2,FALSE),"") -> 1185.48
A177: =IF(ISTEXT(ShareOfSearch_SERPS!C177),ShareOfSearch_SERPS!C177,"") -> what is search engine optimization | B177: =IF(ISTEXT(ShareOfSearch_SERPS!D177),ShareOfSearch_SERPS!D177,"") -> co.uk | C177: =IF(NOT(ISBLANK(ShareOfSearch_SERPS!A177)),ShareOfSearch_SERPS!A177,"") -> 16 | D177: =IF(NOT(ISBLANK(ShareOfSearch_SERPS!G177)),ShareOfSearch_SERPS!G177,"") -> http://www.entrepreneur.com/seo/ | E177: =IF(NOT(ISBLANK(ShareOfSearch_SERPS!K177)),ShareOfSearch_SERPS!K177,"") -> entrepreneur.com | F177: =IFERROR(VLOOKUP(C177,ShareOfSearch_CTR!$A$1:$B$100,2,FALSE)*VLOOKUP(A177&B177,ShareOfSearch_Volume!$C$1:$D$1000,2,FALSE),"") -> 1185.48
A178: =IF(ISTEXT(ShareOfSearch_SERPS!C178),ShareOfSearch_SERPS!C178,"") -> what is search engine optimization | B178: =IF(ISTEXT(ShareOfSearch_SERPS!D178),ShareOfSearch_SERPS!D178,"") -> co.uk | C178: =IF(NOT(ISBLANK(ShareOfSearch_SERPS!A178)),ShareOfSearch_SERPS!A178,"") -> 17 | D178: =IF(NOT(ISBLANK(ShareOfSearch_SERPS!G178)),ShareOfSearch_SERPS!G178,"") -> http://www.telegraph.co.uk/technology/internet/8663964/What-is-Search-Engine-Optimisation.html | E178: =IF(NOT(ISBLANK(ShareOfSearch_SERPS!K178)),ShareOfSearch_SERPS!K178,"") -> telegraph.co.uk | F178: =IFERROR(VLOOKUP(C178,ShareOfSearch_CTR!$A$1:$B$100,2,FALSE)*VLOOKUP(A178&B178,ShareOfSearch_Volume!$C$1:$D$1000,2,FALSE),"") -> 1383.06
A179: =IF(ISTEXT(ShareOfSearch_SERPS!C179),ShareOfSearch_SERPS!C179,"") -> what is search engine optimization | B179: =IF(ISTEXT(ShareOfSearch_SERPS!D179),ShareOfSearch_SERPS!D179,"") -> co.uk | C179: =IF(NOT(ISBLANK(ShareOfSearch_SERPS!A179)),ShareOfSearch_SERPS!A179,"") -> 18 | D179: =IF(NOT(ISBLANK(ShareOfSearch_SERPS!G179)),ShareOfSearch_SERPS!G179,"") -> http://www.screamingfrog.co.uk/search-engine-optimisation/ | E179: =IF(NOT(ISBLANK(ShareOfSearch_SERPS!K179)),ShareOfSearch_SERPS!K179,"") -> screamingfrog.co.uk | F179: =IFERROR(VLOOKUP(C179,ShareOfSearch_CTR!$A$1:$B$100,2,FALSE)*VLOOKUP(A179&B179,ShareOfSearch_Volume!$C$1:$D$1000,2,FALSE),"") -> 1284.27
A180: =IF(ISTEXT(ShareOfSearch_SERPS!C180),ShareOfSearch_SERPS!C180,"") -> what is search engine optimization | B180: =IF(ISTEXT(ShareOfSearch_SERPS!D180),ShareOfSearch_SERPS!D180,"") -> co.uk | C180: =IF(NOT(ISBLANK(ShareOfSearch_SERPS!A180)),ShareOfSearch_SERPS!A180,"") -> 19 | D180: =IF(NOT(ISBLANK(ShareOfSearch_SERPS!G180)),ShareOfSearch_SERPS!G180,"") -> http://pointblankseo.com/what-is-seo/ | E180: =IF(NOT(ISBLANK(ShareOfSearch_SERPS!K180)),ShareOfSearch_SERPS!K180,"") -> pointblankseo.com | F180: =IFERROR(VLOOKUP(C180,ShareOfSearch_CTR!$A$1:$B$100,2,FALSE)*VLOOKUP(A180&B180,ShareOfSearch_Volume!$C$1:$D$1000,2,FALSE),"") -> 1383.06
A181: =IF(ISTEXT(ShareOfSearch_SERPS!C181),ShareOfSearch_SERPS!C181,"") -> what is search engine optimization | B181: =IF(ISTEXT(ShareOfSearch_SERPS!D181),ShareOfSearch_SERPS!D181,"") -> co.uk | C181: =IF(NOT(ISBLANK(ShareOfSearch_SERPS!A181)),ShareOfSearch_SERPS!A181,"") -> 20 | D181: =IF(NOT(ISBLANK(ShareOfSearch_SERPS!G181)),ShareOfSearch_SERPS!G181,"") -> http://www.searchenginejournal.com/55-quick-seo-tips-even-your-mother-would-love/ | E181: =IF(NOT(ISBLANK(ShareOfSearch_SERPS!K181)),ShareOfSearch_SERPS!K181,"") -> searchenginejournal.com | F181: =IFERROR(VLOOKUP(C181,ShareOfSearch_CTR!$A$1:$B$100,2,FALSE)*VLOOKUP(A181&B181,ShareOfSearch_Volume!$C$1:$D$1000,2,FALSE),"") -> 1383.06
A182: =IF(ISTEXT(ShareOfSearch_SERPS!C182),ShareOfSearch_SERPS!C182,"") -> seo companies | B182: =IF(ISTEXT(ShareOfSearch_SERPS!D182),ShareOfSearch_SERPS!D182,"") -> co.uk | C182: =IF(NOT(ISBLANK(ShareOfSearch_SERPS!A182)),ShareOfSearch_SERPS!A182,"") -> 1 | D182: =IF(NOT(ISBLANK(ShareOfSearch_SERPS!G182)),ShareOfSearch_SERPS!G182,"") -> http://www.rebootonline.com/services/seo-services | E182: =IF(NOT(ISBLANK(ShareOfSearch_SERPS!K182)),ShareOfSearch_SERPS!K182,"") -> rebootonline.com | F182: =IFERROR(VLOOKUP(C182,ShareOfSearch_CTR!$A$1:$B$100,2,FALSE)*VLOOKUP(A182&B182,ShareOfSearch_Volume!$C$1:$D$1000,2,FALSE),"") -> 25993.968
A183: =IF(ISTEXT(ShareOfSearch_SERPS!C183),ShareOfSearch_SERPS!C183,"") -> seo companies | B183: =IF(ISTEXT(ShareOfSearch_SERPS!D183),ShareOfSearch_SERPS!D183,"") -> co.uk | C183: =IF(NOT(ISBLANK(ShareOfSearch_SERPS!A183)),ShareOfSearch_SERPS!A183,"") -> 2 | D183: =IF(NOT(ISBLANK(ShareOfSearch_SERPS!G183)),ShareOfSearch_SERPS!G183,"") -> http://www.forbes.com/sites/joshsteimle/2013/09/23/4-tips-for-hiring-the-right-seo-firm/ | E183: =IF(NOT(ISBLANK(ShareOfSearch_SERPS!K183)),ShareOfSearch_SERPS!K183,"") -> forbes.com | F183: =IFERROR(VLOOKUP(C183,ShareOfSearch_CTR!$A$1:$B$100,2,FALSE)*VLOOKUP(A183&B183,ShareOfSearch_Volume!$C$1:$D$1000,2,FALSE),"") -> 8926.5
A184: =IF(ISTEXT(ShareOfSearch_SERPS!C184),ShareOfSearch_SERPS!C184,"") -> seo companies | B184: =IF(ISTEXT(ShareOfSearch_SERPS!D184),ShareOfSearch_SERPS!D184,"") -> co.uk | C184: =IF(NOT(ISBLANK(ShareOfSearch_SERPS!A184)),ShareOfSearch_SERPS!A184,"") -> 3 | D184: =IF(NOT(ISBLANK(ShareOfSearch_SERPS!G184)),ShareOfSearch_SERPS!G184,"") -> http://www.seoconsultancyltd.com/ | E184: =IF(NOT(ISBLANK(ShareOfSearch_SERPS!K184)),ShareOfSearch_SERPS!K184,"") -> seoconsultancyltd.com | F184: =IFERROR(VLOOKUP(C184,ShareOfSearch_CTR!$A$1:$B$100,2,FALSE)*VLOOKUP(A184&B184,ShareOfSearch_Volume!$C$1:$D$1000,2,FALSE),"") -> 6784.14
A185: =IF(ISTEXT(ShareOfSearch_SERPS!C185),ShareOfSearch_SERPS!C185,"") -> seo companies | B185: =IF(ISTEXT(ShareOfSearch_SERPS!D185),ShareOfSearch_SERPS!D185,"") -> co.uk | C185: =IF(NOT(ISBLANK(ShareOfSearch_SERPS!A185)),ShareOfSearch_SERPS!A185,"") -> 4 | D185: =IF(NOT(ISBLANK(ShareOfSearch_SERPS!G185)),ShareOfSearch_SERPS!G185,"") -> http://www.uwpgroup.co.uk/service/seo-london/ | E185: =IF(NOT(ISBLANK(ShareOfSearch_SERPS!K185)),ShareOfSearch_SERPS!K185,"") -> uwpgroup.co.uk | F185: =IFERROR(VLOOKUP(C185,ShareOfSearch_CTR!$A$1:$B$100,2,FALSE)*VLOOKUP(A185&B185,ShareOfSearch_Volume!$C$1:$D$1000,2,FALSE),"") -> 5641.548
A186: =IF(ISTEXT(ShareOfSearch_SERPS!C186),ShareOfSearch_SERPS!C186,"") -> seo companies | B186: =IF(ISTEXT(ShareOfSearch_SERPS!D186),ShareOfSearch_SERPS!D186,"") -> co.uk | C186: =IF(NOT(ISBLANK(ShareOfSearch_SERPS!A186)),ShareOfSearch_SERPS!A186,"") -> 5 | D186: =IF(NOT(ISBLANK(ShareOfSearch_SERPS!G186)),ShareOfSearch_SERPS!G186,"") -> http://www.adjuice.co.uk/ | E186: =IF(NOT(ISBLANK(ShareOfSearch_SERPS!K186)),ShareOfSearch_SERPS!K186,"") -> adjuice.co.uk | F186: =IFERROR(VLOOKUP(C186,ShareOfSearch_CTR!$A$1:$B$100,2,FALSE)*VLOOKUP(A186&B186,ShareOfSearch_Volume!$C$1:$D$1000,2,FALSE),"") -> 4356.132
A187: =IF(ISTEXT(ShareOfSearch_SERPS!C187),ShareOfSearch_SERPS!C187,"") -> seo companies | B187: =IF(ISTEXT(ShareOfSearch_SERPS!D187),ShareOfSearch_SERPS!D187,"") -> co.uk | C187: =IF(NOT(ISBLANK(ShareOfSearch_SERPS!A187)),ShareOfSearch_SERPS!A187,"") -> 6 | D187: =IF(NOT(ISBLANK(ShareOfSearch_SERPS!G187)),ShareOfSearch_SERPS!G187,"") -> http://www.kdweb.co.uk/seo.htm | E187: =IF(NOT(ISBLANK(ShareOfSearch_SERPS!K187)),ShareOfSearch_SERPS!K187,"") -> kdweb.co.uk | F187: =IFERROR(VLOOKUP(C187,ShareOfSearch_CTR!$A$1:$B$100,2,FALSE)*VLOOKUP(A187&B187,ShareOfSearch_Volume!$C$1:$D$1000,2,FALSE),"") -> 2927.892
A188: =IF(ISTEXT(ShareOfSearch_SERPS!C188),ShareOfSearch_SERPS!C188,"") -> seo companies | B188: =IF(ISTEXT(ShareOfSearch_SERPS!D188),ShareOfSearch_SERPS!D188,"") -> co.uk | C188: =IF(NOT(ISBLANK(ShareOfSearch_SERPS!A188)),ShareOfSearch_SERPS!A188,"") -> 7 | D188: =IF(NOT(ISBLANK(ShareOfSearch_SERPS!G188)),ShareOfSearch_SERPS!G188,"") -> http://www.found.co.uk/ | E188: =IF(NOT(ISBLANK(ShareOfSearch_SERPS!K188)),ShareOfSearch_SERPS!K188,"") -> found.co.uk | F188: =IFERROR(VLOOKUP(C188,ShareOfSearch_CTR!$A$1:$B$100,2,FALSE)*VLOOKUP(A188&B188,ShareOfSearch_Volume!$C$1:$D$1000,2,FALSE),"") -> 2713.656
A189: =IF(ISTEXT(ShareOfSearch_SERPS!C189),ShareOfSearch_SERPS!C189,"") -> seo companies | B189: =IF(ISTEXT(ShareOfSearch_SERPS!D189),ShareOfSearch_SERPS!D189,"") -> co.uk | C189: =IF(NOT(ISBLANK(ShareOfSearch_SERPS!A189)),ShareOfSearch_SERPS!A189,"") -> 8 | D189: =IF(NOT(ISBLANK(ShareOfSearch_SERPS!G189)),ShareOfSearch_SERPS!G189,"") -> http://www.getmanic.co.uk/ | E189: =IF(NOT(ISBLANK(ShareOfSearch_SERPS!K189)),ShareOfSearch_SERPS!K189,"") -> getmanic.co.uk | F189: =IFERROR(VLOOKUP(C189,ShareOfSearch_CTR!$A$1:$B$100,2,FALSE)*VLOOKUP(A189&B189,ShareOfSearch_Volume!$C$1:$D$1000,2,FALSE),"") -> 2499.42
A190: =IF(ISTEXT(ShareOfSearch_SERPS!C190),ShareOfSearch_SERPS!C190,"") -> seo companies | B190: =IF(ISTEXT(ShareOfSearch_SERPS!D190),ShareOfSearch_SERPS!D190,"") -> co.uk | C190: =IF(NOT(ISBLANK(ShareOfSearch_SERPS!A190)),ShareOfSearch_SERPS!A190,"") -> 9 | D190: =IF(NOT(ISBLANK(ShareOfSearch_SERPS!G190)),ShareOfSearch_SERPS!G190,"") -> http://www.vanillacircus.co.uk/ | E190: =IF(NOT(ISBLANK(ShareOfSearch_SERPS!K190)),ShareOfSearch_SERPS!K190,"") -> vanillacircus.co.uk | F190: =IFERROR(VLOOKUP(C190,ShareOfSearch_CTR!$A$1:$B$100,2,FALSE)*VLOOKUP(A190&B190,ShareOfSearch_Volume!$C$1:$D$1000,2,FALSE),"") -> 2142.36
A191: =IF(ISTEXT(ShareOfSearch_SERPS!C191),ShareOfSearch_SERPS!C191,"") -> seo companies | B191: =IF(ISTEXT(ShareOfSearch_SERPS!D191),ShareOfSearch_SERPS!D191,"") -> co.uk | C191: =IF(NOT(ISBLANK(ShareOfSearch_SERPS!A191)),ShareOfSearch_SERPS!A191,"") -> 10 | D191: =IF(NOT(ISBLANK(ShareOfSearch_SERPS!G191)),ShareOfSearch_SERPS!G191,"") -> http://www.branded3.com/blogs/top-25-most-visible-seo-agencies-in-the-uk-according-to-searchmetrics/ | E191: =IF(NOT(ISBLANK(ShareOfSearch_SERPS!K191)),ShareOfSearch_SERPS!K191,"") -> branded3.com | F191: =IFERROR(VLOOKUP(C191,ShareOfSearch_CTR!$A$1:$B$100,2,FALSE)*VLOOKUP(A191&B191,ShareOfSearch_Volume!$C$1:$D$1000,2,FALSE),"") -> 1571.064
A192: =IF(ISTEXT(ShareOfSearch_SERPS!C192),ShareOfSearch_SERPS!C192,"") -> seo companies | B192: =IF(ISTEXT(ShareOfSearch_SERPS!D192),ShareOfSearch_SERPS!D192,"") -> co.uk | C192: =IF(NOT(ISBLANK(ShareOfSearch_SERPS!A192)),ShareOfSearch_SERPS!A192,"") -> 11 | D192: =IF(NOT(ISBLANK(ShareOfSearch_SERPS!G192)),ShareOfSearch_SERPS!G192,"") -> http://www.seo-london.com/about-us/seo-firms | E192: =IF(NOT(ISBLANK(ShareOfSearch_SERPS!K192)),ShareOfSearch_SERPS!K192,"") -> seo-london.com | F192: =IFERROR(VLOOKUP(C192,ShareOfSearch_CTR!$A$1:$B$100,2,FALSE)*VLOOKUP(A192&B192,ShareOfSearch_Volume!$C$1:$D$1000,2,FALSE),"") -> 1856.712
A193: =IF(ISTEXT(ShareOfSearch_SERPS!C193),ShareOfSearch_SERPS!C193,"") -> seo companies | B193: =IF(ISTEXT(ShareOfSearch_SERPS!D193),ShareOfSearch_SERPS!D193,"") -> co.uk | C193: =IF(NOT(ISBLANK(ShareOfSearch_SERPS!A193)),ShareOfSearch_SERPS!A193,"") -> 12 | D193: =IF(NOT(ISBLANK(ShareOfSearch_SERPS!G193)),ShareOfSearch_SERPS!G193,"") -> http://en.wikipedia.org/wiki/Search_engine_optimization | E193: =IF(NOT(ISBLANK(ShareOfSearch_SERPS!K193)),ShareOfSearch_SERPS!K193,"") -> wikipedia.org | F193: =IFERROR(VLOOKUP(C193,ShareOfSearch_CTR!$A$1:$B$100,2,FALSE)*VLOOKUP(A193&B193,ShareOfSearch_Volume!$C$1:$D$1000,2,FALSE),"") -> 1071.18
A194: =IF(ISTEXT(ShareOfSearch_SERPS!C194),ShareOfSearch_SERPS!C194,"") -> seo companies | B194: =IF(ISTEXT(ShareOfSearch_SERPS!D194),ShareOfSearch_SERPS!D194,"") -> co.uk | C194: =IF(NOT(ISBLANK(ShareOfSearch_SERPS!A194)),ShareOfSearch_SERPS!A194,"") -> 13 | D194: =IF(NOT(ISBLANK(ShareOfSearch_SERPS!G194)),ShareOfSearch_SERPS!G194,"") -> http://www.hobo-web.co.uk/ | E194: =IF(NOT(ISBLANK(ShareOfSearch_SERPS!K194)),ShareOfSearch_SERPS!K194,"") -> hobo-web.co.uk | F194: =IFERROR(VLOOKUP(C194,ShareOfSearch_CTR!$A$1:$B$100,2,FALSE)*VLOOKUP(A194&B194,ShareOfSearch_Volume!$C$1:$D$1000,2,FALSE),"") -> 928.356
A195: =IF(ISTEXT(ShareOfSearch_SERPS!C195),ShareOfSearch_SERPS!C195,"") -> seo companies | B195: =IF(ISTEXT(ShareOfSearch_SERPS!D195),ShareOfSearch_SERPS!D195,"") -> co.uk | C195: =IF(NOT(ISBLANK(ShareOfSearch_SERPS!A195)),ShareOfSearch_SERPS!A195,"") -> 14 | D195: =IF(NOT(ISBLANK(ShareOfSearch_SERPS!G195)),ShareOfSearch_SERPS!G195,"") -> http://www.rankno1.co.uk/ | E195: =IF(NOT(ISBLANK(ShareOfSearch_SERPS!K195)),ShareOfSearch_SERPS!K195,"") -> rankno1.co.uk | F195: =IFERROR(VLOOKUP(C195,ShareOfSearch_CTR!$A$1:$B$100,2,FALSE)*VLOOKUP(A195&B195,ShareOfSearch_Volume!$C$1:$D$1000,2,FALSE),"") -> 785.532
A196: =IF(ISTEXT(ShareOfSearch_SERPS!C196),ShareOfSearch_SERPS!C196,"") -> seo companies | B196: =IF(ISTEXT(ShareOfSearch_SERPS!D196),ShareOfSearch_SERPS!D196,"") -> co.uk | C196: =IF(NOT(ISBLANK(ShareOfSearch_SERPS!A196)),ShareOfSearch_SERPS!A196,"") -> 15 | D196: =IF(NOT(ISBLANK(ShareOfSearch_SERPS!G196)),ShareOfSearch_SERPS!G196,"") -> http://searchenginewatch.com/article/2267471/How-Much-Should-You-Spend-on-SEO-Services | E196: =IF(NOT(ISBLANK(ShareOfSearch_SERPS!K196)),ShareOfSearch_SERPS!K196,"") -> searchenginewatch.com | F196: =IFERROR(VLOOKUP(C196,ShareOfSearch_CTR!$A$1:$B$100,2,FALSE)*VLOOKUP(A196&B196,ShareOfSearch_Volume!$C$1:$D$1000,2,FALSE),"") -> 856.944
A197: =IF(ISTEXT(ShareOfSearch_SERPS!C197),ShareOfSearch_SERPS!C197,"") -> seo companies | B197: =IF(ISTEXT(ShareOfSearch_SERPS!D197),ShareOfSearch_SERPS!D197,"") -> co.uk | C197: =IF(NOT(ISBLANK(ShareOfSearch_SERPS!A197)),ShareOfSearch_SERPS!A197,"") -> 16 | D197: =IF(NOT(ISBLANK(ShareOfSearch_SERPS!G197)),ShareOfSearch_SERPS!G197,"") -> http://www.reviewcentre.com/products3098.html | E197: =IF(NOT(ISBLANK(ShareOfSearch_SERPS!K197)),ShareOfSearch_SERPS!K197,"") -> reviewcentre.com | F197: =IFERROR(VLOOKUP(C197,ShareOfSearch_CTR!$A$1:$B$100,2,FALSE)*VLOOKUP(A197&B197,ShareOfSearch_Volume!$C$1:$D$1000,2,FALSE),"") -> 856.944
A198: =IF(ISTEXT(ShareOfSearch_SERPS!C198),ShareOfSearch_SERPS!C198,"") -> seo companies | B198: =IF(ISTEXT(ShareOfSearch_SERPS!D198),ShareOfSearch_SERPS!D198,"") -> co.uk | C198: =IF(NOT(ISBLANK(ShareOfSearch_SERPS!A198)),ShareOfSearch_SERPS!A198,"") -> 17 | D198: =IF(NOT(ISBLANK(ShareOfSearch_SERPS!G198)),ShareOfSearch_SERPS!G198,"") -> http://www.mainstreethost.com/ | E198: =IF(NOT(ISBLANK(ShareOfSearch_SERPS!K198)),ShareOfSearch_SERPS!K198,"") -> mainstreethost.com | F198: =IFERROR(VLOOKUP(C198,ShareOfSearch_CTR!$A$1:$B$100,2,FALSE)*VLOOKUP(A198&B198,ShareOfSearch_Volume!$C$1:$D$1000,2,FALSE),"") -> 999.768
A199: =IF(ISTEXT(ShareOfSearch_SERPS!C199),ShareOfSearch_SERPS!C199,"") -> seo companies | B199: =IF(ISTEXT(ShareOfSearch_SERPS!D199),ShareOfSearch_SERPS!D199,"") -> co.uk | C199: =IF(NOT(ISBLANK(ShareOfSearch_SERPS!A199)),ShareOfSearch_SERPS!A199,"") -> 18 | D199: =IF(NOT(ISBLANK(ShareOfSearch_SERPS!G199)),ShareOfSearch_SERPS!G199,"") -> http://www.expertseobournemouth.co.uk/ | E199: =IF(NOT(ISBLANK(ShareOfSearch_SERPS!K199)),ShareOfSearch_SERPS!K199,"") -> expertseobournemouth.co.uk | F199: =IFERROR(VLOOKUP(C199,ShareOfSearch_CTR!$A$1:$B$100,2,FALSE)*VLOOKUP(A199&B199,ShareOfSearch_Volume!$C$1:$D$1000,2,FALSE),"") -> 928.356
A200: =IF(ISTEXT(ShareOfSearch_SERPS!C200),ShareOfSearch_SERPS!C200,"") -> seo companies | B200: =IF(ISTEXT(ShareOfSearch_SERPS!D200),ShareOfSearch_SERPS!D200,"") -> co.uk | C200: =IF(NOT(ISBLANK(ShareOfSearch_SERPS!A200)),ShareOfSearch_SERPS!A200,"") -> 19 | D200: =IF(NOT(ISBLANK(ShareOfSearch_SERPS!G200)),ShareOfSearch_SERPS!G200,"") -> http://www.smart-traffic.co.uk/ | E200: =IF(NOT(ISBLANK(ShareOfSearch_SERPS!K200)),ShareOfSearch_SERPS!K200,"") -> smart-traffic.co.uk | F200: =IFERROR(VLOOKUP(C200,ShareOfSearch_CTR!$A$1:$B$100,2,FALSE)*VLOOKUP(A200&B200,ShareOfSearch_Volume!$C$1:$D$1000,2,FALSE),"") -> 999.768
... 2802 more rows

Sheet ShareOfSearch_CTR (hidden)
A1: 1 | B1: 0.364
A2: 2 | B2: 0.125
A3: 3 | B3: 0.095
A4: 4 | B4: 0.079
A5: 5 | B5: 0.061
A6: 6 | B6: 0.041
A7: 7 | B7: 0.038
A8: 8 | B8: 0.035
A9: 9 | B9: 0.03
A10: 10 | B10: 0.022
A11: 11 | B11: 0.026
A12: 12 | B12: 0.015
A13: 13 | B13: 0.013
A14: 14 | B14: 0.011
A15: 15 | B15: 0.012
A16: 16 | B16: 0.012
A17: 17 | B17: 0.014
A18: 18 | B18: 0.013
A19: 19 | B19: 0.014
A20: 20 | B20: 0.014
A21: 21 | B21: 0.001
A22: 22 | B22: 0.001
A23: 23 | B23: 0.001
A24: 24 | B24: 0.001
A25: 25 | B25: 0.001
A26: 26 | B26: 0.001
A27: 27 | B27: 0.001
A28: 28 | B28: 0.001
A29: 29 | B29: 0.001
A30: 30 | B30: 0.001
A31: 31 | B31: 0.001
A32: 32 | B32: 0.001
A33: 33 | B33: 0.001
A34: 34 | B34: 0.001
A35: 35 | B35: 0.001
A36: 36 | B36: 0.001
A37: 37 | B37: 0.001
A38: 38 | B38: 0.001
A39: 39 | B39: 0.001
A40: 40 | B40: 0.001
A41: 41 | B41: 0.001
A42: 42 | B42: 0.001
A43: 43 | B43: 0.001
A44: 44 | B44: 0.001
A45: 45 | B45: 0.001
A46: 46 | B46: 0.001
A47: 47 | B47: 0.001
A48: 48 | B48: 0.001
A49: 49 | B49: 0.001
A50: 50 | B50: 0.001
A51: 51 | B51: 0.001
A52: 52 | B52: 0.001
A53: 53 | B53: 0.001
A54: 54 | B54: 0.001
A55: 55 | B55: 0.001
A56: 56 | B56: 0.001
A57: 57 | B57: 0.001
A58: 58 | B58: 0.001
A59: 59 | B59: 0.001
A60: 60 | B60: 0.001
A61: 61 | B61: 0.001
A62: 62 | B62: 0.001
A63: 63 | B63: 0.001
A64: 64 | B64: 0.001
A65: 65 | B65: 0.001
A66: 66 | B66: 0.001
A67: 67 | B67: 0.001
A68: 68 | B68: 0.001
A69: 69 | B69: 0.001
A70: 70 | B70: 0.001
A71: 71 | B71: 0.001
A72: 72 | B72: 0.001
A73: 73 | B73: 0.001
A74: 74 | B74: 0.001
A75: 75 | B75: 0.001
A76: 76 | B76: 0.001
A77: 77 | B77: 0.001
A78: 78 | B78: 0.001
A79: 79 | B79: 0.001
A80: 80 | B80: 0.001
A81: 81 | B81: 0.001
A82: 82 | B82: 0.001
A83: 83 | B83: 0.001
A84: 84 | B84: 0.001
A85: 85 | B85: 0.001
A86: 86 | B86: 0.001
A87: 87 | B87: 0.001
A88: 88 | B88: 0.001
A89: 89 | B89: 0.001
A90: 90 | B90: 0.001
A91: 91 | B91: 0.001
A92: 92 | B92: 0.001
A93: 93 | B93: 0.001
A94: 94 | B94: 0.001
A95: 95 | B95: 0.001
A96: 96 | B96: 0.001
A97: 97 | B97: 0.001
A98: 98 | B98: 0.001
A99: 99 | B99: 0.001
A100: 100 | B100: 0.001

Sheet ShareOfSearch_Volume (hidden)
A1: =IF(ISTEXT('Share Of Search Input'!A1),'Share Of Search Input'!A1,"") -> Keyword | B1: =IF(ISTEXT('Share Of Search Input'!B1),'Share Of Search Input'!B1,"") -> TLD | C1: lookup | D1: =IF(ISTEXT('Share Of Search Input'!H1),'Share Of Search Input'!H1,"") -> Search volume | J1: =IF(ISTEXT('Share Of Search Input'!I1),'Share Of Search Input'!I1,"") -> 
A2: =IF(ISTEXT('Share Of Search Input'!A2),'Share Of Search Input'!A2,"") -> seo | B2: =IF(ISTEXT('Share Of Search Input'!B2),'Share Of Search Input'!B2,"") -> co.uk | C2: =A2&B2 -> seoco.uk | D2: =IF(ISNUMBER('Share Of Search Input'!H2),'Share Of Search Input'!H2,"") -> 2211000
A3: =IF(ISTEXT('Share Of Search Input'!A3),'Share Of Search Input'!A3,"") -> search engine optimization | B3: =IF(ISTEXT('Share Of Search Input'!B3),'Share Of Search Input'!B3,"") -> co.uk | C3: =A3&B3 -> search engine optimizationco.uk | D3: =IF(ISNUMBER('Share Of Search Input'!H3),'Share Of Search Input'!H3,"") -> 447700
A4: =IF(ISTEXT('Share Of Search Input'!A4),'Share Of Search Input'!A4,"") -> seo services | B4: =IF(ISTEXT('Share Of Search Input'!B4),'Share Of Search Input'!B4,"") -> co.uk | C4: seo servicesco.uk | D4: =IF(ISNUMBER('Share Of Search Input'!H4),'Share Of Search Input'!H4,"") -> 225743
A5: =IF(ISTEXT('Share Of Search Input'!A5),'Share Of Search Input'!A5,"") -> seo company | B5: =IF(ISTEXT('Share Of Search Input'!B5),'Share Of Search Input'!B5,"") -> co.uk | C5: seo companyco.uk | D5: =IF(ISNUMBER('Share Of Search Input'!H5),'Share Of Search Input'!H5,"") -> 222220
A6: =IF(ISTEXT('Share Of Search Input'!A6),'Share Of Search Input'!A6,"") -> search optimization | B6: =IF(ISTEXT('Share Of Search Input'!B6),'Share Of Search Input'!B6,"") -> co.uk | C6: search optimizationco.uk | D6: =IF(ISNUMBER('Share Of Search Input'!H6),'Share Of Search Input'!H6,"") -> 216800
A7: =IF(ISTEXT('Share Of Search Input'!A7),'Share Of Search Input'!A7,"") -> search engine optimization seo | B7: =IF(ISTEXT('Share Of Search Input'!B7),'Share Of Search Input'!B7,"") -> co.uk | C7: search engine optimization seoco.uk | D7: =IF(ISNUMBER('Share Of Search Input'!H7),'Share Of Search Input'!H7,"") -> 177505
A8: =IF(ISTEXT('Share Of Search Input'!A8),'Share Of Search Input'!A8,"") -> seo tools | B8: =IF(ISTEXT('Share Of Search Input'!B8),'Share Of Search Input'!B8,"") -> co.uk | C8: seo toolsco.uk | D8: =IF(ISNUMBER('Share Of Search Input'!H8),'Share Of Search Input'!H8,"") -> 126773
A9: =IF(ISTEXT('Share Of Search Input'!A9),'Share Of Search Input'!A9,"") -> search engine optimisation | B9: =IF(ISTEXT('Share Of Search Input'!B9),'Share Of Search Input'!B9,"") -> co.uk | C9: search engine optimisationco.uk | D9: =IF(ISNUMBER('Share Of Search Input'!H9),'Share Of Search Input'!H9,"") -> 101898
A10: =IF(ISTEXT('Share Of Search Input'!A10),'Share Of Search Input'!A10,"") -> what is search engine optimization | B10: =IF(ISTEXT('Share Of Search Input'!B10),'Share Of Search Input'!B10,"") -> co.uk | C10: what is search engine optimizationco.uk | D10: =IF(ISNUMBER('Share Of Search Input'!H10),'Share Of Search Input'!H10,"") -> 98790
A11: =IF(ISTEXT('Share Of Search Input'!A11),'Share Of Search Input'!A11,"") -> seo companies | B11: =IF(ISTEXT('Share Of Search Input'!B11),'Share Of Search Input'!B11,"") -> co.uk | C11: seo companiesco.uk | D11: =IF(ISNUMBER('Share Of Search Input'!H11),'Share Of Search Input'!H11,"") -> 71412
A12: =IF(ISTEXT('Share Of Search Input'!A12),'Share Of Search Input'!A12,"") -> what is seo | B12: =IF(ISTEXT('Share Of Search Input'!B12),'Share Of Search Input'!B12,"") -> co.uk | C12: what is seoco.uk | D12: =IF(ISNUMBER('Share Of Search Input'!H12),'Share Of Search Input'!H12,"") -> 59052
A13: =IF(ISTEXT('Share Of Search Input'!A13),'Share Of Search Input'!A13,"") -> best seo company | B13: =IF(ISTEXT('Share Of Search Input'!B13),'Share Of Search Input'!B13,"") -> co.uk | C13: best seo companyco.uk | D13: =IF(ISNUMBER('Share Of Search Input'!H13),'Share Of Search Input'!H13,"") -> 59022
A14: =IF(ISTEXT('Share Of Search Input'!A14),'Share Of Search Input'!A14,"") -> seo marketing | B14: =IF(ISTEXT('Share Of Search Input'!B14),'Share Of Search Input'!B14,"") -> co.uk | C14: seo marketingco.uk | D14: =IF(ISNUMBER('Share Of Search Input'!H14),'Share Of Search Input'!H14,"") -> 53055
A15: =IF(ISTEXT('Share Of Search Input'!A15),'Share Of Search Input'!A15,"") -> best seo | B15: =IF(ISTEXT('Share Of Search Input'!B15),'Share Of Search Input'!B15,"") -> co.uk | C15: best seoco.uk | D15: =IF(ISNUMBER('Share Of Search Input'!H15),'Share Of Search Input'!H15,"") -> 49032
A16: =IF(ISTEXT('Share Of Search Input'!A16),'Share Of Search Input'!A16,"") -> seo optimization | B16: =IF(ISTEXT('Share Of Search Input'!B16),'Share Of Search Input'!B16,"") -> co.uk | C16: seo optimizationco.uk | D16: =IF(ISNUMBER('Share Of Search Input'!H16),'Share Of Search Input'!H16,"") -> 44946
A17: =IF(ISTEXT('Share Of Search Input'!A17),'Share Of Search Input'!A17,"") -> seo search engine optimization | B17: =IF(ISTEXT('Share Of Search Input'!B17),'Share Of Search Input'!B17,"") -> co.uk | C17: seo search engine optimizationco.uk | D17: =IF(ISNUMBER('Share Of Search Input'!H17),'Share Of Search Input'!H17,"") -> 38232
A18: =IF(ISTEXT('Share Of Search Input'!A18),'Share Of Search Input'!A18,"") -> seo check | B18: =IF(ISTEXT('Share Of Search Input'!B18),'Share Of Search Input'!B18,"") -> co.uk | C18: seo checkco.uk | D18: =IF(ISNUMBER('Share Of Search Input'!H18),'Share Of Search Input'!H18,"") -> 30789
A19: =IF(ISTEXT('Share Of Search Input'!A19),'Share Of Search Input'!A19,"") -> seo sem | B19: =IF(ISTEXT('Share Of Search Input'!B19),'Share Of Search Input'!B19,"") -> co.uk | C19: seo semco.uk | D19: =IF(ISNUMBER('Share Of Search Input'!H19),'Share Of Search Input'!H19,"") -> 28908
A20: =IF(ISTEXT('Share Of Search Input'!A20),'Share Of Search Input'!A20,"") -> website optimization | B20: =IF(ISTEXT('Share Of Search Input'!B20),'Share Of Search Input'!B20,"") -> co.uk | C20: website optimizationco.uk | D20: =IF(ISNUMBER('Share Of Search Input'!H20),'Share Of Search Input'!H20,"") -> 27956
A21: =IF(ISTEXT('Share Of Search Input'!A21),'Share Of Search Input'!A21,"") ->  | B21: =IF(ISTEXT('Share Of Search Input'!B21),'Share Of Search Input'!B21,"") ->  | D21: =IF(ISNUMBER('Share Of Search Input'!H21),'Share Of Search Input'!H21,"") -> 
A22: =IF(ISTEXT('Share Of Search Input'!A22),'Share Of Search Input'!A22,"") ->  | B22: =IF(ISTEXT('Share Of Search Input'!B22),'Share Of Search Input'!B22,"") ->  | D22: =IF(ISNUMBER('Share Of Search Input'!H22),'Share Of Search Input'!H22,"") -> 
A23: =IF(ISTEXT('Share Of Search Input'!A23),'Share Of Search Input'!A23,"") ->  | B23: =IF(ISTEXT('Share Of Search Input'!B23),'Share Of Search Input'!B23,"") ->  | D23: =IF(ISNUMBER('Share Of Search Input'!H23),'Share Of Search Input'!H23,"") -> 
A24: =IF(ISTEXT('Share Of Search Input'!A24),'Share Of Search Input'!A24,"") ->  | B24: =IF(ISTEXT('Share Of Search Input'!B24),'Share Of Search Input'!B24,"") ->  | D24: =IF(ISNUMBER('Share Of Search Input'!H24),'Share Of Search Input'!H24,"") -> 
A25: =IF(ISTEXT('Share Of Search Input'!A25),'Share Of Search Input'!A25,"") ->  | B25: =IF(ISTEXT('Share Of Search Input'!B25),'Share Of Search Input'!B25,"") ->  | D25: =IF(ISNUMBER('Share Of Search Input'!H25),'Share Of Search Input'!H25,"") -> 
A26: =IF(ISTEXT('Share Of Search Input'!A26),'Share Of Search Input'!A26,"") ->  | B26: =IF(ISTEXT('Share Of Search Input'!B26),'Share Of Search Input'!B26,"") ->  | D26: =IF(ISNUMBER('Share Of Search Input'!H26),'Share Of Search Input'!H26,"") -> 
A27: =IF(ISTEXT('Share Of Search Input'!A27),'Share Of Search Input'!A27,"") ->  | B27: =IF(ISTEXT('Share Of Search Input'!B27),'Share Of Search Input'!B27,"") ->  | D27: =IF(ISNUMBER('Share Of Search Input'!H27),'Share Of Search Input'!H27,"") -> 
A28: =IF(ISTEXT('Share Of Search Input'!A28),'Share Of Search Input'!A28,"") ->  | B28: =IF(ISTEXT('Share Of Search Input'!B28),'Share Of Search Input'!B28,"") ->  | D28: =IF(ISNUMBER('Share Of Search Input'!H28),'Share Of Search Input'!H28,"") -> 
A29: =IF(ISTEXT('Share Of Search Input'!#REF!),'Share Of Search Input'!#REF!,"") ->  | B29: =IF(ISTEXT('Share Of Search Input'!#REF!),'Share Of Search Input'!#REF!,"") ->  | D29: =IF(ISNUMBER('Share Of Search Input'!#REF!),'Share Of Search Input'!#REF!,"") -> 
A30: =IF(ISTEXT('Share Of Search Input'!#REF!),'Share Of Search Input'!#REF!,"") ->  | B30: =IF(ISTEXT('Share Of Search Input'!#REF!),'Share Of Search Input'!#REF!,"") ->  | D30: =IF(ISNUMBER('Share Of Search Input'!#REF!),'Share Of Search Input'!#REF!,"") -> 
A31: =IF(ISTEXT('Share Of Search Input'!A29),'Share Of Search Input'!A29,"") ->  | B31: =IF(ISTEXT('Share Of Search Input'!B29),'Share Of Search Input'!B29,"") ->  | D31: =IF(ISNUMBER('Share Of Search Input'!H29),'Share Of Search Input'!H29,"") -> 
A32: =IF(ISTEXT('Share Of Search Input'!A30),'Share Of Search Input'!A30,"") ->  | B32: =IF(ISTEXT('Share Of Search Input'!B30),'Share Of Search Input'!B30,"") ->  | D32: =IF(ISNUMBER('Share Of Search Input'!H30),'Share Of Search Input'!H30,"") -> 
A33: =IF(ISTEXT('Share Of Search Input'!A31),'Share Of Search Input'!A31,"") ->  | B33: =IF(ISTEXT('Share Of Search Input'!B31),'Share Of Search Input'!B31,"") ->  | D33: =IF(ISNUMBER('Share Of Search Input'!H31),'Share Of Search Input'!H31,"") -> 
A34: =IF(ISTEXT('Share Of Search Input'!A32),'Share Of Search Input'!A32,"") ->  | B34: =IF(ISTEXT('Share Of Search Input'!B32),'Share Of Search Input'!B32,"") ->  | D34: =IF(ISNUMBER('Share Of Search Input'!H32),'Share Of Search Input'!H32,"") -> 
A35: =IF(ISTEXT('Share Of Search Input'!A33),'Share Of Search Input'!A33,"") ->  | B35: =IF(ISTEXT('Share Of Search Input'!B33),'Share Of Search Input'!B33,"") ->  | D35: =IF(ISNUMBER('Share Of Search Input'!H33),'Share Of Search Input'!H33,"") -> 
A36: =IF(ISTEXT('Share Of Search Input'!A34),'Share Of Search Input'!A34,"") ->  | B36: =IF(ISTEXT('Share Of Search Input'!B34),'Share Of Search Input'!B34,"") ->  | D36: =IF(ISNUMBER('Share Of Search Input'!H34),'Share Of Search Input'!H34,"") -> 
A37: =IF(ISTEXT('Share Of Search Input'!A35),'Share Of Search Input'!A35,"") ->  | B37: =IF(ISTEXT('Share Of Search Input'!B35),'Share Of Search Input'!B35,"") ->  | D37: =IF(ISNUMBER('Share Of Search Input'!H35),'Share Of Search Input'!H35,"") -> 
A38: =IF(ISTEXT('Share Of Search Input'!A36),'Share Of Search Input'!A36,"") ->  | B38: =IF(ISTEXT('Share Of Search Input'!B36),'Share Of Search Input'!B36,"") ->  | D38: =IF(ISNUMBER('Share Of Search Input'!H36),'Share Of Search Input'!H36,"") -> 
A39: =IF(ISTEXT('Share Of Search Input'!A37),'Share Of Search Input'!A37,"") ->  | B39: =IF(ISTEXT('Share Of Search Input'!B37),'Share Of Search Input'!B37,"") ->  | D39: =IF(ISNUMBER('Share Of Search Input'!H37),'Share Of Search Input'!H37,"") -> 
A40: =IF(ISTEXT('Share Of Search Input'!A38),'Share Of Search Input'!A38,"") ->  | B40: =IF(ISTEXT('Share Of Search Input'!B38),'Share Of Search Input'!B38,"") ->  | D40: =IF(ISNUMBER('Share Of Search Input'!H38),'Share Of Search Input'!H38,"") -> 
A41: =IF(ISTEXT('Share Of Search Input'!A39),'Share Of Search Input'!A39,"") ->  | B41: =IF(ISTEXT('Share Of Search Input'!B39),'Share Of Search Input'!B39,"") ->  | D41: =IF(ISNUMBER('Share Of Search Input'!H39),'Share Of Search Input'!H39,"") -> 
A42: =IF(ISTEXT('Share Of Search Input'!A40),'Share Of Search Input'!A40,"") ->  | B42: =IF(ISTEXT('Share Of Search Input'!B40),'Share Of Search Input'!B40,"") ->  | D42: =IF(ISNUMBER('Share Of Search Input'!H40),'Share Of Search Input'!H40,"") -> 
A43: =IF(ISTEXT('Share Of Search Input'!A41),'Share Of Search Input'!A41,"") ->  | B43: =IF(ISTEXT('Share Of Search Input'!B41),'Share Of Search Input'!B41,"") ->  | D43: =IF(ISNUMBER('Share Of Search Input'!H41),'Share Of Search Input'!H41,"") -> 
A44: =IF(ISTEXT('Share Of Search Input'!A42),'Share Of Search Input'!A42,"") ->  | B44: =IF(ISTEXT('Share Of Search Input'!B42),'Share Of Search Input'!B42,"") ->  | D44: =IF(ISNUMBER('Share Of Search Input'!H42),'Share Of Search Input'!H42,"") -> 
A45: =IF(ISTEXT('Share Of Search Input'!A43),'Share Of Search Input'!A43,"") ->  | B45: =IF(ISTEXT('Share Of Search Input'!B43),'Share Of Search Input'!B43,"") ->  | D45: =IF(ISNUMBER('Share Of Search Input'!H43),'Share Of Search Input'!H43,"") -> 
A46: =IF(ISTEXT('Share Of Search Input'!A44),'Share Of Search Input'!A44,"") ->  | B46: =IF(ISTEXT('Share Of Search Input'!B44),'Share Of Search Input'!B44,"") ->  | D46: =IF(ISNUMBER('Share Of Search Input'!H44),'Share Of Search Input'!H44,"") -> 
A47: =IF(ISTEXT('Share Of Search Input'!A45),'Share Of Search Input'!A45,"") ->  | B47: =IF(ISTEXT('Share Of Search Input'!B45),'Share Of Search Input'!B45,"") ->  | D47: =IF(ISNUMBER('Share Of Search Input'!H45),'Share Of Search Input'!H45,"") -> 
A48: =IF(ISTEXT('Share Of Search Input'!A46),'Share Of Search Input'!A46,"") ->  | B48: =IF(ISTEXT('Share Of Search Input'!B46),'Share Of Search Input'!B46,"") ->  | D48: =IF(ISNUMBER('Share Of Search Input'!H46),'Share Of Search Input'!H46,"") -> 
A49: =IF(ISTEXT('Share Of Search Input'!A47),'Share Of Search Input'!A47,"") ->  | B49: =IF(ISTEXT('Share Of Search Input'!B47),'Share Of Search Input'!B47,"") ->  | D49: =IF(ISNUMBER('Share Of Search Input'!H47),'Share Of Search Input'!H47,"") -> 
A50: =IF(ISTEXT('Share Of Search Input'!A48),'Share Of Search Input'!A48,"") ->  | B50: =IF(ISTEXT('Share Of Search Input'!B48),'Share Of Search Input'!B48,"") ->  | D50: =IF(ISNUMBER('Share Of Search Input'!H48),'Share Of Search Input'!H48,"") -> 
A51: =IF(ISTEXT('Share Of Search Input'!A49),'Share Of Search Input'!A49,"") ->  | B51: =IF(ISTEXT('Share Of Search Input'!B49),'Share Of Search Input'!B49,"") ->  | D51: =IF(ISNUMBER('Share Of Search Input'!H49),'Share Of Search Input'!H49,"") -> 
A52: =IF(ISTEXT('Share Of Search Input'!A50),'Share Of Search Input'!A50,"") ->  | B52: =IF(ISTEXT('Share Of Search Input'!B50),'Share Of Search Input'!B50,"") ->  | D52: =IF(ISNUMBER('Share Of Search Input'!H50),'Share Of Search Input'!H50,"") -> 
A53: =IF(ISTEXT('Share Of Search Input'!A51),'Share Of Search Input'!A51,"") ->  | B53: =IF(ISTEXT('Share Of Search Input'!B51),'Share Of Search Input'!B51,"") ->  | D53: =IF(ISNUMBER('Share Of Search Input'!H51),'Share Of Search Input'!H51,"") -> 
A54: =IF(ISTEXT('Share Of Search Input'!A52),'Share Of Search Input'!A52,"") ->  | B54: =IF(ISTEXT('Share Of Search Input'!B52),'Share Of Search Input'!B52,"") ->  | D54: =IF(ISNUMBER('Share Of Search Input'!H52),'Share Of Search Input'!H52,"") -> 
A55: =IF(ISTEXT('Share Of Search Input'!A53),'Share Of Search Input'!A53,"") ->  | B55: =IF(ISTEXT('Share Of Search Input'!B53),'Share Of Search Input'!B53,"") ->  | D55: =IF(ISNUMBER('Share Of Search Input'!H53),'Share Of Search Input'!H53,"") -> 
A56: =IF(ISTEXT('Share Of Search Input'!A54),'Share Of Search Input'!A54,"") ->  | B56: =IF(ISTEXT('Share Of Search Input'!B54),'Share Of Search Input'!B54,"") ->  | D56: =IF(ISNUMBER('Share Of Search Input'!H54),'Share Of Search Input'!H54,"") -> 
A57: =IF(ISTEXT('Share Of Search Input'!A55),'Share Of Search Input'!A55,"") ->  | B57: =IF(ISTEXT('Share Of Search Input'!B55),'Share Of Search Input'!B55,"") ->  | D57: =IF(ISNUMBER('Share Of Search Input'!H55),'Share Of Search Input'!H55,"") -> 
A58: =IF(ISTEXT('Share Of Search Input'!A56),'Share Of Search Input'!A56,"") ->  | B58: =IF(ISTEXT('Share Of Search Input'!B56),'Share Of Search Input'!B56,"") ->  | D58: =IF(ISNUMBER('Share Of Search Input'!H56),'Share Of Search Input'!H56,"") -> 
A59: =IF(ISTEXT('Share Of Search Input'!A57),'Share Of Search Input'!A57,"") ->  | B59: =IF(ISTEXT('Share Of Search Input'!B57),'Share Of Search Input'!B57,"") ->  | D59: =IF(ISNUMBER('Share Of Search Input'!H57),'Share Of Search Input'!H57,"") -> 
A60: =IF(ISTEXT('Share Of Search Input'!A58),'Share Of Search Input'!A58,"") ->  | B60: =IF(ISTEXT('Share Of Search Input'!B58),'Share Of Search Input'!B58,"") ->  | D60: =IF(ISNUMBER('Share Of Search Input'!H58),'Share Of Search Input'!H58,"") -> 
A61: =IF(ISTEXT('Share Of Search Input'!A59),'Share Of Search Input'!A59,"") ->  | B61: =IF(ISTEXT('Share Of Search Input'!B59),'Share Of Search Input'!B59,"") ->  | D61: =IF(ISNUMBER('Share Of Search Input'!H59),'Share Of Search Input'!H59,"") -> 
A62: =IF(ISTEXT('Share Of Search Input'!A60),'Share Of Search Input'!A60,"") ->  | B62: =IF(ISTEXT('Share Of Search Input'!B60),'Share Of Search Input'!B60,"") ->  | D62: =IF(ISNUMBER('Share Of Search Input'!H60),'Share Of Search Input'!H60,"") -> 
A63: =IF(ISTEXT('Share Of Search Input'!A61),'Share Of Search Input'!A61,"") ->  | B63: =IF(ISTEXT('Share Of Search Input'!B61),'Share Of Search Input'!B61,"") ->  | D63: =IF(ISNUMBER('Share Of Search Input'!H61),'Share Of Search Input'!H61,"") -> 
A64: =IF(ISTEXT('Share Of Search Input'!A62),'Share Of Search Input'!A62,"") ->  | B64: =IF(ISTEXT('Share Of Search Input'!B62),'Share Of Search Input'!B62,"") ->  | D64: =IF(ISNUMBER('Share Of Search Input'!H62),'Share Of Search Input'!H62,"") -> 
A65: =IF(ISTEXT('Share Of Search Input'!A63),'Share Of Search Input'!A63,"") ->  | B65: =IF(ISTEXT('Share Of Search Input'!B63),'Share Of Search Input'!B63,"") ->  | D65: =IF(ISNUMBER('Share Of Search Input'!H63),'Share Of Search Input'!H63,"") -> 
A66: =IF(ISTEXT('Share Of Search Input'!A64),'Share Of Search Input'!A64,"") ->  | B66: =IF(ISTEXT('Share Of Search Input'!B64),'Share Of Search Input'!B64,"") ->  | D66: =IF(ISNUMBER('Share Of Search Input'!H64),'Share Of Search Input'!H64,"") -> 
A67: =IF(ISTEXT('Share Of Search Input'!A65),'Share Of Search Input'!A65,"") ->  | B67: =IF(ISTEXT('Share Of Search Input'!B65),'Share Of Search Input'!B65,"") ->  | C67: =A67&B67 ->  | D67: =IF(ISNUMBER('Share Of Search Input'!H65),'Share Of Search Input'!H65,"") -> 
A68: =IF(ISTEXT('Share Of Search Input'!A66),'Share Of Search Input'!A66,"") ->  | B68: =IF(ISTEXT('Share Of Search Input'!B66),'Share Of Search Input'!B66,"") ->  | D68: =IF(ISNUMBER('Share Of Search Input'!H66),'Share Of Search Input'!H66,"") -> 
A69: =IF(ISTEXT('Share Of Search Input'!A67),'Share Of Search Input'!A67,"") ->  | B69: =IF(ISTEXT('Share Of Search Input'!B67),'Share Of Search Input'!B67,"") ->  | D69: =IF(ISNUMBER('Share Of Search Input'!H67),'Share Of Search Input'!H67,"") -> 
A70: =IF(ISTEXT('Share Of Search Input'!A68),'Share Of Search Input'!A68,"") ->  | B70: =IF(ISTEXT('Share Of Search Input'!B68),'Share Of Search Input'!B68,"") ->  | D70: =IF(ISNUMBER('Share Of Search Input'!H68),'Share Of Search Input'!H68,"") -> 
A71: =IF(ISTEXT('Share Of Search Input'!A69),'Share Of Search Input'!A69,"") ->  | B71: =IF(ISTEXT('Share Of Search Input'!B69),'Share Of Search Input'!B69,"") ->  | D71: =IF(ISNUMBER('Share Of Search Input'!H69),'Share Of Search Input'!H69,"") -> 
A72: =IF(ISTEXT('Share Of Search Input'!A70),'Share Of Search Input'!A70,"") ->  | B72: =IF(ISTEXT('Share Of Search Input'!B70),'Share Of Search Input'!B70,"") ->  | D72: =IF(ISNUMBER('Share Of Search Input'!H70),'Share Of Search Input'!H70,"") -> 
A73: =IF(ISTEXT('Share Of Search Input'!A71),'Share Of Search Input'!A71,"") ->  | B73: =IF(ISTEXT('Share Of Search Input'!B71),'Share Of Search Input'!B71,"") ->  | D73: =IF(ISNUMBER('Share Of Search Input'!H71),'Share Of Search Input'!H71,"") -> 
A74: =IF(ISTEXT('Share Of Search Input'!A72),'Share Of Search Input'!A72,"") ->  | B74: =IF(ISTEXT('Share Of Search Input'!B72),'Share Of Search Input'!B72,"") ->  | D74: =IF(ISNUMBER('Share Of Search Input'!H72),'Share Of Search Input'!H72,"") -> 
A75: =IF(ISTEXT('Share Of Search Input'!A73),'Share Of Search Input'!A73,"") ->  | B75: =IF(ISTEXT('Share Of Search Input'!B73),'Share Of Search Input'!B73,"") ->  | D75: =IF(ISNUMBER('Share Of Search Input'!H73),'Share Of Search Input'!H73,"") -> 
A76: =IF(ISTEXT('Share Of Search Input'!A74),'Share Of Search Input'!A74,"") ->  | B76: =IF(ISTEXT('Share Of Search Input'!B74),'Share Of Search Input'!B74,"") ->  | D76: =IF(ISNUMBER('Share Of Search Input'!H74),'Share Of Search Input'!H74,"") -> 
A77: =IF(ISTEXT('Share Of Search Input'!A75),'Share Of Search Input'!A75,"") ->  | B77: =IF(ISTEXT('Share Of Search Input'!B75),'Share Of Search Input'!B75,"") ->  | D77: =IF(ISNUMBER('Share Of Search Input'!H75),'Share Of Search Input'!H75,"") -> 
A78: =IF(ISTEXT('Share Of Search Input'!A76),'Share Of Search Input'!A76,"") ->  | B78: =IF(ISTEXT('Share Of Search Input'!B76),'Share Of Search Input'!B76,"") ->  | D78: =IF(ISNUMBER('Share Of Search Input'!H76),'Share Of Search Input'!H76,"") -> 
A79: =IF(ISTEXT('Share Of Search Input'!A77),'Share Of Search Input'!A77,"") ->  | B79: =IF(ISTEXT('Share Of Search Input'!B77),'Share Of Search Input'!B77,"") ->  | D79: =IF(ISNUMBER('Share Of Search Input'!H77),'Share Of Search Input'!H77,"") -> 
A80: =IF(ISTEXT('Share Of Search Input'!A78),'Share Of Search Input'!A78,"") ->  | B80: =IF(ISTEXT('Share Of Search Input'!B78),'Share Of Search Input'!B78,"") ->  | D80: =IF(ISNUMBER('Share Of Search Input'!H78),'Share Of Search Input'!H78,"") -> 
A81: =IF(ISTEXT('Share Of Search Input'!A79),'Share Of Search Input'!A79,"") ->  | B81: =IF(ISTEXT('Share Of Search Input'!B79),'Share Of Search Input'!B79,"") ->  | D81: =IF(ISNUMBER('Share Of Search Input'!H79),'Share Of Search Input'!H79,"") -> 
A82: =IF(ISTEXT('Share Of Search Input'!A80),'Share Of Search Input'!A80,"") ->  | B82: =IF(ISTEXT('Share Of Search Input'!B80),'Share Of Search Input'!B80,"") ->  | D82: =IF(ISNUMBER('Share Of Search Input'!H80),'Share Of Search Input'!H80,"") -> 
A83: =IF(ISTEXT('Share Of Search Input'!A81),'Share Of Search Input'!A81,"") ->  | B83: =IF(ISTEXT('Share Of Search Input'!B81),'Share Of Search Input'!B81,"") ->  | D83: =IF(ISNUMBER('Share Of Search Input'!H81),'Share Of Search Input'!H81,"") -> 
A84: =IF(ISTEXT('Share Of Search Input'!A82),'Share Of Search Input'!A82,"") ->  | B84: =IF(ISTEXT('Share Of Search Input'!B82),'Share Of Search Input'!B82,"") ->  | D84: =IF(ISNUMBER('Share Of Search Input'!H82),'Share Of Search Input'!H82,"") -> 
A85: =IF(ISTEXT('Share Of Search Input'!A83),'Share Of Search Input'!A83,"") ->  | B85: =IF(ISTEXT('Share Of Search Input'!B83),'Share Of Search Input'!B83,"") ->  | D85: =IF(ISNUMBER('Share Of Search Input'!H83),'Share Of Search Input'!H83,"") -> 
A86: =IF(ISTEXT('Share Of Search Input'!A84),'Share Of Search Input'!A84,"") ->  | B86: =IF(ISTEXT('Share Of Search Input'!B84),'Share Of Search Input'!B84,"") ->  | D86: =IF(ISNUMBER('Share Of Search Input'!H84),'Share Of Search Input'!H84,"") -> 
A87: =IF(ISTEXT('Share Of Search Input'!A85),'Share Of Search Input'!A85,"") ->  | B87: =IF(ISTEXT('Share Of Search Input'!B85),'Share Of Search Input'!B85,"") ->  | D87: =IF(ISNUMBER('Share Of Search Input'!H85),'Share Of Search Input'!H85,"") -> 
A88: =IF(ISTEXT('Share Of Search Input'!A86),'Share Of Search Input'!A86,"") ->  | B88: =IF(ISTEXT('Share Of Search Input'!B86),'Share Of Search Input'!B86,"") ->  | D88: =IF(ISNUMBER('Share Of Search Input'!H86),'Share Of Search Input'!H86,"") -> 
A89: =IF(ISTEXT('Share Of Search Input'!A87),'Share Of Search Input'!A87,"") ->  | B89: =IF(ISTEXT('Share Of Search Input'!B87),'Share Of Search Input'!B87,"") ->  | D89: =IF(ISNUMBER('Share Of Search Input'!H87),'Share Of Search Input'!H87,"") -> 
A90: =IF(ISTEXT('Share Of Search Input'!A88),'Share Of Search Input'!A88,"") ->  | B90: =IF(ISTEXT('Share Of Search Input'!B88),'Share Of Search Input'!B88,"") ->  | D90: =IF(ISNUMBER('Share Of Search Input'!H88),'Share Of Search Input'!H88,"") -> 
A91: =IF(ISTEXT('Share Of Search Input'!A89),'Share Of Search Input'!A89,"") ->  | B91: =IF(ISTEXT('Share Of Search Input'!B89),'Share Of Search Input'!B89,"") ->  | D91: =IF(ISNUMBER('Share Of Search Input'!H89),'Share Of Search Input'!H89,"") -> 
A92: =IF(ISTEXT('Share Of Search Input'!A90),'Share Of Search Input'!A90,"") ->  | B92: =IF(ISTEXT('Share Of Search Input'!B90),'Share Of Search Input'!B90,"") ->  | D92: =IF(ISNUMBER('Share Of Search Input'!H90),'Share Of Search Input'!H90,"") -> 
A93: =IF(ISTEXT('Share Of Search Input'!A91),'Share Of Search Input'!A91,"") ->  | B93: =IF(ISTEXT('Share Of Search Input'!B91),'Share Of Search Input'!B91,"") ->  | D93: =IF(ISNUMBER('Share Of Search Input'!H91),'Share Of Search Input'!H91,"") -> 
A94: =IF(ISTEXT('Share Of Search Input'!A92),'Share Of Search Input'!A92,"") ->  | B94: =IF(ISTEXT('Share Of Search Input'!B92),'Share Of Search Input'!B92,"") ->  | D94: =IF(ISNUMBER('Share Of Search Input'!H92),'Share Of Search Input'!H92,"") -> 
A95: =IF(ISTEXT('Share Of Search Input'!A93),'Share Of Search Input'!A93,"") ->  | B95: =IF(ISTEXT('Share Of Search Input'!B93),'Share Of Search Input'!B93,"") ->  | D95: =IF(ISNUMBER('Share Of Search Input'!H93),'Share Of Search Input'!H93,"") -> 
A96: =IF(ISTEXT('Share Of Search Input'!A94),'Share Of Search Input'!A94,"") ->  | B96: =IF(ISTEXT('Share Of Search Input'!B94),'Share Of Search Input'!B94,"") ->  | D96: =IF(ISNUMBER('Share Of Search Input'!H94),'Share Of Search Input'!H94,"") -> 
A97: =IF(ISTEXT('Share Of Search Input'!A95),'Share Of Search Input'!A95,"") ->  | B97: =IF(ISTEXT('Share Of Search Input'!B95),'Share Of Search Input'!B95,"") ->  | D97: =IF(ISNUMBER('Share Of Search Input'!H95),'Share Of Search Input'!H95,"") -> 
A98: =IF(ISTEXT('Share Of Search Input'!A96),'Share Of Search Input'!A96,"") ->  | B98: =IF(ISTEXT('Share Of Search Input'!B96),'Share Of Search Input'!B96,"") ->  | D98: =IF(ISNUMBER('Share Of Search Input'!H96),'Share Of Search Input'!H96,"") -> 
A99: =IF(ISTEXT('Share Of Search Input'!A97),'Share Of Search Input'!A97,"") ->  | B99: =IF(ISTEXT('Share Of Search Input'!B97),'Share Of Search Input'!B97,"") ->  | D99: =IF(ISNUMBER('Share Of Search Input'!H97),'Share Of Search Input'!H97,"") -> 
A100: =IF(ISTEXT('Share Of Search Input'!A98),'Share Of Search Input'!A98,"") ->  | B100: =IF(ISTEXT('Share Of Search Input'!B98),'Share Of Search Input'!B98,"") ->  | D100: =IF(ISNUMBER('Share Of Search Input'!H98),'Share Of Search Input'!H98,"") -> 
A101: =IF(ISTEXT('Share Of Search Input'!A99),'Share Of Search Input'!A99,"") ->  | B101: =IF(ISTEXT('Share Of Search Input'!B99),'Share Of Search Input'!B99,"") ->  | D101: =IF(ISNUMBER('Share Of Search Input'!H99),'Share Of Search Input'!H99,"") -> 
A102: =IF(ISTEXT('Share Of Search Input'!A100),'Share Of Search Input'!A100,"") ->  | B102: =IF(ISTEXT('Share Of Search Input'!B100),'Share Of Search Input'!B100,"") ->  | D102: =IF(ISNUMBER('Share Of Search Input'!H100),'Share Of Search Input'!H100,"") -> 
A103: =IF(ISTEXT('Share Of Search Input'!A101),'Share Of Search Input'!A101,"") ->  | B103: =IF(ISTEXT('Share Of Search Input'!B101),'Share Of Search Input'!B101,"") ->  | D103: =IF(ISNUMBER('Share Of Search Input'!H101),'Share Of Search Input'!H101,"") -> 
A104: =IF(ISTEXT('Share Of Search Input'!A102),'Share Of Search Input'!A102,"") ->  | B104: =IF(ISTEXT('Share Of Search Input'!B102),'Share Of Search Input'!B102,"") ->  | D104: =IF(ISNUMBER('Share Of Search Input'!H102),'Share Of Search Input'!H102,"") -> 
A105: =IF(ISTEXT('Share Of Search Input'!A103),'Share Of Search Input'!A103,"") ->  | B105: =IF(ISTEXT('Share Of Search Input'!B103),'Share Of Search Input'!B103,"") ->  | D105: =IF(ISNUMBER('Share Of Search Input'!H103),'Share Of Search Input'!H103,"") -> 
A106: =IF(ISTEXT('Share Of Search Input'!A104),'Share Of Search Input'!A104,"") ->  | B106: =IF(ISTEXT('Share Of Search Input'!B104),'Share Of Search Input'!B104,"") ->  | D106: =IF(ISNUMBER('Share Of Search Input'!H104),'Share Of Search Input'!H104,"") -> 
A107: =IF(ISTEXT('Share Of Search Input'!A105),'Share Of Search Input'!A105,"") ->  | B107: =IF(ISTEXT('Share Of Search Input'!B105),'Share Of Search Input'!B105,"") ->  | D107: =IF(ISNUMBER('Share Of Search Input'!H105),'Share Of Search Input'!H105,"") -> 
A108: =IF(ISTEXT('Share Of Search Input'!A106),'Share Of Search Input'!A106,"") ->  | B108: =IF(ISTEXT('Share Of Search Input'!B106),'Share Of Search Input'!B106,"") ->  | D108: =IF(ISNUMBER('Share Of Search Input'!H106),'Share Of Search Input'!H106,"") -> 
A109: =IF(ISTEXT('Share Of Search Input'!A107),'Share Of Search Input'!A107,"") ->  | B109: =IF(ISTEXT('Share Of Search Input'!B107),'Share Of Search Input'!B107,"") ->  | D109: =IF(ISNUMBER('Share Of Search Input'!H107),'Share Of Search Input'!H107,"") -> 
A110: =IF(ISTEXT('Share Of Search Input'!A108),'Share Of Search Input'!A108,"") ->  | B110: =IF(ISTEXT('Share Of Search Input'!B108),'Share Of Search Input'!B108,"") ->  | D110: =IF(ISNUMBER('Share Of Search Input'!H108),'Share Of Search Input'!H108,"") -> 
A111: =IF(ISTEXT('Share Of Search Input'!A109),'Share Of Search Input'!A109,"") ->  | B111: =IF(ISTEXT('Share Of Search Input'!B109),'Share Of Search Input'!B109,"") ->  | D111: =IF(ISNUMBER('Share Of Search Input'!H109),'Share Of Search Input'!H109,"") -> 
A112: =IF(ISTEXT('Share Of Search Input'!A110),'Share Of Search Input'!A110,"") ->  | B112: =IF(ISTEXT('Share Of Search Input'!B110),'Share Of Search Input'!B110,"") ->  | D112: =IF(ISNUMBER('Share Of Search Input'!H110),'Share Of Search Input'!H110,"") -> 
A113: =IF(ISTEXT('Share Of Search Input'!A111),'Share Of Search Input'!A111,"") ->  | B113: =IF(ISTEXT('Share Of Search Input'!B111),'Share Of Search Input'!B111,"") ->  | D113: =IF(ISNUMBER('Share Of Search Input'!H111),'Share Of Search Input'!H111,"") -> 
A114: =IF(ISTEXT('Share Of Search Input'!A112),'Share Of Search Input'!A112,"") ->  | B114: =IF(ISTEXT('Share Of Search Input'!B112),'Share Of Search Input'!B112,"") ->  | D114: =IF(ISNUMBER('Share Of Search Input'!H112),'Share Of Search Input'!H112,"") -> 
A115: =IF(ISTEXT('Share Of Search Input'!A113),'Share Of Search Input'!A113,"") ->  | B115: =IF(ISTEXT('Share Of Search Input'!B113),'Share Of Search Input'!B113,"") ->  | D115: =IF(ISNUMBER('Share Of Search Input'!H113),'Share Of Search Input'!H113,"") -> 
A116: =IF(ISTEXT('Share Of Search Input'!A114),'Share Of Search Input'!A114,"") ->  | B116: =IF(ISTEXT('Share Of Search Input'!B114),'Share Of Search Input'!B114,"") ->  | D116: =IF(ISNUMBER('Share Of Search Input'!H114),'Share Of Search Input'!H114,"") -> 
A117: =IF(ISTEXT('Share Of Search Input'!A115),'Share Of Search Input'!A115,"") ->  | B117: =IF(ISTEXT('Share Of Search Input'!B115),'Share Of Search Input'!B115,"") ->  | D117: =IF(ISNUMBER('Share Of Search Input'!H115),'Share Of Search Input'!H115,"") -> 
A118: =IF(ISTEXT('Share Of Search Input'!A116),'Share Of Search Input'!A116,"") ->  | B118: =IF(ISTEXT('Share Of Search Input'!B116),'Share Of Search Input'!B116,"") ->  | D118: =IF(ISNUMBER('Share Of Search Input'!H116),'Share Of Search Input'!H116,"") -> 
A119: =IF(ISTEXT('Share Of Search Input'!A117),'Share Of Search Input'!A117,"") ->  | B119: =IF(ISTEXT('Share Of Search Input'!B117),'Share Of Search Input'!B117,"") ->  | D119: =IF(ISNUMBER('Share Of Search Input'!H117),'Share Of Search Input'!H117,"") -> 
A120: =IF(ISTEXT('Share Of Search Input'!A118),'Share Of Search Input'!A118,"") ->  | B120: =IF(ISTEXT('Share Of Search Input'!B118),'Share Of Search Input'!B118,"") ->  | D120: =IF(ISNUMBER('Share Of Search Input'!H118),'Share Of Search Input'!H118,"") -> 
A121: =IF(ISTEXT('Share Of Search Input'!A119),'Share Of Search Input'!A119,"") ->  | B121: =IF(ISTEXT('Share Of Search Input'!B119),'Share Of Search Input'!B119,"") ->  | D121: =IF(ISNUMBER('Share Of Search Input'!H119),'Share Of Search Input'!H119,"") -> 
A122: =IF(ISTEXT('Share Of Search Input'!A120),'Share Of Search Input'!A120,"") ->  | B122: =IF(ISTEXT('Share Of Search Input'!B120),'Share Of Search Input'!B120,"") ->  | D122: =IF(ISNUMBER('Share Of Search Input'!H120),'Share Of Search Input'!H120,"") -> 
A123: =IF(ISTEXT('Share Of Search Input'!A121),'Share Of Search Input'!A121,"") ->  | B123: =IF(ISTEXT('Share Of Search Input'!B121),'Share Of Search Input'!B121,"") ->  | D123: =IF(ISNUMBER('Share Of Search Input'!H121),'Share Of Search Input'!H121,"") -> 
A124: =IF(ISTEXT('Share Of Search Input'!A122),'Share Of Search Input'!A122,"") ->  | B124: =IF(ISTEXT('Share Of Search Input'!B122),'Share Of Search Input'!B122,"") ->  | D124: =IF(ISNUMBER('Share Of Search Input'!H122),'Share Of Search Input'!H122,"") -> 
A125: =IF(ISTEXT('Share Of Search Input'!A123),'Share Of Search Input'!A123,"") ->  | B125: =IF(ISTEXT('Share Of Search Input'!B123),'Share Of Search Input'!B123,"") ->  | D125: =IF(ISNUMBER('Share Of Search Input'!H123),'Share Of Search Input'!H123,"") -> 
A126: =IF(ISTEXT('Share Of Search Input'!A124),'Share Of Search Input'!A124,"") ->  | B126: =IF(ISTEXT('Share Of Search Input'!B124),'Share Of Search Input'!B124,"") ->  | D126: =IF(ISNUMBER('Share Of Search Input'!H124),'Share Of Search Input'!H124,"") -> 
A127: =IF(ISTEXT('Share Of Search Input'!A125),'Share Of Search Input'!A125,"") ->  | B127: =IF(ISTEXT('Share Of Search Input'!B125),'Share Of Search Input'!B125,"") ->  | D127: =IF(ISNUMBER('Share Of Search Input'!H125),'Share Of Search Input'!H125,"") -> 
A128: =IF(ISTEXT('Share Of Search Input'!A126),'Share Of Search Input'!A126,"") ->  | B128: =IF(ISTEXT('Share Of Search Input'!B126),'Share Of Search Input'!B126,"") ->  | D128: =IF(ISNUMBER('Share Of Search Input'!H126),'Share Of Search Input'!H126,"") -> 
A129: =IF(ISTEXT('Share Of Search Input'!A127),'Share Of Search Input'!A127,"") ->  | B129: =IF(ISTEXT('Share Of Search Input'!B127),'Share Of Search Input'!B127,"") ->  | D129: =IF(ISNUMBER('Share Of Search Input'!H127),'Share Of Search Input'!H127,"") -> 
A130: =IF(ISTEXT('Share Of Search Input'!A128),'Share Of Search Input'!A128,"") ->  | B130: =IF(ISTEXT('Share Of Search Input'!B128),'Share Of Search Input'!B128,"") ->  | D130: =IF(ISNUMBER('Share Of Search Input'!H128),'Share Of Search Input'!H128,"") -> 
A131: =IF(ISTEXT('Share Of Search Input'!A129),'Share Of Search Input'!A129,"") ->  | B131: =IF(ISTEXT('Share Of Search Input'!B129),'Share Of Search Input'!B129,"") ->  | C131: =A131&B131 ->  | D131: =IF(ISNUMBER('Share Of Search Input'!H129),'Share Of Search Input'!H129,"") -> 
A132: =IF(ISTEXT('Share Of Search Input'!A130),'Share Of Search Input'!A130,"") ->  | B132: =IF(ISTEXT('Share Of Search Input'!B130),'Share Of Search Input'!B130,"") ->  | D132: =IF(ISNUMBER('Share Of Search Input'!H130),'Share Of Search Input'!H130,"") -> 
A133: =IF(ISTEXT('Share Of Search Input'!A131),'Share Of Search Input'!A131,"") ->  | B133: =IF(ISTEXT('Share Of Search Input'!B131),'Share Of Search Input'!B131,"") ->  | D133: =IF(ISNUMBER('Share Of Search Input'!H131),'Share Of Search Input'!H131,"") -> 
A134: =IF(ISTEXT('Share Of Search Input'!A132),'Share Of Search Input'!A132,"") ->  | B134: =IF(ISTEXT('Share Of Search Input'!B132),'Share Of Search Input'!B132,"") ->  | D134: =IF(ISNUMBER('Share Of Search Input'!H132),'Share Of Search Input'!H132,"") -> 
A135: =IF(ISTEXT('Share Of Search Input'!A133),'Share Of Search Input'!A133,"") ->  | B135: =IF(ISTEXT('Share Of Search Input'!B133),'Share Of Search Input'!B133,"") ->  | D135: =IF(ISNUMBER('Share Of Search Input'!H133),'Share Of Search Input'!H133,"") -> 
A136: =IF(ISTEXT('Share Of Search Input'!A134),'Share Of Search Input'!A134,"") ->  | B136: =IF(ISTEXT('Share Of Search Input'!B134),'Share Of Search Input'!B134,"") ->  | D136: =IF(ISNUMBER('Share Of Search Input'!H134),'Share Of Search Input'!H134,"") -> 
A137: =IF(ISTEXT('Share Of Search Input'!A135),'Share Of Search Input'!A135,"") ->  | B137: =IF(ISTEXT('Share Of Search Input'!B135),'Share Of Search Input'!B135,"") ->  | D137: =IF(ISNUMBER('Share Of Search Input'!H135),'Share Of Search Input'!H135,"") -> 
A138: =IF(ISTEXT('Share Of Search Input'!A136),'Share Of Search Input'!A136,"") ->  | B138: =IF(ISTEXT('Share Of Search Input'!B136),'Share Of Search Input'!B136,"") ->  | D138: =IF(ISNUMBER('Share Of Search Input'!H136),'Share Of Search Input'!H136,"") -> 
A139: =IF(ISTEXT('Share Of Search Input'!A137),'Share Of Search Input'!A137,"") ->  | B139: =IF(ISTEXT('Share Of Search Input'!B137),'Share Of Search Input'!B137,"") ->  | D139: =IF(ISNUMBER('Share Of Search Input'!H137),'Share Of Search Input'!H137,"") -> 
A140: =IF(ISTEXT('Share Of Search Input'!A138),'Share Of Search Input'!A138,"") ->  | B140: =IF(ISTEXT('Share Of Search Input'!B138),'Share Of Search Input'!B138,"") ->  | D140: =IF(ISNUMBER('Share Of Search Input'!H138),'Share Of Search Input'!H138,"") -> 
A141: =IF(ISTEXT('Share Of Search Input'!A139),'Share Of Search Input'!A139,"") ->  | B141: =IF(ISTEXT('Share Of Search Input'!B139),'Share Of Search Input'!B139,"") ->  | D141: =IF(ISNUMBER('Share Of Search Input'!H139),'Share Of Search Input'!H139,"") -> 
A142: =IF(ISTEXT('Share Of Search Input'!A140),'Share Of Search Input'!A140,"") ->  | B142: =IF(ISTEXT('Share Of Search Input'!B140),'Share Of Search Input'!B140,"") ->  | D142: =IF(ISNUMBER('Share Of Search Input'!H140),'Share Of Search Input'!H140,"") -> 
A143: =IF(ISTEXT('Share Of Search Input'!A141),'Share Of Search Input'!A141,"") ->  | B143: =IF(ISTEXT('Share Of Search Input'!B141),'Share Of Search Input'!B141,"") ->  | D143: =IF(ISNUMBER('Share Of Search Input'!H141),'Share Of Search Input'!H141,"") -> 
A144: =IF(ISTEXT('Share Of Search Input'!A142),'Share Of Search Input'!A142,"") ->  | B144: =IF(ISTEXT('Share Of Search Input'!B142),'Share Of Search Input'!B142,"") ->  | D144: =IF(ISNUMBER('Share Of Search Input'!H142),'Share Of Search Input'!H142,"") -> 
A145: =IF(ISTEXT('Share Of Search Input'!A143),'Share Of Search Input'!A143,"") ->  | B145: =IF(ISTEXT('Share Of Search Input'!B143),'Share Of Search Input'!B143,"") ->  | D145: =IF(ISNUMBER('Share Of Search Input'!H143),'Share Of Search Input'!H143,"") -> 
A146: =IF(ISTEXT('Share Of Search Input'!A144),'Share Of Search Input'!A144,"") ->  | B146: =IF(ISTEXT('Share Of Search Input'!B144),'Share Of Search Input'!B144,"") ->  | D146: =IF(ISNUMBER('Share Of Search Input'!H144),'Share Of Search Input'!H144,"") -> 
A147: =IF(ISTEXT('Share Of Search Input'!A145),'Share Of Search Input'!A145,"") ->  | B147: =IF(ISTEXT('Share Of Search Input'!B145),'Share Of Search Input'!B145,"") ->  | D147: =IF(ISNUMBER('Share Of Search Input'!H145),'Share Of Search Input'!H145,"") -> 
A148: =IF(ISTEXT('Share Of Search Input'!A146),'Share Of Search Input'!A146,"") ->  | B148: =IF(ISTEXT('Share Of Search Input'!B146),'Share Of Search Input'!B146,"") ->  | D148: =IF(ISNUMBER('Share Of Search Input'!H146),'Share Of Search Input'!H146,"") -> 
A149: =IF(ISTEXT('Share Of Search Input'!A147),'Share Of Search Input'!A147,"") ->  | B149: =IF(ISTEXT('Share Of Search Input'!B147),'Share Of Search Input'!B147,"") ->  | D149: =IF(ISNUMBER('Share Of Search Input'!H147),'Share Of Search Input'!H147,"") -> 
A150: =IF(ISTEXT('Share Of Search Input'!A148),'Share Of Search Input'!A148,"") ->  | B150: =IF(ISTEXT('Share Of Search Input'!B148),'Share Of Search Input'!B148,"") ->  | D150: =IF(ISNUMBER('Share Of Search Input'!H148),'Share Of Search Input'!H148,"") -> 
A151: =IF(ISTEXT('Share Of Search Input'!A149),'Share Of Search Input'!A149,"") ->  | B151: =IF(ISTEXT('Share Of Search Input'!B149),'Share Of Search Input'!B149,"") ->  | D151: =IF(ISNUMBER('Share Of Search Input'!H149),'Share Of Search Input'!H149,"") -> 
A152: =IF(ISTEXT('Share Of Search Input'!A150),'Share Of Search Input'!A150,"") ->  | B152: =IF(ISTEXT('Share Of Search Input'!B150),'Share Of Search Input'!B150,"") ->  | D152: =IF(ISNUMBER('Share Of Search Input'!H150),'Share Of Search Input'!H150,"") -> 
A153: =IF(ISTEXT('Share Of Search Input'!A151),'Share Of Search Input'!A151,"") ->  | B153: =IF(ISTEXT('Share Of Search Input'!B151),'Share Of Search Input'!B151,"") ->  | D153: =IF(ISNUMBER('Share Of Search Input'!H151),'Share Of Search Input'!H151,"") -> 
A154: =IF(ISTEXT('Share Of Search Input'!A152),'Share Of Search Input'!A152,"") ->  | B154: =IF(ISTEXT('Share Of Search Input'!B152),'Share Of Search Input'!B152,"") ->  | D154: =IF(ISNUMBER('Share Of Search Input'!H152),'Share Of Search Input'!H152,"") -> 
A155: =IF(ISTEXT('Share Of Search Input'!A153),'Share Of Search Input'!A153,"") ->  | B155: =IF(ISTEXT('Share Of Search Input'!B153),'Share Of Search Input'!B153,"") ->  | D155: =IF(ISNUMBER('Share Of Search Input'!H153),'Share Of Search Input'!H153,"") -> 
A156: =IF(ISTEXT('Share Of Search Input'!A154),'Share Of Search Input'!A154,"") ->  | B156: =IF(ISTEXT('Share Of Search Input'!B154),'Share Of Search Input'!B154,"") ->  | D156: =IF(ISNUMBER('Share Of Search Input'!H154),'Share Of Search Input'!H154,"") -> 
A157: =IF(ISTEXT('Share Of Search Input'!A155),'Share Of Search Input'!A155,"") ->  | B157: =IF(ISTEXT('Share Of Search Input'!B155),'Share Of Search Input'!B155,"") ->  | D157: =IF(ISNUMBER('Share Of Search Input'!H155),'Share Of Search Input'!H155,"") -> 
A158: =IF(ISTEXT('Share Of Search Input'!A156),'Share Of Search Input'!A156,"") ->  | B158: =IF(ISTEXT('Share Of Search Input'!B156),'Share Of Search Input'!B156,"") ->  | D158: =IF(ISNUMBER('Share Of Search Input'!H156),'Share Of Search Input'!H156,"") -> 
A159: =IF(ISTEXT('Share Of Search Input'!A157),'Share Of Search Input'!A157,"") ->  | B159: =IF(ISTEXT('Share Of Search Input'!B157),'Share Of Search Input'!B157,"") ->  | D159: =IF(ISNUMBER('Share Of Search Input'!H157),'Share Of Search Input'!H157,"") -> 
A160: =IF(ISTEXT('Share Of Search Input'!A158),'Share Of Search Input'!A158,"") ->  | B160: =IF(ISTEXT('Share Of Search Input'!B158),'Share Of Search Input'!B158,"") ->  | D160: =IF(ISNUMBER('Share Of Search Input'!H158),'Share Of Search Input'!H158,"") -> 
A161: =IF(ISTEXT('Share Of Search Input'!A159),'Share Of Search Input'!A159,"") ->  | B161: =IF(ISTEXT('Share Of Search Input'!B159),'Share Of Search Input'!B159,"") ->  | D161: =IF(ISNUMBER('Share Of Search Input'!H159),'Share Of Search Input'!H159,"") -> 
A162: =IF(ISTEXT('Share Of Search Input'!A160),'Share Of Search Input'!A160,"") ->  | B162: =IF(ISTEXT('Share Of Search Input'!B160),'Share Of Search Input'!B160,"") ->  | D162: =IF(ISNUMBER('Share Of Search Input'!H160),'Share Of Search Input'!H160,"") -> 
A163: =IF(ISTEXT('Share Of Search Input'!A161),'Share Of Search Input'!A161,"") ->  | B163: =IF(ISTEXT('Share Of Search Input'!B161),'Share Of Search Input'!B161,"") ->  | D163: =IF(ISNUMBER('Share Of Search Input'!H161),'Share Of Search Input'!H161,"") -> 
A164: =IF(ISTEXT('Share Of Search Input'!A162),'Share Of Search Input'!A162,"") ->  | B164: =IF(ISTEXT('Share Of Search Input'!B162),'Share Of Search Input'!B162,"") ->  | D164: =IF(ISNUMBER('Share Of Search Input'!H162),'Share Of Search Input'!H162,"") -> 
A165: =IF(ISTEXT('Share Of Search Input'!A163),'Share Of Search Input'!A163,"") ->  | B165: =IF(ISTEXT('Share Of Search Input'!B163),'Share Of Search Input'!B163,"") ->  | D165: =IF(ISNUMBER('Share Of Search Input'!H163),'Share Of Search Input'!H163,"") -> 
A166: =IF(ISTEXT('Share Of Search Input'!A164),'Share Of Search Input'!A164,"") ->  | B166: =IF(ISTEXT('Share Of Search Input'!B164),'Share Of Search Input'!B164,"") ->  | D166: =IF(ISNUMBER('Share Of Search Input'!H164),'Share Of Search Input'!H164,"") -> 
A167: =IF(ISTEXT('Share Of Search Input'!A165),'Share Of Search Input'!A165,"") ->  | B167: =IF(ISTEXT('Share Of Search Input'!B165),'Share Of Search Input'!B165,"") ->  | D167: =IF(ISNUMBER('Share Of Search Input'!H165),'Share Of Search Input'!H165,"") -> 
A168: =IF(ISTEXT('Share Of Search Input'!A166),'Share Of Search Input'!A166,"") ->  | B168: =IF(ISTEXT('Share Of Search Input'!B166),'Share Of Search Input'!B166,"") ->  | D168: =IF(ISNUMBER('Share Of Search Input'!H166),'Share Of Search Input'!H166,"") -> 
A169: =IF(ISTEXT('Share Of Search Input'!A167),'Share Of Search Input'!A167,"") ->  | B169: =IF(ISTEXT('Share Of Search Input'!B167),'Share Of Search Input'!B167,"") ->  | D169: =IF(ISNUMBER('Share Of Search Input'!H167),'Share Of Search Input'!H167,"") -> 
A170: =IF(ISTEXT('Share Of Search Input'!A168),'Share Of Search Input'!A168,"") ->  | B170: =IF(ISTEXT('Share Of Search Input'!B168),'Share Of Search Input'!B168,"") ->  | D170: =IF(ISNUMBER('Share Of Search Input'!H168),'Share Of Search Input'!H168,"") -> 
A171: =IF(ISTEXT('Share Of Search Input'!A169),'Share Of Search Input'!A169,"") ->  | B171: =IF(ISTEXT('Share Of Search Input'!B169),'Share Of Search Input'!B169,"") ->  | D171: =IF(ISNUMBER('Share Of Search Input'!H169),'Share Of Search Input'!H169,"") -> 
A172: =IF(ISTEXT('Share Of Search Input'!A170),'Share Of Search Input'!A170,"") ->  | B172: =IF(ISTEXT('Share Of Search Input'!B170),'Share Of Search Input'!B170,"") ->  | D172: =IF(ISNUMBER('Share Of Search Input'!H170),'Share Of Search Input'!H170,"") -> 
A173: =IF(ISTEXT('Share Of Search Input'!A171),'Share Of Search Input'!A171,"") ->  | B173: =IF(ISTEXT('Share Of Search Input'!B171),'Share Of Search Input'!B171,"") ->  | D173: =IF(ISNUMBER('Share Of Search Input'!H171),'Share Of Search Input'!H171,"") -> 
A174: =IF(ISTEXT('Share Of Search Input'!A172),'Share Of Search Input'!A172,"") ->  | B174: =IF(ISTEXT('Share Of Search Input'!B172),'Share Of Search Input'!B172,"") ->  | D174: =IF(ISNUMBER('Share Of Search Input'!H172),'Share Of Search Input'!H172,"") -> 
A175: =IF(ISTEXT('Share Of Search Input'!A173),'Share Of Search Input'!A173,"") ->  | B175: =IF(ISTEXT('Share Of Search Input'!B173),'Share Of Search Input'!B173,"") ->  | D175: =IF(ISNUMBER('Share Of Search Input'!H173),'Share Of Search Input'!H173,"") -> 
A176: =IF(ISTEXT('Share Of Search Input'!A174),'Share Of Search Input'!A174,"") ->  | B176: =IF(ISTEXT('Share Of Search Input'!B174),'Share Of Search Input'!B174,"") ->  | D176: =IF(ISNUMBER('Share Of Search Input'!H174),'Share Of Search Input'!H174,"") -> 
A177: =IF(ISTEXT('Share Of Search Input'!A175),'Share Of Search Input'!A175,"") ->  | B177: =IF(ISTEXT('Share Of Search Input'!B175),'Share Of Search Input'!B175,"") ->  | D177: =IF(ISNUMBER('Share Of Search Input'!H175),'Share Of Search Input'!H175,"") -> 
A178: =IF(ISTEXT('Share Of Search Input'!A176),'Share Of Search Input'!A176,"") ->  | B178: =IF(ISTEXT('Share Of Search Input'!B176),'Share Of Search Input'!B176,"") ->  | D178: =IF(ISNUMBER('Share Of Search Input'!H176),'Share Of Search Input'!H176,"") -> 
A179: =IF(ISTEXT('Share Of Search Input'!A177),'Share Of Search Input'!A177,"") ->  | B179: =IF(ISTEXT('Share Of Search Input'!B177),'Share Of Search Input'!B177,"") ->  | D179: =IF(ISNUMBER('Share Of Search Input'!H177),'Share Of Search Input'!H177,"") -> 
A180: =IF(ISTEXT('Share Of Search Input'!A178),'Share Of Search Input'!A178,"") ->  | B180: =IF(ISTEXT('Share Of Search Input'!B178),'Share Of Search Input'!B178,"") ->  | D180: =IF(ISNUMBER('Share Of Search Input'!H178),'Share Of Search Input'!H178,"") -> 
A181: =IF(ISTEXT('Share Of Search Input'!A179),'Share Of Search Input'!A179,"") ->  | B181: =IF(ISTEXT('Share Of Search Input'!B179),'Share Of Search Input'!B179,"") ->  | D181: =IF(ISNUMBER('Share Of Search Input'!H179),'Share Of Search Input'!H179,"") -> 
A182: =IF(ISTEXT('Share Of Search Input'!A180),'Share Of Search Input'!A180,"") ->  | B182: =IF(ISTEXT('Share Of Search Input'!B180),'Share Of Search Input'!B180,"") ->  | D182: =IF(ISNUMBER('Share Of Search Input'!H180),'Share Of Search Input'!H180,"") -> 
A183: =IF(ISTEXT('Share Of Search Input'!A181),'Share Of Search Input'!A181,"") ->  | B183: =IF(ISTEXT('Share Of Search Input'!B181),'Share Of Search Input'!B181,"") ->  | D183: =IF(ISNUMBER('Share Of Search Input'!H181),'Share Of Search Input'!H181,"") -> 
A184: =IF(ISTEXT('Share Of Search Input'!A182),'Share Of Search Input'!A182,"") ->  | B184: =IF(ISTEXT('Share Of Search Input'!B182),'Share Of Search Input'!B182,"") ->  | D184: =IF(ISNUMBER('Share Of Search Input'!H182),'Share Of Search Input'!H182,"") -> 
A185: =IF(ISTEXT('Share Of Search Input'!A183),'Share Of Search Input'!A183,"") ->  | B185: =IF(ISTEXT('Share Of Search Input'!B183),'Share Of Search Input'!B183,"") ->  | D185: =IF(ISNUMBER('Share Of Search Input'!H183),'Share Of Search Input'!H183,"") -> 
A186: =IF(ISTEXT('Share Of Search Input'!A184),'Share Of Search Input'!A184,"") ->  | B186: =IF(ISTEXT('Share Of Search Input'!B184),'Share Of Search Input'!B184,"") ->  | D186: =IF(ISNUMBER('Share Of Search Input'!H184),'Share Of Search Input'!H184,"") -> 
A187: =IF(ISTEXT('Share Of Search Input'!A185),'Share Of Search Input'!A185,"") ->  | B187: =IF(ISTEXT('Share Of Search Input'!B185),'Share Of Search Input'!B185,"") ->  | D187: =IF(ISNUMBER('Share Of Search Input'!H185),'Share Of Search Input'!H185,"") -> 
A188: =IF(ISTEXT('Share Of Search Input'!A186),'Share Of Search Input'!A186,"") ->  | B188: =IF(ISTEXT('Share Of Search Input'!B186),'Share Of Search Input'!B186,"") ->  | D188: =IF(ISNUMBER('Share Of Search Input'!H186),'Share Of Search Input'!H186,"") -> 
A189: =IF(ISTEXT('Share Of Search Input'!A187),'Share Of Search Input'!A187,"") ->  | B189: =IF(ISTEXT('Share Of Search Input'!B187),'Share Of Search Input'!B187,"") ->  | D189: =IF(ISNUMBER('Share Of Search Input'!H187),'Share Of Search Input'!H187,"") -> 
A190: =IF(ISTEXT('Share Of Search Input'!A188),'Share Of Search Input'!A188,"") ->  | B190: =IF(ISTEXT('Share Of Search Input'!B188),'Share Of Search Input'!B188,"") ->  | D190: =IF(ISNUMBER('Share Of Search Input'!H188),'Share Of Search Input'!H188,"") -> 
A191: =IF(ISTEXT('Share Of Search Input'!A189),'Share Of Search Input'!A189,"") ->  | B191: =IF(ISTEXT('Share Of Search Input'!B189),'Share Of Search Input'!B189,"") ->  | D191: =IF(ISNUMBER('Share Of Search Input'!H189),'Share Of Search Input'!H189,"") -> 
A192: =IF(ISTEXT('Share Of Search Input'!A190),'Share Of Search Input'!A190,"") ->  | B192: =IF(ISTEXT('Share Of Search Input'!B190),'Share Of Search Input'!B190,"") ->  | D192: =IF(ISNUMBER('Share Of Search Input'!H190),'Share Of Search Input'!H190,"") -> 
A193: =IF(ISTEXT('Share Of Search Input'!A191),'Share Of Search Input'!A191,"") ->  | B193: =IF(ISTEXT('Share Of Search Input'!B191),'Share Of Search Input'!B191,"") ->  | D193: =IF(ISNUMBER('Share Of Search Input'!H191),'Share Of Search Input'!H191,"") -> 
A194: =IF(ISTEXT('Share Of Search Input'!A192),'Share Of Search Input'!A192,"") ->  | B194: =IF(ISTEXT('Share Of Search Input'!B192),'Share Of Search Input'!B192,"") ->  | D194: =IF(ISNUMBER('Share Of Search Input'!H192),'Share Of Search Input'!H192,"") -> 
A195: =IF(ISTEXT('Share Of Search Input'!A193),'Share Of Search Input'!A193,"") ->  | B195: =IF(ISTEXT('Share Of Search Input'!B193),'Share Of Search Input'!B193,"") ->  | C195: =A195&B195 ->  | D195: =IF(ISNUMBER('Share Of Search Input'!H193),'Share Of Search Input'!H193,"") -> 
A196: =IF(ISTEXT('Share Of Search Input'!A194),'Share Of Search Input'!A194,"") ->  | B196: =IF(ISTEXT('Share Of Search Input'!B194),'Share Of Search Input'!B194,"") ->  | D196: =IF(ISNUMBER('Share Of Search Input'!H194),'Share Of Search Input'!H194,"") -> 
A197: =IF(ISTEXT('Share Of Search Input'!A195),'Share Of Search Input'!A195,"") ->  | B197: =IF(ISTEXT('Share Of Search Input'!B195),'Share Of Search Input'!B195,"") ->  | D197: =IF(ISNUMBER('Share Of Search Input'!H195),'Share Of Search Input'!H195,"") -> 
A198: =IF(ISTEXT('Share Of Search Input'!A196),'Share Of Search Input'!A196,"") ->  | B198: =IF(ISTEXT('Share Of Search Input'!B196),'Share Of Search Input'!B196,"") ->  | D198: =IF(ISNUMBER('Share Of Search Input'!H196),'Share Of Search Input'!H196,"") -> 
A199: =IF(ISTEXT('Share Of Search Input'!A197),'Share Of Search Input'!A197,"") ->  | B199: =IF(ISTEXT('Share Of Search Input'!B197),'Share Of Search Input'!B197,"") ->  | D199: =IF(ISNUMBER('Share Of Search Input'!H197),'Share Of Search Input'!H197,"") -> 
A200: =IF(ISTEXT('Share Of Search Input'!A198),'Share Of Search Input'!A198,"") ->  | B200: =IF(ISTEXT('Share Of Search Input'!B198),'Share Of Search Input'!B198,"") ->  | D200: =IF(ISNUMBER('Share Of Search Input'!H198),'Share Of Search Input'!H198,"") -> 
... 63 more rows

Sheet Data validation (hidden)
A1: SEMrush markets | B1: SEM domain Sortings | C1: Majestic Database | D1: Linkplanner datatype | E1: yes/no | F1: AnchortextMode | G1: FilterAnchorTextMode | H1: SEMrush compeitors sorts | I1: ScrapeMethod | J1: Display positions
A2: all | B2: traffic ascending | C2: Fresh | D2: Links | E2: Yes | F2: Anchors | G2: No | H2: commom keywords | I2: HTTP Request | J2: new
A3: us | B3: traffic descending | C3: Historic | D3: Domains | E3: No | F3: Refering domains | G3: Exact | H3: competitor relevance | I3: Internet Explorer | J3: lost
A4: uk | B4: position ascending | F4: Backlinks | G4: Phrase | I4: Internet Explorer Invisible | J4: rise
A5: ca | B5: position descending | J5: fall
A6: ru | B6: traffic cost ascending | J6: current
A7: de | B7: traffic cost descending
A8: fr
A9: es
A10: it
A11: br
A12: au
A13: us.bing

Sheet tests (hidden)
